Workbook

Sheet Simulador
B2: Datos del producto: | E2: Seguro:
B4: Producto: | C4: CONSOLIDACION DE DEUDA | E4: Contrata seguro: | F4: Si
B6: Monto: | C6: 14993.27 | E6: Tipo | F6: Sin Rescate
B8: TEA: | C8: 0.8206 | E8: % Comisión seguro: | F8: =IF(AND(F6="Con Rescate",F4="Si"),0.35%,IF(AND(F6="Sin Rescate",F4="Si"),0.3%,0)) -> 0.003
B10: TED: | C10: =((1+C8)^(1/360)-1) -> 0.001665736125
B12: Fecha de desembolso: | C12: 2025-11-07
B14: Día de pago: | C14: 6
B16: Meses gracia: | C16: 0
B18: Meses gracia T24: | C18: 0
B20: Fecha de primer pago: | C20: =Fechas!B15 -> 2025-12-06
B22: Fecha de primer pago T24: | C22: =FechasT24!B15 -> 2026-01-06
B24: Meses contractuales: | C24: 36
B26: Anticipos:
B28: Fecha de abono: | E28: Monto de anticipo
B30: Elegir reducción de pago anticipado:
B32: Cálculo de cuota: | E32: Cálculo de cuota T24: | H32: Diferencia acum:
B34: Cuota cliente: | C34: =CuotaBiseccion(C6+'Procesamiento (2)'!I4,C8,INDIRECT(Fechas!A34&Fechas!A35&":"&Fechas!A37),INDIRECT(Fechas!B34&Fechas!B35&":"&Fechas!B37),F8) -> 964.6752971 | E34: Cuota cliente: | F34: =CuotaBiseccion(C6,C8,INDIRECT(FechasT24!A34&FechasT24!A35&":"&FechasT24!A37),INDIRECT(FechasT24!B34&FechasT24!B35&":"&FechasT24!B37),F8,,,TRUE) -> 961.7899273 | H34: Cuota cliente: | I34: =+(C34-F34)*C24 -> 103.8733122
B36: TCEA | C36: ='Procesamiento (2)'!V10 -> 0.9051582932
B38: Cronograma de pagos:
B39: N° | C39: Fecha de pago | D39: N° Días | E39: Capital | F39: Seguro de desgravamen | G39: Amortización | H39: Interés | I39: Cuota | J39: Prepagos | K39: Saldo Final
B40: =IFERROR(IF(Procesamiento!A4=0,"",Procesamiento!A4),"") -> 1 | C40: =IFERROR(Procesamiento!E4,"") -> 2025-12-06 | D40: =IFERROR(Procesamiento!B4,"") -> 29 | E40: =IFERROR(Procesamiento!F4,"") -> 14993.27 | F40: =+'Procesamiento (2)'!I5 -> 46.86995959 | G40: =+'Procesamiento (2)'!H5 -> 761.0076658 | H40: =+'Procesamiento (2)'!G5 -> 156.7976607 | I40: =+SUM(F40:H40) -> 964.675286
B41: =IFERROR(IF(Procesamiento!A5=0,"",Procesamiento!A5),"") -> 2 | C41: =IFERROR(Procesamiento!E5,"") -> 2026-01-06 | D41: =IFERROR(Procesamiento!B5,"") -> 31 | E41: =IFERROR(Procesamiento!F5,"") -> 14814.9908 | F41: =+'Procesamiento (2)'!I6 -> 44.58693659 | G41: =+'Procesamiento (2)'!H6 -> 133.142824 | H41: =+'Procesamiento (2)'!G6 -> 786.9455255 | I41: =+SUM(F41:H41) -> 964.675286
B42: =IFERROR(IF(Procesamiento!A6=0,"",Procesamiento!A6),"") -> 3 | C42: =IFERROR(Procesamiento!E6,"") -> 2026-02-06 | D42: =IFERROR(Procesamiento!B6,"") -> 31 | E42: =IFERROR(Procesamiento!F6,"") -> 14679.20038 | F42: =+'Procesamiento (2)'!I7 -> 44.18750812 | G42: =+'Procesamiento (2)'!H7 -> 140.5920404 | H42: =+'Procesamiento (2)'!G7 -> 779.8957375 | I42: 964.675286
B43: =IFERROR(IF(Procesamiento!A7=0,"",Procesamiento!A7),"") -> 4 | C43: =IFERROR(Procesamiento!E7,"") -> 2026-03-06 | D43: =IFERROR(Procesamiento!B7,"") -> 28 | E43: =IFERROR(Procesamiento!F7,"") -> 14535.81261 | F43: =+'Procesamiento (2)'!I8 -> 43.76573199 | G43: =+'Procesamiento (2)'!H8 -> 224.9652724 | H43: =+'Procesamiento (2)'!G8 -> 695.9442816 | I43: 964.675286
B44: =IFERROR(IF(Procesamiento!A8=0,"",Procesamiento!A8),"") -> 5 | C44: =IFERROR(Procesamiento!E8,"") -> 2026-04-06 | D44: =IFERROR(Procesamiento!B8,"") -> 31 | E44: =IFERROR(Procesamiento!F8,"") -> 14308.1719 | F44: =+'Procesamiento (2)'!I9 -> 43.09083618 | G44: =+'Procesamiento (2)'!H9 -> 161.04463 | H44: =+'Procesamiento (2)'!G9 -> 760.5398198 | I44: 964.675286
B45: =IFERROR(IF(Procesamiento!A9=0,"",Procesamiento!A9),"") -> 6 | C45: =IFERROR(Procesamiento!E9,"") -> 2026-05-06 | D45: =IFERROR(Procesamiento!B9,"") -> 30 | E45: =IFERROR(Procesamiento!F9,"") -> 14144.02544 | F45: =+'Procesamiento (2)'!I10 -> 42.60770229 | G45: =+'Procesamiento (2)'!H10 -> 194.9238856 | H45: =+'Procesamiento (2)'!G10 -> 727.1436982 | I45: 964.675286
B46: =IFERROR(IF(Procesamiento!A10=0,"",Procesamiento!A10),"") -> 7 | C46: =IFERROR(Procesamiento!E10,"") -> 2026-06-06 | D46: =IFERROR(Procesamiento!B10,"") -> 31 | E46: =IFERROR(Procesamiento!F10,"") -> 13945.92868 | F46: =+'Procesamiento (2)'!I11 -> 42.02293063 | G46: =+'Procesamiento (2)'!H11 -> 180.9607354 | H46: =+'Procesamiento (2)'!G11 -> 741.6916199 | I46: 964.675286
B47: =IFERROR(IF(Procesamiento!A11=0,"",Procesamiento!A11),"") -> 8 | C47: =IFERROR(Procesamiento!E11,"") -> 2026-07-06 | D47: =IFERROR(Procesamiento!B11,"") -> 30 | E47: =IFERROR(Procesamiento!F11,"") -> 13761.51504 | F47: =+'Procesamiento (2)'!I12 -> 41.48004842 | G47: =+'Procesamiento (2)'!H12 -> 215.2960975 | H47: =+'Procesamiento (2)'!G12 -> 707.8991401 | I47: 964.675286
B48: =IFERROR(IF(Procesamiento!A12=0,"",Procesamiento!A12),"") -> 9 | C48: =IFERROR(Procesamiento!E12,"") -> 2026-08-06 | D48: =IFERROR(Procesamiento!B12,"") -> 31 | E48: =IFERROR(Procesamiento!F12,"") -> 13542.68697 | F48: =+'Procesamiento (2)'!I13 -> 40.83416013 | G48: =+'Procesamiento (2)'!H13 -> 203.1309345 | H48: =+'Procesamiento (2)'!G13 -> 720.7101914 | I48: 964.675286
B49: =IFERROR(IF(Procesamiento!A13=0,"",Procesamiento!A13),"") -> 10 | C49: =IFERROR(Procesamiento!E13,"") -> 2026-09-06 | D49: =IFERROR(Procesamiento!B13,"") -> 31 | E49: =IFERROR(Procesamiento!F13,"") -> 13335.71234 | F49: =+'Procesamiento (2)'!I14 -> 40.22476733 | G49: =+'Procesamiento (2)'!H14 -> 214.4959202 | H49: =+'Procesamiento (2)'!G14 -> 709.9545985 | I49: 964.675286
B50: =IFERROR(IF(Procesamiento!A14=0,"",Procesamiento!A14),"") -> 11 | C50: =IFERROR(Procesamiento!E14,"") -> 2026-10-06 | D50: =IFERROR(Procesamiento!B14,"") -> 30 | E50: =IFERROR(Procesamiento!F14,"") -> 13117.15767 | F50: =+'Procesamiento (2)'!I15 -> 39.58127957 | G50: =+'Procesamiento (2)'!H15 -> 249.5992847 | H50: =+'Procesamiento (2)'!G15 -> 675.4947218 | I50: 964.675286
B51: =IFERROR(IF(Procesamiento!A15=0,"",Procesamiento!A15),"") -> 12 | C51: =IFERROR(Procesamiento!E15,"") -> 2026-11-06 | D51: =IFERROR(Procesamiento!B15,"") -> 31 | E51: =IFERROR(Procesamiento!F15,"") -> 12863.40669 | F51: =+'Procesamiento (2)'!I16 -> 38.83248171 | G51: =+'Procesamiento (2)'!H16 -> 240.4616127 | H51: =+'Procesamiento (2)'!G16 -> 685.3811916 | I51: 964.675286
B52: =IFERROR(IF(Procesamiento!A16=0,"",Procesamiento!A16),"") -> 13 | C52: =IFERROR(Procesamiento!E16,"") -> 2026-12-06 | D52: =IFERROR(Procesamiento!B16,"") -> 30 | E52: =IFERROR(Procesamiento!F16,"") -> 12618.42696 | F52: =+'Procesamiento (2)'!I17 -> 38.11109688 | G52: =+'Procesamiento (2)'!H17 -> 276.1596276 | H52: =+'Procesamiento (2)'!G17 -> 650.4045615 | I52: 964.675286
B53: =IFERROR(IF(Procesamiento!A17=0,"",Procesamiento!A17),"") -> 14 | C53: =IFERROR(Procesamiento!E17,"") -> 2027-01-06 | D53: =IFERROR(Procesamiento!B17,"") -> 31 | E53: =IFERROR(Procesamiento!F17,"") -> 12337.64574 | F53: =+'Procesamiento (2)'!I18 -> 37.28261799 | G53: =+'Procesamiento (2)'!H18 -> 269.3660878 | H53: =+'Procesamiento (2)'!G18 -> 658.0265802 | I53: 964.675286
B54: =IFERROR(IF(Procesamiento!A18=0,"",Procesamiento!A18),"") -> 15 | C54: =IFERROR(Procesamiento!E18,"") -> 2027-02-06 | D54: =IFERROR(Procesamiento!B18,"") -> 31 | E54: =IFERROR(Procesamiento!F18,"") -> 12063.25018 | F54: =+'Procesamiento (2)'!I19 -> 36.47451973 | G54: =+'Procesamiento (2)'!H19 -> 284.4368684 | H54: =+'Procesamiento (2)'!G19 -> 643.7638979 | I54: 964.675286
B55: =IFERROR(IF(Procesamiento!A19=0,"",Procesamiento!A19),"") -> 16 | C55: =IFERROR(Procesamiento!E19,"") -> 2027-03-06 | D55: =IFERROR(Procesamiento!B19,"") -> 28 | E55: =IFERROR(Procesamiento!F19,"") -> 11773.50245 | F55: =+'Procesamiento (2)'!I20 -> 35.62120912 | G55: =+'Procesamiento (2)'!H20 -> 362.620576 | H55: =+'Procesamiento (2)'!G20 -> 566.4335009 | I55: 964.675286
B56: =IFERROR(IF(Procesamiento!A20=0,"",Procesamiento!A20),"") -> 17 | C56: =IFERROR(Procesamiento!E20,"") -> 2027-04-06 | D56: =IFERROR(Procesamiento!B20,"") -> 31 | E56: =IFERROR(Procesamiento!F20,"") -> 11405.79952 | F56: =+'Procesamiento (2)'!I21 -> 34.5333474 | G56: =+'Procesamiento (2)'!H21 -> 320.639127 | H56: =+'Procesamiento (2)'!G21 -> 609.5028116 | I56: 964.675286
B57: =IFERROR(IF(Procesamiento!A21=0,"",Procesamiento!A21),"") -> 18 | C57: =IFERROR(Procesamiento!E21,"") -> 2027-05-06 | D57: =IFERROR(Procesamiento!B21,"") -> 30 | E57: =IFERROR(Procesamiento!F21,"") -> 11079.26804 | F57: =+'Procesamiento (2)'!I22 -> 33.57143002 | G57: =+'Procesamiento (2)'!H22 -> 358.1733185 | H57: =+'Procesamiento (2)'!G22 -> 572.9305375 | I57: 964.675286
B58: =IFERROR(IF(Procesamiento!A22=0,"",Procesamiento!A22),"") -> 19 | C58: =IFERROR(Procesamiento!E22,"") -> 2027-06-06 | D58: =IFERROR(Procesamiento!B22,"") -> 31 | E58: =IFERROR(Procesamiento!F22,"") -> 10715.06742 | F58: =+'Procesamiento (2)'!I23 -> 32.49691006 | G58: =+'Procesamiento (2)'!H23 -> 358.6180482 | H58: =+'Procesamiento (2)'!G23 -> 573.5603277 | I58: 964.675286
B59: =IFERROR(IF(Procesamiento!A23=0,"",Procesamiento!A23),"") -> 20 | C59: =IFERROR(Procesamiento!E23,"") -> 2027-07-06 | D59: =IFERROR(Procesamiento!B23,"") -> 30 | E59: =IFERROR(Procesamiento!F23,"") -> 10349.89012 | F59: =+'Procesamiento (2)'!I24 -> 31.42105592 | G59: =+'Procesamiento (2)'!H24 -> 397.0220098 | H59: =+'Procesamiento (2)'!G24 -> 536.2322203 | I59: 964.675286
B60: =IFERROR(IF(Procesamiento!A24=0,"",Procesamiento!A24),"") -> 21 | C60: =IFERROR(Procesamiento!E24,"") -> 2027-08-06 | D60: =IFERROR(Procesamiento!B24,"") -> 31 | E60: =IFERROR(Procesamiento!F24,"") -> 9946.15864 | F60: =+'Procesamiento (2)'!I25 -> 30.22998989 | G60: =+'Procesamiento (2)'!H25 -> 400.8954025 | H60: =+'Procesamiento (2)'!G25 -> 533.5498937 | I60: 964.675286
B61: =IFERROR(IF(Procesamiento!A25=0,"",Procesamiento!A25),"") -> 22 | C61: =IFERROR(Procesamiento!E25,"") -> 2027-09-06 | D61: =IFERROR(Procesamiento!B25,"") -> 31 | E61: =IFERROR(Procesamiento!F25,"") -> 9537.961614 | F61: =+'Procesamiento (2)'!I26 -> 29.02730368 | G61: =+'Procesamiento (2)'!H26 -> 423.3251252 | H61: =+'Procesamiento (2)'!G26 -> 512.3228572 | I61: 964.675286
B62: =IFERROR(IF(Procesamiento!A26=0,"",Procesamiento!A26),"") -> 23 | C62: =IFERROR(Procesamiento!E26,"") -> 2027-10-06 | D62: =IFERROR(Procesamiento!B26,"") -> 30 | E62: =IFERROR(Procesamiento!F26,"") -> 9106.926345 | F62: =+'Procesamiento (2)'!I27 -> 27.7573283 | G62: =+'Procesamiento (2)'!H27 -> 463.2109689 | H62: =+'Procesamiento (2)'!G27 -> 473.7069889 | I62: 964.675286
B63: =IFERROR(IF(Procesamiento!A27=0,"",Procesamiento!A27),"") -> 24 | C63: =IFERROR(Procesamiento!E27,"") -> 2027-11-06 | D63: =IFERROR(Procesamiento!B27,"") -> 31 | E63: =IFERROR(Procesamiento!F27,"") -> 8635.828659 | F63: =+'Procesamiento (2)'!I28 -> 26.3676954 | G63: =+'Procesamiento (2)'!H28 -> 472.9259902 | H63: =+'Procesamiento (2)'!G28 -> 465.3816004 | I63: 964.675286
B64: =IFERROR(IF(Procesamiento!A28=0,"",Procesamiento!A28),"") -> 25 | C64: =IFERROR(Procesamiento!E28,"") -> 2027-12-06 | D64: =IFERROR(Procesamiento!B28,"") -> 30 | E64: =IFERROR(Procesamiento!F28,"") -> 8154.319896 | F64: =+'Procesamiento (2)'!I29 -> 24.94891743 | G64: =+'Procesamiento (2)'!H29 -> 513.9477627 | H64: =+'Procesamiento (2)'!G29 -> 425.7786059 | I64: 964.675286
B65: =IFERROR(IF(Procesamiento!A29=0,"",Procesamiento!A29),"") -> 26 | C65: =IFERROR(Procesamiento!E29,"") -> 2028-01-06 | D65: =IFERROR(Procesamiento!B29,"") -> 31 | E65: =IFERROR(Procesamiento!F29,"") -> 7631.592802 | F65: =+'Procesamiento (2)'!I30 -> 23.40707414 | G65: =+'Procesamiento (2)'!H30 -> 528.1406533 | H65: =+'Procesamiento (2)'!G30 -> 413.1275586 | I65: 964.675286
B66: =IFERROR(IF(Procesamiento!A30=0,"",Procesamiento!A30),"") -> 27 | C66: =IFERROR(Procesamiento!E30,"") -> 2028-02-06 | D66: =IFERROR(Procesamiento!B30,"") -> 31 | E66: =IFERROR(Procesamiento!F30,"") -> 7093.897982 | F66: =+'Procesamiento (2)'!I31 -> 21.82265218 | G66: =+'Procesamiento (2)'!H31 -> 557.6896287 | H66: =+'Procesamiento (2)'!G31 -> 385.1630051 | I66: 964.675286
B67: =IFERROR(IF(Procesamiento!A31=0,"",Procesamiento!A31),"") -> 28 | C67: =IFERROR(Procesamiento!E31,"") -> 2028-03-06 | D67: =IFERROR(Procesamiento!B31,"") -> 29 | E67: =IFERROR(Procesamiento!F31,"") -> 6526.11964 | F67: =+'Procesamiento (2)'!I32 -> 20.14958329 | G67: =+'Procesamiento (2)'!H32 -> 612.3938135 | H67: =+'Procesamiento (2)'!G32 -> 332.1318893 | I67: 964.675286
B68: =IFERROR(IF(Procesamiento!A32=0,"",Procesamiento!A32),"") -> 29 | C68: =IFERROR(Procesamiento!E32,"") -> 2028-04-06 | D68: =IFERROR(Procesamiento!B32,"") -> 31 | E68: =IFERROR(Procesamiento!F32,"") -> 5903.738921 | F68: =+'Procesamiento (2)'!I33 -> 18.31240185 | G68: =+'Procesamiento (2)'!H33 -> 623.1547026 | H68: =+'Procesamiento (2)'!G33 -> 323.2081816 | I68: 964.675286
B69: =IFERROR(IF(Procesamiento!A33=0,"",Procesamiento!A33),"") -> 30 | C69: =IFERROR(Procesamiento!E33,"") -> 2028-05-06 | D69: =IFERROR(Procesamiento!B33,"") -> 30 | E69: =IFERROR(Procesamiento!F33,"") -> 5269.372293 | F69: =+'Procesamiento (2)'!I34 -> 16.44293774 | G69: =+'Procesamiento (2)'!H34 -> 667.6169216 | H69: =+'Procesamiento (2)'!G34 -> 280.6154267 | I69: 964.675286
B70: =IFERROR(IF(Procesamiento!A34=0,"",Procesamiento!A34),"") -> 31 | C70: =IFERROR(Procesamiento!E34,"") -> 2028-06-06 | D70: =IFERROR(Procesamiento!B34,"") -> 31 | E70: =IFERROR(Procesamiento!F34,"") -> 4590.286677 | F70: =+'Procesamiento (2)'!I35 -> 14.44008698 | G70: =+'Procesamiento (2)'!H35 -> 695.3721673 | H70: =+'Procesamiento (2)'!G35 -> 254.8630317 | I70: 964.675286
B71: =IFERROR(IF(Procesamiento!A35=0,"",Procesamiento!A35),"") -> 32 | C71: =IFERROR(Procesamiento!E35,"") -> 2028-07-06 | D71: =IFERROR(Procesamiento!B35,"") -> 30 | E71: =IFERROR(Procesamiento!F35,"") -> 3882.433624 | F71: =+'Procesamiento (2)'!I36 -> 12.35397048 | G71: =+'Procesamiento (2)'!H36 -> 741.4882667 | H71: =+'Procesamiento (2)'!G36 -> 210.8330489 | I71: 964.675286
B72: =IFERROR(IF(Procesamiento!A36=0,"",Procesamiento!A36),"") -> 33 | C72: =IFERROR(Procesamiento!E36,"") -> 2028-08-06 | D72: =IFERROR(Procesamiento!B36,"") -> 31 | E72: =IFERROR(Procesamiento!F36,"") -> 3128.178643 | F72: =+'Procesamiento (2)'!I37 -> 10.12950568 | G72: =+'Procesamiento (2)'!H37 -> 775.7631642 | H72: =+'Procesamiento (2)'!G37 -> 178.7826161 | I72: 964.675286
B73: =IFERROR(IF(Procesamiento!A37=0,"",Procesamiento!A37),"") -> 34 | C73: =IFERROR(Procesamiento!E37,"") -> 2028-09-06 | D73: =IFERROR(Procesamiento!B37,"") -> 31 | E73: =IFERROR(Procesamiento!F37,"") -> 2338.522014 | F73: =+'Procesamiento (2)'!I38 -> 7.802216184 | G73: =+'Procesamiento (2)'!H38 -> 819.1663875 | H73: =+'Procesamiento (2)'!G38 -> 137.7066824 | I73: 964.675286
B74: =IFERROR(IF(Procesamiento!A38=0,"",Procesamiento!A38),"") -> 35 | C74: =IFERROR(Procesamiento!E38,"") -> 2028-10-06 | D74: =IFERROR(Procesamiento!B38,"") -> 30 | E74: =IFERROR(Procesamiento!F38,"") -> 1504.684836 | F74: =+'Procesamiento (2)'!I39 -> 5.344717022 | G74: =+'Procesamiento (2)'!H39 -> 868.1175467 | H74: =+'Procesamiento (2)'!G39 -> 91.21302234 | I74: 964.675286
B75: =IFERROR(IF(Procesamiento!A39=0,"",Procesamiento!A39),"") -> 36 | C75: =IFERROR(Procesamiento!E39,"") -> 2028-11-06 | D75: =IFERROR(Procesamiento!B39,"") -> 31 | E75: =IFERROR(Procesamiento!F39,"") -> 621.5605162 | F75: =+'Procesamiento (2)'!I40 -> 2.740364382 | G75: =+'Procesamiento (2)'!H40 -> 913.5683449 | H75: =+'Procesamiento (2)'!G40 -> 48.3665767 | I75: 964.675286
B76: =IFERROR(IF(Procesamiento!A40=0,"",Procesamiento!A40),"") ->  | C76: =IFERROR(Procesamiento!E40,"") ->  | D76: =IFERROR(Procesamiento!B40,"") ->  | E76: =IFERROR(Procesamiento!F40,"") -> -308.3390516 | F76: =+'Procesamiento (2)'!I41 -> -0.0003406532217 | G76: =+'Procesamiento (2)'!H41 ->  | H76: =+'Procesamiento (2)'!G41 -> 
B77: =IFERROR(IF(Procesamiento!A41=0,"",Procesamiento!A41),"") ->  | C77: =IFERROR(Procesamiento!E41,"") ->  | D77: =IFERROR(Procesamiento!B41,"") ->  | E77: =IFERROR(Procesamiento!F41,"") ->  | F77: =+'Procesamiento (2)'!I42 ->  | G77: =+'Procesamiento (2)'!H42 ->  | H77: =+'Procesamiento (2)'!G42 -> 
B78: =IFERROR(IF(Procesamiento!A42=0,"",Procesamiento!A42),"") ->  | C78: =IFERROR(Procesamiento!E42,"") ->  | D78: =IFERROR(Procesamiento!B42,"") ->  | E78: =IFERROR(Procesamiento!F42,"") ->  | F78: =+'Procesamiento (2)'!I43 ->  | G78: =+'Procesamiento (2)'!H43 ->  | H78: =+'Procesamiento (2)'!G43 -> 
B79: =IFERROR(IF(Procesamiento!A43=0,"",Procesamiento!A43),"") ->  | C79: =IFERROR(Procesamiento!E43,"") ->  | D79: =IFERROR(Procesamiento!B43,"") ->  | E79: =IFERROR(Procesamiento!F43,"") ->  | F79: =+'Procesamiento (2)'!I44 ->  | G79: =+'Procesamiento (2)'!H44 ->  | H79: =+'Procesamiento (2)'!G44 -> 
B80: =IFERROR(IF(Procesamiento!A44=0,"",Procesamiento!A44),"") ->  | C80: =IFERROR(Procesamiento!E44,"") ->  | D80: =IFERROR(Procesamiento!B44,"") ->  | E80: =IFERROR(Procesamiento!F44,"") ->  | F80: =+'Procesamiento (2)'!I45 ->  | G80: =+'Procesamiento (2)'!H45 ->  | H80: =+'Procesamiento (2)'!G45 -> 
B81: =IFERROR(IF(Procesamiento!A45=0,"",Procesamiento!A45),"") ->  | C81: =IFERROR(Procesamiento!E45,"") ->  | D81: =IFERROR(Procesamiento!B45,"") ->  | E81: =IFERROR(Procesamiento!F45,"") ->  | F81: =+'Procesamiento (2)'!I46 ->  | G81: =+'Procesamiento (2)'!H46 ->  | H81: =+'Procesamiento (2)'!G46 -> 
B82: =IFERROR(IF(Procesamiento!A46=0,"",Procesamiento!A46),"") ->  | C82: =IFERROR(Procesamiento!E46,"") ->  | D82: =IFERROR(Procesamiento!B46,"") ->  | E82: =IFERROR(Procesamiento!F46,"") ->  | F82: =+'Procesamiento (2)'!I47 ->  | G82: =+'Procesamiento (2)'!H47 ->  | H82: =+'Procesamiento (2)'!G47 -> 
B83: =IFERROR(IF(Procesamiento!A47=0,"",Procesamiento!A47),"") ->  | C83: =IFERROR(Procesamiento!E47,"") ->  | D83: =IFERROR(Procesamiento!B47,"") ->  | E83: =IFERROR(Procesamiento!F47,"") ->  | F83: =+'Procesamiento (2)'!I48 ->  | G83: =+'Procesamiento (2)'!H48 ->  | H83: =+'Procesamiento (2)'!G48 -> 
B84: =IFERROR(IF(Procesamiento!A48=0,"",Procesamiento!A48),"") ->  | C84: =IFERROR(Procesamiento!E48,"") ->  | D84: =IFERROR(Procesamiento!B48,"") ->  | E84: =IFERROR(Procesamiento!F48,"") ->  | F84: =+'Procesamiento (2)'!I49 ->  | G84: =+'Procesamiento (2)'!H49 ->  | H84: =+'Procesamiento (2)'!G49 -> 
B85: =IFERROR(IF(Procesamiento!A49=0,"",Procesamiento!A49),"") ->  | C85: =IFERROR(Procesamiento!E49,"") ->  | D85: =IFERROR(Procesamiento!B49,"") ->  | E85: =IFERROR(Procesamiento!F49,"") ->  | F85: =+'Procesamiento (2)'!I50 ->  | G85: =+'Procesamiento (2)'!H50 ->  | H85: =+'Procesamiento (2)'!G50 -> 
B86: =IFERROR(IF(Procesamiento!A50=0,"",Procesamiento!A50),"") ->  | C86: =IFERROR(Procesamiento!E50,"") ->  | D86: =IFERROR(Procesamiento!B50,"") ->  | E86: =IFERROR(Procesamiento!F50,"") ->  | F86: =+'Procesamiento (2)'!I51 ->  | G86: =+'Procesamiento (2)'!H51 ->  | H86: =+'Procesamiento (2)'!G51 -> 
B87: =IFERROR(IF(Procesamiento!A51=0,"",Procesamiento!A51),"") ->  | C87: =IFERROR(Procesamiento!E51,"") ->  | D87: =IFERROR(Procesamiento!B51,"") ->  | E87: =IFERROR(Procesamiento!F51,"") ->  | F87: =+'Procesamiento (2)'!I52 ->  | G87: =+'Procesamiento (2)'!H52 ->  | H87: =+'Procesamiento (2)'!G52 -> 
B88: =IFERROR(IF(Procesamiento!A52=0,"",Procesamiento!A52),"") ->  | C88: =IFERROR(Procesamiento!E52,"") ->  | D88: =IFERROR(Procesamiento!B52,"") ->  | E88: =IFERROR(Procesamiento!F52,"") ->  | F88: =+'Procesamiento (2)'!I53 ->  | G88: =+'Procesamiento (2)'!H53 ->  | H88: =+'Procesamiento (2)'!G53 -> 
B89: =IFERROR(IF(Procesamiento!A53=0,"",Procesamiento!A53),"") ->  | C89: =IFERROR(Procesamiento!E53,"") ->  | D89: =IFERROR(Procesamiento!B53,"") ->  | E89: =IFERROR(Procesamiento!F53,"") ->  | F89: =+'Procesamiento (2)'!I54 ->  | G89: =+'Procesamiento (2)'!H54 ->  | H89: =+'Procesamiento (2)'!G54 -> 
B90: =IFERROR(IF(Procesamiento!A54=0,"",Procesamiento!A54),"") ->  | C90: =IFERROR(Procesamiento!E54,"") ->  | D90: =IFERROR(Procesamiento!B54,"") ->  | E90: =IFERROR(Procesamiento!F54,"") ->  | F90: =+'Procesamiento (2)'!I55 ->  | G90: =+'Procesamiento (2)'!H55 ->  | H90: =+'Procesamiento (2)'!G55 -> 
B91: =IFERROR(IF(Procesamiento!A55=0,"",Procesamiento!A55),"") ->  | C91: =IFERROR(Procesamiento!E55,"") ->  | D91: =IFERROR(Procesamiento!B55,"") ->  | E91: =IFERROR(Procesamiento!F55,"") ->  | F91: =+'Procesamiento (2)'!I56 ->  | G91: =+'Procesamiento (2)'!H56 ->  | H91: =+'Procesamiento (2)'!G56 -> 
B92: =IFERROR(IF(Procesamiento!A56=0,"",Procesamiento!A56),"") ->  | C92: =IFERROR(Procesamiento!E56,"") ->  | D92: =IFERROR(Procesamiento!B56,"") ->  | E92: =IFERROR(Procesamiento!F56,"") ->  | F92: =+'Procesamiento (2)'!I57 ->  | G92: =+'Procesamiento (2)'!H57 ->  | H92: =+'Procesamiento (2)'!G57 -> 
B93: =IFERROR(IF(Procesamiento!A57=0,"",Procesamiento!A57),"") ->  | C93: =IFERROR(Procesamiento!E57,"") ->  | D93: =IFERROR(Procesamiento!B57,"") ->  | E93: =IFERROR(Procesamiento!F57,"") ->  | F93: =+'Procesamiento (2)'!I58 ->  | G93: =+'Procesamiento (2)'!H58 ->  | H93: =+'Procesamiento (2)'!G58 -> 
B94: =IFERROR(IF(Procesamiento!A58=0,"",Procesamiento!A58),"") ->  | C94: =IFERROR(Procesamiento!E58,"") ->  | D94: =IFERROR(Procesamiento!B58,"") ->  | E94: =IFERROR(Procesamiento!F58,"") ->  | F94: =+'Procesamiento (2)'!I59 ->  | G94: =+'Procesamiento (2)'!H59 ->  | H94: =+'Procesamiento (2)'!G59 -> 
B95: =IFERROR(IF(Procesamiento!A59=0,"",Procesamiento!A59),"") ->  | C95: =IFERROR(Procesamiento!E59,"") ->  | D95: =IFERROR(Procesamiento!B59,"") ->  | E95: =IFERROR(Procesamiento!F59,"") ->  | F95: =+'Procesamiento (2)'!I60 ->  | G95: =+'Procesamiento (2)'!H60 ->  | H95: =+'Procesamiento (2)'!G60 -> 
B96: =IFERROR(IF(Procesamiento!A60=0,"",Procesamiento!A60),"") ->  | C96: =IFERROR(Procesamiento!E60,"") ->  | D96: =IFERROR(Procesamiento!B60,"") ->  | E96: =IFERROR(Procesamiento!F60,"") ->  | F96: =+'Procesamiento (2)'!I61 ->  | G96: =+'Procesamiento (2)'!H61 ->  | H96: =+'Procesamiento (2)'!G61 -> 
B97: =IFERROR(IF(Procesamiento!A61=0,"",Procesamiento!A61),"") ->  | C97: =IFERROR(Procesamiento!E61,"") ->  | D97: =IFERROR(Procesamiento!B61,"") ->  | E97: =IFERROR(Procesamiento!F61,"") ->  | F97: =+'Procesamiento (2)'!I62 ->  | G97: =+'Procesamiento (2)'!H62 ->  | H97: =+'Procesamiento (2)'!G62 -> 
B98: =IFERROR(IF(Procesamiento!A62=0,"",Procesamiento!A62),"") ->  | C98: =IFERROR(Procesamiento!E62,"") ->  | D98: =IFERROR(Procesamiento!B62,"") ->  | E98: =IFERROR(Procesamiento!F62,"") ->  | F98: =+'Procesamiento (2)'!I63 ->  | G98: =+'Procesamiento (2)'!H63 ->  | H98: =+'Procesamiento (2)'!G63 -> 
B99: =IFERROR(IF(Procesamiento!A63=0,"",Procesamiento!A63),"") ->  | C99: =IFERROR(Procesamiento!E63,"") ->  | D99: =IFERROR(Procesamiento!B63,"") ->  | E99: =IFERROR(Procesamiento!F63,"") ->  | F99: =+'Procesamiento (2)'!I64 ->  | G99: =+'Procesamiento (2)'!H64 ->  | H99: =+'Procesamiento (2)'!G64 -> 
B100: =IFERROR(IF(Procesamiento!A64=0,"",Procesamiento!A64),"") ->  | C100: =IFERROR(Procesamiento!E64,"") ->  | D100: =IFERROR(Procesamiento!B64,"") ->  | E100: =IFERROR(Procesamiento!F64,"") ->  | F100: =+'Procesamiento (2)'!I65 ->  | G100: =+'Procesamiento (2)'!H65 ->  | H100: =+'Procesamiento (2)'!G65 -> 
B101: =IFERROR(IF(Procesamiento!A65=0,"",Procesamiento!A65),"") ->  | C101: =IFERROR(Procesamiento!E65,"") ->  | D101: =IFERROR(Procesamiento!B65,"") ->  | E101: =IFERROR(Procesamiento!F65,"") ->  | F101: =+'Procesamiento (2)'!I66 ->  | G101: =+'Procesamiento (2)'!H66 ->  | H101: =+'Procesamiento (2)'!G66 -> 
B102: =IFERROR(IF(Procesamiento!A66=0,"",Procesamiento!A66),"") ->  | C102: =IFERROR(Procesamiento!E66,"") ->  | D102: =IFERROR(Procesamiento!B66,"") ->  | E102: =IFERROR(Procesamiento!F66,"") ->  | F102: =+'Procesamiento (2)'!I67 ->  | G102: =+'Procesamiento (2)'!H67 ->  | H102: =+'Procesamiento (2)'!G67 -> 
B103: =IFERROR(IF(Procesamiento!A67=0,"",Procesamiento!A67),"") ->  | C103: =IFERROR(Procesamiento!E67,"") ->  | D103: =IFERROR(Procesamiento!B67,"") ->  | E103: =IFERROR(Procesamiento!F67,"") ->  | F103: =+'Procesamiento (2)'!I68 ->  | G103: =+'Procesamiento (2)'!H68 ->  | H103: =+'Procesamiento (2)'!G68 -> 
B104: =IFERROR(IF(Procesamiento!A68=0,"",Procesamiento!A68),"") ->  | C104: =IFERROR(Procesamiento!E68,"") ->  | D104: =IFERROR(Procesamiento!B68,"") ->  | E104: =IFERROR(Procesamiento!F68,"") ->  | F104: =+'Procesamiento (2)'!I69 ->  | G104: =+'Procesamiento (2)'!H69 ->  | H104: =+'Procesamiento (2)'!G69 -> 
B105: =IFERROR(IF(Procesamiento!A69=0,"",Procesamiento!A69),"") ->  | C105: =IFERROR(Procesamiento!E69,"") ->  | D105: =IFERROR(Procesamiento!B69,"") ->  | E105: =IFERROR(Procesamiento!F69,"") ->  | F105: =+'Procesamiento (2)'!I70 ->  | G105: =+'Procesamiento (2)'!H70 ->  | H105: =+'Procesamiento (2)'!G70 ->  | I105: =+SUM(F105:H105) -> 
B106: =IFERROR(IF(Procesamiento!A70=0,"",Procesamiento!A70),"") ->  | C106: =IFERROR(Procesamiento!E70,"") ->  | D106: =IFERROR(Procesamiento!B70,"") ->  | E106: =IFERROR(Procesamiento!F70,"") ->  | F106: =+'Procesamiento (2)'!I71 ->  | G106: =+'Procesamiento (2)'!H71 ->  | H106: =+'Procesamiento (2)'!G71 -> 
B107: =IFERROR(IF(Procesamiento!A71=0,"",Procesamiento!A71),"") ->  | C107: =IFERROR(Procesamiento!E71,"") ->  | D107: =IFERROR(Procesamiento!B71,"") ->  | E107: =IFERROR(Procesamiento!F71,"") ->  | F107: =+'Procesamiento (2)'!I72 ->  | G107: =+'Procesamiento (2)'!H72 ->  | H107: =+'Procesamiento (2)'!G72 -> 
B108: =IFERROR(IF(Procesamiento!A72=0,"",Procesamiento!A72),"") ->  | C108: =IFERROR(Procesamiento!E72,"") ->  | D108: =IFERROR(Procesamiento!B72,"") ->  | E108: =IFERROR(Procesamiento!F72,"") ->  | F108: =+'Procesamiento (2)'!I73 ->  | G108: =+'Procesamiento (2)'!H73 ->  | H108: =+'Procesamiento (2)'!G73 -> 
B109: =IFERROR(IF(Procesamiento!A73=0,"",Procesamiento!A73),"") ->  | C109: =IFERROR(Procesamiento!E73,"") ->  | D109: =IFERROR(Procesamiento!B73,"") ->  | E109: =IFERROR(Procesamiento!F73,"") ->  | F109: =+'Procesamiento (2)'!I74 ->  | G109: =+'Procesamiento (2)'!H74 ->  | H109: =+'Procesamiento (2)'!G74 -> 
B110: =IFERROR(IF(Procesamiento!A74=0,"",Procesamiento!A74),"") ->  | C110: =IFERROR(Procesamiento!E74,"") ->  | D110: =IFERROR(Procesamiento!B74,"") ->  | E110: =IFERROR(Procesamiento!F74,"") ->  | F110: =+'Procesamiento (2)'!I75 ->  | G110: =+'Procesamiento (2)'!H75 ->  | H110: =+'Procesamiento (2)'!G75 -> 
B111: =IFERROR(IF(Procesamiento!A75=0,"",Procesamiento!A75),"") ->  | C111: =IFERROR(Procesamiento!E75,"") ->  | D111: =IFERROR(Procesamiento!B75,"") ->  | E111: =IFERROR(Procesamiento!F75,"") ->  | F111: =+'Procesamiento (2)'!I76 ->  | G111: =+'Procesamiento (2)'!H76 ->  | H111: =+'Procesamiento (2)'!G76 -> 
B112: =IFERROR(IF(Procesamiento!A76=0,"",Procesamiento!A76),"") ->  | C112: =IFERROR(Procesamiento!E76,"") ->  | D112: =IFERROR(Procesamiento!B76,"") ->  | E112: =IFERROR(Procesamiento!F76,"") ->  | F112: =+'Procesamiento (2)'!I77 ->  | G112: =+'Procesamiento (2)'!H77 ->  | H112: =+'Procesamiento (2)'!G77 -> 
B113: =IFERROR(IF(Procesamiento!A77=0,"",Procesamiento!A77),"") ->  | C113: =IFERROR(Procesamiento!E77,"") ->  | D113: =IFERROR(Procesamiento!B77,"") ->  | E113: =IFERROR(Procesamiento!F77,"") ->  | F113: =+'Procesamiento (2)'!I78 ->  | G113: =+'Procesamiento (2)'!H78 ->  | H113: =+'Procesamiento (2)'!G78 -> 
B114: =IFERROR(IF(Procesamiento!A78=0,"",Procesamiento!A78),"") ->  | C114: =IFERROR(Procesamiento!E78,"") ->  | D114: =IFERROR(Procesamiento!B78,"") ->  | E114: =IFERROR(Procesamiento!F78,"") ->  | F114: =+'Procesamiento (2)'!I79 ->  | G114: =+'Procesamiento (2)'!H79 ->  | H114: =+'Procesamiento (2)'!G79 -> 
B115: =IFERROR(IF(Procesamiento!A79=0,"",Procesamiento!A79),"") ->  | C115: =IFERROR(Procesamiento!E79,"") ->  | D115: =IFERROR(Procesamiento!B79,"") ->  | E115: =IFERROR(Procesamiento!F79,"") ->  | F115: =+'Procesamiento (2)'!I80 ->  | G115: =+'Procesamiento (2)'!H80 ->  | H115: =+'Procesamiento (2)'!G80 -> 
B116: =IFERROR(IF(Procesamiento!A80=0,"",Procesamiento!A80),"") ->  | C116: =IFERROR(Procesamiento!E80,"") ->  | D116: =IFERROR(Procesamiento!B80,"") ->  | E116: =IFERROR(Procesamiento!F80,"") ->  | F116: =+'Procesamiento (2)'!I81 ->  | G116: =+'Procesamiento (2)'!H81 ->  | H116: =+'Procesamiento (2)'!G81 -> 
B117: =IFERROR(IF(Procesamiento!A81=0,"",Procesamiento!A81),"") ->  | C117: =IFERROR(Procesamiento!E81,"") ->  | D117: =IFERROR(Procesamiento!B81,"") ->  | E117: =IFERROR(Procesamiento!F81,"") ->  | F117: =+'Procesamiento (2)'!I82 ->  | G117: =+'Procesamiento (2)'!H82 ->  | H117: =+'Procesamiento (2)'!G82 -> 
B118: =IFERROR(IF(Procesamiento!A82=0,"",Procesamiento!A82),"") ->  | C118: =IFERROR(Procesamiento!E82,"") ->  | D118: =IFERROR(Procesamiento!B82,"") ->  | E118: =IFERROR(Procesamiento!F82,"") ->  | F118: =+'Procesamiento (2)'!I83 ->  | G118: =+'Procesamiento (2)'!H83 ->  | H118: =+'Procesamiento (2)'!G83 -> 
B119: =IFERROR(IF(Procesamiento!A83=0,"",Procesamiento!A83),"") ->  | C119: =IFERROR(Procesamiento!E83,"") ->  | D119: =IFERROR(Procesamiento!B83,"") ->  | E119: =IFERROR(Procesamiento!F83,"") ->  | F119: =+'Procesamiento (2)'!I84 ->  | G119: =+'Procesamiento (2)'!H84 ->  | H119: =+'Procesamiento (2)'!G84 -> 
B120: =IFERROR(IF(Procesamiento!A84=0,"",Procesamiento!A84),"") ->  | C120: =IFERROR(Procesamiento!E84,"") ->  | D120: =IFERROR(Procesamiento!B84,"") ->  | E120: =IFERROR(Procesamiento!F84,"") ->  | F120: =+'Procesamiento (2)'!I85 ->  | G120: =+'Procesamiento (2)'!H85 ->  | H120: =+'Procesamiento (2)'!G85 -> 
B121: =IFERROR(IF(Procesamiento!A85=0,"",Procesamiento!A85),"") ->  | C121: =IFERROR(Procesamiento!E85,"") ->  | D121: =IFERROR(Procesamiento!B85,"") ->  | E121: =IFERROR(Procesamiento!F85,"") ->  | F121: =+'Procesamiento (2)'!I86 ->  | G121: =+'Procesamiento (2)'!H86 ->  | H121: =+'Procesamiento (2)'!G86 -> 
B122: =IFERROR(IF(Procesamiento!A86=0,"",Procesamiento!A86),"") ->  | C122: =IFERROR(Procesamiento!E86,"") ->  | D122: =IFERROR(Procesamiento!B86,"") ->  | E122: =IFERROR(Procesamiento!F86,"") ->  | F122: =+'Procesamiento (2)'!I87 ->  | G122: =+'Procesamiento (2)'!H87 ->  | H122: =+'Procesamiento (2)'!G87 -> 
B123: =IFERROR(IF(Procesamiento!A87=0,"",Procesamiento!A87),"") ->  | C123: =IFERROR(Procesamiento!E87,"") ->  | D123: =IFERROR(Procesamiento!B87,"") ->  | E123: =IFERROR(Procesamiento!F87,"") ->  | F123: =+'Procesamiento (2)'!I88 ->  | G123: =+'Procesamiento (2)'!H88 ->  | H123: =+'Procesamiento (2)'!G88 -> 
B124: =IFERROR(IF(Procesamiento!A88=0,"",Procesamiento!A88),"") ->  | C124: =IFERROR(Procesamiento!E88,"") ->  | D124: =IFERROR(Procesamiento!B88,"") ->  | E124: =IFERROR(Procesamiento!F88,"") ->  | F124: =+'Procesamiento (2)'!I89 ->  | G124: =+'Procesamiento (2)'!H89 ->  | H124: =+'Procesamiento (2)'!G89 -> 
B125: =IFERROR(IF(Procesamiento!A89=0,"",Procesamiento!A89),"") ->  | C125: =IFERROR(Procesamiento!E89,"") ->  | D125: =IFERROR(Procesamiento!B89,"") ->  | E125: =IFERROR(Procesamiento!F89,"") ->  | F125: =+'Procesamiento (2)'!I90 ->  | G125: =+'Procesamiento (2)'!H90 ->  | H125: =+'Procesamiento (2)'!G90 -> 
B126: =IFERROR(IF(Procesamiento!A90=0,"",Procesamiento!A90),"") ->  | C126: =IFERROR(Procesamiento!E90,"") ->  | D126: =IFERROR(Procesamiento!B90,"") ->  | E126: =IFERROR(Procesamiento!F90,"") ->  | F126: =+'Procesamiento (2)'!I91 ->  | G126: =+'Procesamiento (2)'!H91 ->  | H126: =+'Procesamiento (2)'!G91 -> 
B127: =IFERROR(IF(Procesamiento!A91=0,"",Procesamiento!A91),"") ->  | C127: =IFERROR(Procesamiento!E91,"") ->  | D127: =IFERROR(Procesamiento!B91,"") ->  | E127: =IFERROR(Procesamiento!F91,"") ->  | F127: =+'Procesamiento (2)'!I92 ->  | G127: =+'Procesamiento (2)'!H92 ->  | H127: =+'Procesamiento (2)'!G92 -> 
B128: =IFERROR(IF(Procesamiento!A92=0,"",Procesamiento!A92),"") ->  | C128: =IFERROR(Procesamiento!E92,"") ->  | D128: =IFERROR(Procesamiento!B92,"") ->  | E128: =IFERROR(Procesamiento!F92,"") ->  | F128: =+'Procesamiento (2)'!I93 ->  | G128: =+'Procesamiento (2)'!H93 ->  | H128: =+'Procesamiento (2)'!G93 -> 
B129: =IFERROR(IF(Procesamiento!A93=0,"",Procesamiento!A93),"") ->  | C129: =IFERROR(Procesamiento!E93,"") ->  | D129: =IFERROR(Procesamiento!B93,"") ->  | E129: =IFERROR(Procesamiento!F93,"") ->  | F129: =+'Procesamiento (2)'!I94 ->  | G129: =+'Procesamiento (2)'!H94 ->  | H129: =+'Procesamiento (2)'!G94 -> 
B130: =IFERROR(IF(Procesamiento!A94=0,"",Procesamiento!A94),"") ->  | C130: =IFERROR(Procesamiento!E94,"") ->  | D130: =IFERROR(Procesamiento!B94,"") ->  | E130: =IFERROR(Procesamiento!F94,"") ->  | F130: =+'Procesamiento (2)'!I95 ->  | G130: =+'Procesamiento (2)'!H95 ->  | H130: =+'Procesamiento (2)'!G95 -> 
B131: =IFERROR(IF(Procesamiento!A95=0,"",Procesamiento!A95),"") ->  | C131: =IFERROR(Procesamiento!E95,"") ->  | D131: =IFERROR(Procesamiento!B95,"") ->  | E131: =IFERROR(Procesamiento!F95,"") ->  | F131: =+'Procesamiento (2)'!I96 ->  | G131: =+'Procesamiento (2)'!H96 ->  | H131: =+'Procesamiento (2)'!G96 -> 
B132: =IFERROR(IF(Procesamiento!A96=0,"",Procesamiento!A96),"") ->  | C132: =IFERROR(Procesamiento!E96,"") ->  | D132: =IFERROR(Procesamiento!B96,"") ->  | E132: =IFERROR(Procesamiento!F96,"") ->  | F132: =+'Procesamiento (2)'!I97 ->  | G132: =+'Procesamiento (2)'!H97 ->  | H132: =+'Procesamiento (2)'!G97 -> 
B133: =IFERROR(IF(Procesamiento!A97=0,"",Procesamiento!A97),"") ->  | C133: =IFERROR(Procesamiento!E97,"") ->  | D133: =IFERROR(Procesamiento!B97,"") ->  | E133: =IFERROR(Procesamiento!F97,"") ->  | F133: =+'Procesamiento (2)'!I98 ->  | G133: =+'Procesamiento (2)'!H98 ->  | H133: =+'Procesamiento (2)'!G98 -> 
B134: =IFERROR(IF(Procesamiento!A98=0,"",Procesamiento!A98),"") ->  | C134: =IFERROR(Procesamiento!E98,"") ->  | D134: =IFERROR(Procesamiento!B98,"") ->  | E134: =IFERROR(Procesamiento!F98,"") ->  | F134: =+'Procesamiento (2)'!I99 ->  | G134: =+'Procesamiento (2)'!H99 ->  | H134: =+'Procesamiento (2)'!G99 -> 
B135: =IFERROR(IF(Procesamiento!A99=0,"",Procesamiento!A99),"") ->  | C135: =IFERROR(Procesamiento!E99,"") ->  | D135: =IFERROR(Procesamiento!B99,"") ->  | E135: =IFERROR(Procesamiento!F99,"") ->  | F135: =+'Procesamiento (2)'!I100 ->  | G135: =+'Procesamiento (2)'!H100 ->  | H135: =+'Procesamiento (2)'!G100 -> 
B136: =IFERROR(IF(Procesamiento!A100=0,"",Procesamiento!A100),"") ->  | C136: =IFERROR(Procesamiento!E100,"") ->  | D136: =IFERROR(Procesamiento!B100,"") ->  | E136: =IFERROR(Procesamiento!F100,"") ->  | F136: =+'Procesamiento (2)'!I101 ->  | G136: =+'Procesamiento (2)'!H101 ->  | H136: =+'Procesamiento (2)'!G101 -> 
B137: =IFERROR(IF(Procesamiento!A101=0,"",Procesamiento!A101),"") ->  | C137: =IFERROR(Procesamiento!E101,"") ->  | D137: =IFERROR(Procesamiento!B101,"") ->  | E137: =IFERROR(Procesamiento!F101,"") ->  | F137: =+'Procesamiento (2)'!I102 ->  | G137: =+'Procesamiento (2)'!H102 ->  | H137: =+'Procesamiento (2)'!G102 -> 
B138: =IFERROR(IF(Procesamiento!A102=0,"",Procesamiento!A102),"") ->  | C138: =IFERROR(Procesamiento!E102,"") ->  | D138: =IFERROR(Procesamiento!B102,"") ->  | E138: =IFERROR(Procesamiento!F102,"") ->  | F138: =+'Procesamiento (2)'!I103 ->  | G138: =+'Procesamiento (2)'!H103 ->  | H138: =+'Procesamiento (2)'!G103 -> 
B139: =IFERROR(IF(Procesamiento!A103=0,"",Procesamiento!A103),"") ->  | C139: =IFERROR(Procesamiento!E103,"") ->  | D139: =IFERROR(Procesamiento!B103,"") ->  | E139: =IFERROR(Procesamiento!F103,"") ->  | F139: =+'Procesamiento (2)'!I104 ->  | G139: =+'Procesamiento (2)'!H104 ->  | H139: =+'Procesamiento (2)'!G104 -> 
B140: =IFERROR(IF(Procesamiento!A104=0,"",Procesamiento!A104),"") ->  | C140: =IFERROR(Procesamiento!E104,"") ->  | D140: =IFERROR(Procesamiento!B104,"") ->  | E140: =IFERROR(Procesamiento!F104,"") ->  | F140: =+'Procesamiento (2)'!I105 ->  | G140: =+'Procesamiento (2)'!H105 ->  | H140: =+'Procesamiento (2)'!G105 -> 
B141: =IFERROR(IF(Procesamiento!A105=0,"",Procesamiento!A105),"") ->  | C141: =IFERROR(Procesamiento!E105,"") ->  | D141: =IFERROR(Procesamiento!B105,"") ->  | E141: =IFERROR(Procesamiento!F105,"") ->  | F141: =+'Procesamiento (2)'!I106 ->  | G141: =+'Procesamiento (2)'!H106 ->  | H141: =+'Procesamiento (2)'!G106 -> 
B142: =IFERROR(IF(Procesamiento!A106=0,"",Procesamiento!A106),"") ->  | C142: =IFERROR(Procesamiento!E106,"") ->  | D142: =IFERROR(Procesamiento!B106,"") ->  | E142: =IFERROR(Procesamiento!F106,"") ->  | F142: =+'Procesamiento (2)'!I107 ->  | G142: =+'Procesamiento (2)'!H107 ->  | H142: =+'Procesamiento (2)'!G107 -> 
B143: =IFERROR(IF(Procesamiento!A107=0,"",Procesamiento!A107),"") ->  | C143: =IFERROR(Procesamiento!E107,"") ->  | D143: =IFERROR(Procesamiento!B107,"") ->  | E143: =IFERROR(Procesamiento!F107,"") ->  | F143: =+'Procesamiento (2)'!I108 ->  | G143: =+'Procesamiento (2)'!H108 ->  | H143: =+'Procesamiento (2)'!G108 -> 
B144: =IFERROR(IF(Procesamiento!A108=0,"",Procesamiento!A108),"") ->  | C144: =IFERROR(Procesamiento!E108,"") ->  | D144: =IFERROR(Procesamiento!B108,"") ->  | E144: =IFERROR(Procesamiento!F108,"") ->  | F144: =+'Procesamiento (2)'!I109 ->  | G144: =+'Procesamiento (2)'!H109 ->  | H144: =+'Procesamiento (2)'!G109 -> 
B145: =IFERROR(IF(Procesamiento!A109=0,"",Procesamiento!A109),"") ->  | C145: =IFERROR(Procesamiento!E109,"") ->  | D145: =IFERROR(Procesamiento!B109,"") ->  | E145: =IFERROR(Procesamiento!F109,"") ->  | F145: =+'Procesamiento (2)'!I110 ->  | G145: =+'Procesamiento (2)'!H110 ->  | H145: =+'Procesamiento (2)'!G110 -> 
B146: =IFERROR(IF(Procesamiento!A110=0,"",Procesamiento!A110),"") ->  | C146: =IFERROR(Procesamiento!E110,"") ->  | D146: =IFERROR(Procesamiento!B110,"") ->  | E146: =IFERROR(Procesamiento!F110,"") ->  | F146: =+'Procesamiento (2)'!I111 ->  | G146: =+'Procesamiento (2)'!H111 ->  | H146: =+'Procesamiento (2)'!G111 -> 
B147: =IFERROR(IF(Procesamiento!A111=0,"",Procesamiento!A111),"") ->  | C147: =IFERROR(Procesamiento!E111,"") ->  | D147: =IFERROR(Procesamiento!B111,"") ->  | E147: =IFERROR(Procesamiento!F111,"") ->  | F147: =+'Procesamiento (2)'!I112 ->  | G147: =+'Procesamiento (2)'!H112 ->  | H147: =+'Procesamiento (2)'!G112 -> 
B148: =IFERROR(IF(Procesamiento!A112=0,"",Procesamiento!A112),"") ->  | C148: =IFERROR(Procesamiento!E112,"") ->  | D148: =IFERROR(Procesamiento!B112,"") ->  | E148: =IFERROR(Procesamiento!F112,"") ->  | F148: =+'Procesamiento (2)'!I113 ->  | G148: =+'Procesamiento (2)'!H113 ->  | H148: =+'Procesamiento (2)'!G113 -> 
B149: =IFERROR(IF(Procesamiento!A113=0,"",Procesamiento!A113),"") ->  | C149: =IFERROR(Procesamiento!E113,"") ->  | D149: =IFERROR(Procesamiento!B113,"") ->  | E149: =IFERROR(Procesamiento!F113,"") ->  | F149: =+'Procesamiento (2)'!I114 ->  | G149: =+'Procesamiento (2)'!H114 ->  | H149: =+'Procesamiento (2)'!G114 -> 
B150: =IFERROR(IF(Procesamiento!A114=0,"",Procesamiento!A114),"") ->  | C150: =IFERROR(Procesamiento!E114,"") ->  | D150: =IFERROR(Procesamiento!B114,"") ->  | E150: =IFERROR(Procesamiento!F114,"") ->  | F150: =+'Procesamiento (2)'!I115 ->  | G150: =+'Procesamiento (2)'!H115 ->  | H150: =+'Procesamiento (2)'!G115 -> 
B151: =IFERROR(IF(Procesamiento!A115=0,"",Procesamiento!A115),"") ->  | C151: =IFERROR(Procesamiento!E115,"") ->  | D151: =IFERROR(Procesamiento!B115,"") ->  | E151: =IFERROR(Procesamiento!F115,"") ->  | F151: =+'Procesamiento (2)'!I116 ->  | G151: =+'Procesamiento (2)'!H116 ->  | H151: =+'Procesamiento (2)'!G116 -> 
B152: =IFERROR(IF(Procesamiento!A116=0,"",Procesamiento!A116),"") ->  | C152: =IFERROR(Procesamiento!E116,"") ->  | D152: =IFERROR(Procesamiento!B116,"") ->  | E152: =IFERROR(Procesamiento!F116,"") ->  | F152: =+'Procesamiento (2)'!I117 ->  | G152: =+'Procesamiento (2)'!H117 ->  | H152: =+'Procesamiento (2)'!G117 -> 
B153: =IFERROR(IF(Procesamiento!A117=0,"",Procesamiento!A117),"") ->  | C153: =IFERROR(Procesamiento!E117,"") ->  | D153: =IFERROR(Procesamiento!B117,"") ->  | E153: =IFERROR(Procesamiento!F117,"") ->  | F153: =+'Procesamiento (2)'!I118 ->  | G153: =+'Procesamiento (2)'!H118 ->  | H153: =+'Procesamiento (2)'!G118 -> 
B154: =IFERROR(IF(Procesamiento!A118=0,"",Procesamiento!A118),"") ->  | C154: =IFERROR(Procesamiento!E118,"") ->  | D154: =IFERROR(Procesamiento!B118,"") ->  | E154: =IFERROR(Procesamiento!F118,"") ->  | F154: =+'Procesamiento (2)'!I119 ->  | G154: =+'Procesamiento (2)'!H119 ->  | H154: =+'Procesamiento (2)'!G119 -> 
B155: =IFERROR(IF(Procesamiento!A119=0,"",Procesamiento!A119),"") ->  | C155: =IFERROR(Procesamiento!E119,"") ->  | D155: =IFERROR(Procesamiento!B119,"") ->  | E155: =IFERROR(Procesamiento!F119,"") ->  | F155: =+'Procesamiento (2)'!I120 ->  | G155: =+'Procesamiento (2)'!H120 ->  | H155: =+'Procesamiento (2)'!G120 -> 
E156: =IFERROR(Procesamiento!F120,"") ->  | F156: =+'Procesamiento (2)'!I121 ->  | G156: =+'Procesamiento (2)'!H121 ->  | H156: =+'Procesamiento (2)'!G121 -> 
E157: =IFERROR(Procesamiento!F121,"") ->  | F157: =+'Procesamiento (2)'!I122 ->  | G157: =+'Procesamiento (2)'!H122 ->  | H157: =+'Procesamiento (2)'!G122 -> 
E158: =IFERROR(Procesamiento!F122,"") ->  | F158: =+'Procesamiento (2)'!I123 ->  | G158: =+'Procesamiento (2)'!H123 ->  | H158: =+'Procesamiento (2)'!G123 -> 
E159: =IFERROR(Procesamiento!F123,"") ->  | F159: =+'Procesamiento (2)'!I124 ->  | G159: =+'Procesamiento (2)'!H124 ->  | H159: =+'Procesamiento (2)'!G124 -> 
E160: =IFERROR(Procesamiento!F124,"") ->  | F160: =+'Procesamiento (2)'!I125 ->  | G160: =+'Procesamiento (2)'!H125 ->  | H160: =+'Procesamiento (2)'!G125 -> 
E161: =IFERROR(Procesamiento!F125,"") ->  | F161: =+'Procesamiento (2)'!I126 ->  | G161: =+'Procesamiento (2)'!H126 ->  | H161: =+'Procesamiento (2)'!G126 -> 
E162: =IFERROR(Procesamiento!F126,"") ->  | F162: =+'Procesamiento (2)'!I127 ->  | G162: =+'Procesamiento (2)'!H127 ->  | H162: =+'Procesamiento (2)'!G127 -> 
E163: =IFERROR(Procesamiento!F127,"") ->  | F163: =+'Procesamiento (2)'!I128 ->  | G163: =+'Procesamiento (2)'!H128 ->  | H163: =+'Procesamiento (2)'!G128 -> 

Sheet Procesamiento (hidden)
A1: Cronograma
A3: n° Periodo | B3: n° Días | C3: n° días acum | D3: Fecha inicial | E3: Fecha Final | F3: Saldo inicial | G3: i | H3: k | I3: Seguro | J3: Cuota | K3: Saldo Aant | L3: Anticipo | M3: Saldo Final
A4: 1 | B4: =_xlfn.DAYS(E4,D4) -> 29 | C4: =B4 -> 29 | D4: =Simulador!C12 -> 2025-11-07 | E4: =+Simulador!C20 -> 2025-12-06 | F4: =Simulador!C6 -> 14993.27 | G4: =F4*((1+Simulador!$C$10)^B4-1) -> 741.4162892 | H4: =J4-I4-G4 -> 178.2791979 | I4: =F4*Simulador!$F$8 -> 44.97981 | J4: =Simulador!C34 -> 964.6752971 | K4: =F4-H4 -> 14814.9908 | M4: =K4-L4 -> 14814.9908
A5: =IF(OR(A4>Simulador!$C$24,A4=0),0,A4+1) -> 2 | B5: =IFERROR(_xlfn.DAYS(E5,D5),"") -> 31 | C5: =IFERROR(C4+B5,"") -> 60 | D5: =E4 -> 2025-12-06 | E5: =IFERROR(EDATE(D5,1),"") -> 2026-01-06 | F5: =K4 -> 14814.9908 | G5: =F5*((1+Simulador!$C$10)^B5-1) -> 784.4399019 | H5: =J5-I5-G5 -> 135.7904228 | I5: =F5*Simulador!$F$8 -> 44.44497241 | J5: =$J$4 -> 964.6752971 | K5: =F5-H5 -> 14679.20038 | M5: =K5-L5 -> 14679.20038
A6: =IF(OR(A5>Simulador!$C$24,A5=0),0,A5+1) -> 3 | B6: =IFERROR(_xlfn.DAYS(E6,D6),"") -> 31 | C6: =IFERROR(C5+B6,"") -> 91 | D6: =IF(A6<>0,E5,"") -> 2026-01-06 | E6: =IFERROR(EDATE(D6,1),"") -> 2026-02-06 | F6: =K5 -> 14679.20038 | G6: =F6*((1+Simulador!$C$10)^B6-1) -> 777.2499261 | H6: 143.3877699 | I6: =F6*Simulador!$F$8 -> 44.03760114 | J6: =$J$4 -> 964.6752971 | K6: 14535.81261 | M6: =K6-L6 -> 14535.81261
A7: =IF(OR(A6>=Simulador!$C$24,A6=0),0,A6+1) -> 4 | B7: 28 | C7: 119 | D7: =IF(A7<>0,E6,"") -> 2026-02-06 | E7: 2026-03-06 | F7: 14535.81261 | G7: =F7*((1+Simulador!$C$10)^B7-1) -> 693.4271543 | H7: 227.640705 | I7: =F7*Simulador!$F$8 -> 43.60743783 | J7: 964.6752971 | K7: 14308.1719 | M7: 14308.1719
A8: =IF(OR(A7>=Simulador!$C$24,A7=0),0,A7+1) -> 5 | B8: 31 | C8: 150 | D8: 2026-03-06 | E8: 2026-04-06 | F8: 14308.1719 | G8: =F8*((1+Simulador!$C$10)^B8-1) -> 757.6043155 | H8: 164.1464659 | I8: =F8*Simulador!$F$8 -> 42.92451571 | J8: 964.6752971 | K8: 14144.02544 | M8: 14144.02544
A9: =IF(OR(A8>=Simulador!$C$24,A8=0),0,A8+1) -> 6 | B9: 30 | C9: 180 | D9: 2026-04-06 | E9: 2026-05-06 | F9: 14144.02544 | G9: =F9*((1+Simulador!$C$10)^B9-1) -> 724.1464626 | H9: 198.0967582 | I9: =F9*Simulador!$F$8 -> 42.43207632 | J9: 964.6752971 | K9: 13945.92868 | M9: 13945.92868
A10: =IF(OR(A9>=Simulador!$C$24,A9=0),0,A9+1) -> 7 | B10: 31 | C10: 211 | D10: 2026-05-06 | E10: 2026-06-06 | F10: 13945.92868 | G10: =F10*((1+Simulador!$C$10)^B10-1) -> 738.4238757 | H10: 184.4136354 | I10: =F10*Simulador!$F$8 -> 41.83778604 | J10: 964.6752971 | K10: 13761.51504 | M10: 13761.51504
A11: =IF(OR(A10>=Simulador!$C$24,A10=0),0,A10+1) -> 8 | B11: 30 | C11: 241 | D11: 2026-06-06 | E11: 2026-07-06 | F11: 13761.51504 | G11: =F11*((1+Simulador!$C$10)^B11-1) -> 704.562678 | H11: 218.828074 | I11: =F11*Simulador!$F$8 -> 41.28454513 | J11: 964.6752971 | K11: 13542.68697 | M11: 13542.68697
A12: =IF(OR(A11>=Simulador!$C$24,A11=0),0,A11+1) -> 9 | B12: 31 | C12: 272 | D12: 2026-07-06 | E12: 2026-08-06 | F12: 13542.68697 | G12: =F12*((1+Simulador!$C$10)^B12-1) -> 717.0726044 | H12: 206.9746318 | I12: =F12*Simulador!$F$8 -> 40.62806091 | J12: 964.6752971 | K12: 13335.71234 | M12: 13335.71234
A13: =IF(OR(A12>=Simulador!$C$24,A12=0),0,A12+1) -> 10 | B13: 31 | C13: 303 | D13: 2026-08-06 | E13: 2026-09-06 | F13: 13335.71234 | G13: =F13*((1+Simulador!$C$10)^B13-1) -> 706.1134913 | H13: 218.5546688 | I13: =F13*Simulador!$F$8 -> 40.00713702 | J13: 964.6752971 | K13: 13117.15767 | M13: 13117.15767
A14: =IF(OR(A13>=Simulador!$C$24,A13=0),0,A13+1) -> 11 | B14: 30 | C14: 333 | D14: 2026-09-06 | E14: 2026-10-06 | F14: 13117.15767 | G14: =F14*((1+Simulador!$C$10)^B14-1) -> 671.5728396 | H14: 253.7509845 | I14: =F14*Simulador!$F$8 -> 39.35147301 | J14: 964.6752971 | K14: 12863.40669 | M14: 12863.40669
A15: =IF(OR(A14>=Simulador!$C$24,A14=0),0,A14+1) -> 12 | B15: 31 | C15: 364 | D15: 2026-10-06 | E15: 2026-11-06 | F15: 12863.40669 | G15: =F15*((1+Simulador!$C$10)^B15-1) -> 681.1053489 | H15: 244.9797282 | I15: =F15*Simulador!$F$8 -> 38.59022006 | J15: 964.6752971 | K15: 12618.42696 | M15: 12618.42696
A16: =IF(OR(A15>=Simulador!$C$24,A15=0),0,A15+1) -> 13 | B16: 30 | C16: 394 | D16: 2026-11-06 | E16: 2026-12-06 | F16: =K15 -> 12618.42696 | G16: =F16*((1+Simulador!$C$10)^B16-1) -> 646.0388017 | H16: =J16-I16-G16 -> 280.7812145 | I16: =F16*Simulador!$F$8 -> 37.85528087 | J16: 964.6752971 | K16: =F16-H16 -> 12337.64574 | M16: =K16-L16 -> 12337.64574
A17: =IF(OR(A16>=Simulador!$C$24,A16=0),0,A16+1) -> 14 | B17: 31 | C17: 425 | D17: 2026-12-06 | E17: 2027-01-06 | F17: 12337.64574 | G17: =F17*((1+Simulador!$C$10)^B17-1) -> 653.2667989 | H17: 274.395561 | I17: =F17*Simulador!$F$8 -> 37.01293723 | J17: 964.6752971 | K17: 12063.25018 | M17: 12063.25018
A18: =IF(OR(A17>=Simulador!$C$24,A17=0),0,A17+1) -> 15 | B18: 31 | C18: 456 | D18: 2027-01-06 | E18: 2027-02-06 | F18: 12063.25018 | G18: =F18*((1+Simulador!$C$10)^B18-1) -> 638.7378107 | H18: 289.7477359 | I18: =F18*Simulador!$F$8 -> 36.18975055 | J18: 964.6752971 | K18: 11773.50245 | M18: 11773.50245
A19: =IF(OR(A18>=Simulador!$C$24,A18=0),0,A18+1) -> 16 | B19: =IFERROR(_xlfn.DAYS(E19,D19),"") -> 28 | C19: =IFERROR(C18+B19,"") -> 484 | D19: =IF(A19<>0,E18,"") -> 2027-02-06 | E19: 2027-03-06 | F19: =K18 -> 11773.50245 | G19: =F19*((1+Simulador!$C$10)^B19-1) -> 561.6518675 | H19: =J19-I19-G19 -> 367.7029223 | I19: =F19*Simulador!$F$8 -> 35.32050734 | J19: 964.6752971 | K19: =F19-H19 -> 11405.79952 | M19: =K19-L19 -> 11405.79952
A20: =IF(OR(A19>=Simulador!$C$24,A19=0),0,A19+1) -> 17 | B20: 31 | C20: 515 | D20: 2027-03-06 | E20: 2027-04-06 | F20: 11405.79952 | G20: =F20*((1+Simulador!$C$10)^B20-1) -> 603.9264134 | H20: 326.5314851 | I20: =F20*Simulador!$F$8 -> 34.21739857 | J20: 964.6752971 | K20: 11079.26804 | M20: 11079.26804
A21: =IF(OR(A20>=Simulador!$C$24,A20=0),0,A20+1) -> 18 | B21: 30 | C21: 545 | D21: 2027-04-06 | E21: 2027-05-06 | F21: 11079.26804 | G21: =F21*((1+Simulador!$C$10)^B21-1) -> 567.2368728 | H21: 364.2006202 | I21: =F21*Simulador!$F$8 -> 33.23780412 | J21: 964.6752971 | K21: 10715.06742 | M21: 10715.06742
A22: =IF(OR(A21>=Simulador!$C$24,A21=0),0,A21+1) -> 19 | B22: 31 | C22: 576 | D22: 2027-05-06 | E22: 2027-06-06 | F22: 10715.06742 | G22: =F22*((1+Simulador!$C$10)^B22-1) -> 567.3527947 | H22: 365.1773002 | I22: =F22*Simulador!$F$8 -> 32.14520226 | J22: 964.6752971 | K22: 10349.89012 | M22: 10349.89012
A23: =IF(OR(A22>=Simulador!$C$24,A22=0),0,A22+1) -> 20 | B23: 30 | C23: 606 | D23: 2027-06-06 | E23: 2027-07-06 | F23: 10349.89012 | G23: =F23*((1+Simulador!$C$10)^B23-1) -> 529.8941486 | H23: 403.7314781 | I23: =F23*Simulador!$F$8 -> 31.04967036 | J23: 964.6752971 | K23: 9946.15864 | M23: 9946.15864
A24: =IF(OR(A23>=Simulador!$C$24,A23=0),0,A23+1) -> 21 | B24: 31 | C24: 637 | D24: 2027-07-06 | E24: 2027-08-06 | F24: 9946.15864 | G24: =F24*((1+Simulador!$C$10)^B24-1) -> 526.6397943 | H24: 408.1970269 | I24: =F24*Simulador!$F$8 -> 29.83847592 | J24: 964.6752971 | K24: 9537.961614 | M24: 9537.961614
A25: =IF(OR(A24>=Simulador!$C$24,A24=0),0,A24+1) -> 22 | B25: 31 | C25: 668 | D25: 2027-08-06 | E25: 2027-09-06 | F25: 9537.961614 | G25: =F25*((1+Simulador!$C$10)^B25-1) -> 505.0261436 | H25: 431.0352686 | I25: =F25*Simulador!$F$8 -> 28.61388484 | J25: 964.6752971 | K25: 9106.926345 | M25: 9106.926345
A26: =IF(OR(A25>=Simulador!$C$24,A25=0),0,A25+1) -> 23 | B26: 30 | C26: 698 | D26: 2027-09-06 | E26: 2027-10-06 | F26: 9106.926345 | G26: =F26*((1+Simulador!$C$10)^B26-1) -> 466.2568324 | H26: 471.0976857 | I26: =F26*Simulador!$F$8 -> 27.32077903 | J26: 964.6752971 | K26: 8635.828659 | M26: 8635.828659
A27: =IF(OR(A26>=Simulador!$C$24,A26=0),0,A26+1) -> 24 | B27: 31 | C27: 729 | D27: 2027-10-06 | E27: 2027-11-06 | F27: 8635.828659 | G27: =F27*((1+Simulador!$C$10)^B27-1) -> 457.2590477 | H27: 481.5087634 | I27: =F27*Simulador!$F$8 -> 25.90748598 | J27: 964.6752971 | K27: 8154.319896 | M27: 8154.319896
A28: =IF(OR(A27>=Simulador!$C$24,A27=0),0,A27+1) -> 25 | B28: 30 | C28: 759 | D28: 2027-11-06 | E28: 2027-12-06 | F28: 8154.319896 | G28: =F28*((1+Simulador!$C$10)^B28-1) -> 417.4852437 | H28: 522.7270937 | I28: =F28*Simulador!$F$8 -> 24.46295969 | J28: 964.6752971 | K28: 7631.592802 | M28: 7631.592802
A29: =IF(OR(A28>=Simulador!$C$24,A28=0),0,A28+1) -> 26 | B29: 31 | C29: 790 | D29: 2027-12-06 | E29: 2028-01-06 | F29: 7631.592802 | G29: =F29*((1+Simulador!$C$10)^B29-1) -> 404.0856987 | H29: 537.69482 | I29: =F29*Simulador!$F$8 -> 22.89477841 | J29: 964.6752971 | K29: 7093.897982 | M29: 7093.897982
A30: =IF(OR(A29>=Simulador!$C$24,A29=0),0,A29+1) -> 27 | B30: 31 | C30: 821 | D30: 2028-01-06 | E30: 2028-02-06 | F30: 7093.897982 | G30: =F30*((1+Simulador!$C$10)^B30-1) -> 375.615261 | H30: 567.7783421 | I30: =F30*Simulador!$F$8 -> 21.28169395 | J30: 964.6752971 | K30: 6526.11964 | M30: 6526.11964
A31: =IF(OR(A30>=Simulador!$C$24,A30=0),0,A30+1) -> 28 | B31: 29 | C31: 850 | D31: 2028-02-06 | E31: 2028-03-06 | F31: 6526.11964 | G31: =F31*((1+Simulador!$C$10)^B31-1) -> 322.7162191 | H31: 622.3807191 | I31: =F31*Simulador!$F$8 -> 19.57835892 | J31: 964.6752971 | K31: 5903.738921 | M31: 5903.738921
A32: =IF(OR(A31>=Simulador!$C$24,A31=0),0,A31+1) -> 29 | B32: 31 | C32: 881 | D32: 2028-03-06 | E32: 2028-04-06 | F32: 5903.738921 | G32: =F32*((1+Simulador!$C$10)^B32-1) -> 312.5974523 | H32: 634.3666281 | I32: =F32*Simulador!$F$8 -> 17.71121676 | J32: 964.6752971 | K32: 5269.372293 | M32: 5269.372293
A33: =IF(OR(A32>=Simulador!$C$24,A32=0),0,A32+1) -> 30 | B33: 30 | C33: 911 | D33: 2028-04-06 | E33: 2028-05-06 | F33: 5269.372293 | G33: =F33*((1+Simulador!$C$10)^B33-1) -> 269.7815641 | H33: 679.0856161 | I33: =F33*Simulador!$F$8 -> 15.80811688 | J33: 964.6752971 | K33: 4590.286677 | M33: 4590.286677
A34: =IF(OR(A33>=Simulador!$C$24,A33=0),0,A33+1) -> 31 | B34: 31 | C34: 942 | D34: 2028-05-06 | E34: 2028-06-06 | F34: 4590.286677 | G34: =F34*((1+Simulador!$C$10)^B34-1) -> 243.0513848 | H34: 707.8530523 | I34: =F34*Simulador!$F$8 -> 13.77086003 | J34: 964.6752971 | K34: 3882.433624 | M34: 3882.433624
A35: =IF(OR(A34>=Simulador!$C$24,A34=0),0,A34+1) -> 32 | B35: 30 | C35: 972 | D35: 2028-06-06 | E35: 2028-07-06 | F35: 3882.433624 | G35: =F35*((1+Simulador!$C$10)^B35-1) -> 198.7730146 | H35: 754.2549816 | I35: =F35*Simulador!$F$8 -> 11.64730087 | J35: 964.6752971 | K35: 3128.178643 | M35: 3128.178643
A36: =IF(OR(A35>=Simulador!$C$24,A35=0),0,A35+1) -> 33 | B36: 31 | C36: 1003 | D36: 2028-07-06 | E36: 2028-08-06 | F36: 3128.178643 | G36: =F36*((1+Simulador!$C$10)^B36-1) -> 165.6341324 | H36: 789.6566288 | I36: =F36*Simulador!$F$8 -> 9.384535928 | J36: 964.6752971 | K36: 2338.522014 | M36: 2338.522014
A37: =IF(OR(A36>=Simulador!$C$24,A36=0),0,A36+1) -> 34 | B37: 31 | C37: 1034 | D37: 2028-08-06 | E37: 2028-09-06 | F37: 2338.522014 | G37: =F37*((1+Simulador!$C$10)^B37-1) -> 123.8225527 | H37: 833.8371784 | I37: =F37*Simulador!$F$8 -> 7.015566042 | J37: 964.6752971 | K37: 1504.684836 | M37: 1504.684836
A38: =IF(OR(A37>=Simulador!$C$24,A37=0),0,A37+1) -> 35 | B38: 30 | C38: 1064 | D38: 2028-09-06 | E38: 2028-10-06 | F38: 1504.684836 | G38: =F38*((1+Simulador!$C$10)^B38-1) -> 77.03692317 | H38: 883.1243194 | I38: =F38*Simulador!$F$8 -> 4.514054507 | J38: 964.6752971 | K38: 621.5605162 | M38: 621.5605162
A39: =IF(OR(A38>=Simulador!$C$24,A38=0),0,A38+1) -> 36 | B39: 31 | C39: 1095 | D39: 2028-10-06 | E39: 2028-11-06 | F39: 621.5605162 | G39: =F39*((1+Simulador!$C$10)^B39-1) -> 32.91104779 | H39: 929.8995678 | I39: =F39*Simulador!$F$8 -> 1.864681548 | J39: 964.6752971 | K39: -308.3390516 | M39: -308.3390516
A40: =IF(OR(A39>=Simulador!$C$24,A39=0),0,A39+1) -> 0 | F40: -308.3390516 | G40: =F40*((1+Simulador!$C$10)^B40-1) ->  | I40: =F40*Simulador!$F$8 -> -0.9250171548 | J40: 964.6752971
A41: =IF(OR(A40>=Simulador!$C$24,A40=0),0,A40+1) -> 0 | G41: =F41*((1+Simulador!$C$10)^B41-1) ->  | I41: =F41*Simulador!$F$8 ->  | J41: 964.6752971
A42: =IF(OR(A41>=Simulador!$C$24,A41=0),0,A41+1) -> 0 | G42: =F42*((1+Simulador!$C$10)^B42-1) ->  | I42: =F42*Simulador!$F$8 ->  | J42: 964.6752971
A43: =IF(OR(A42>=Simulador!$C$24,A42=0),0,A42+1) -> 0 | G43: =F43*((1+Simulador!$C$10)^B43-1) ->  | I43: =F43*Simulador!$F$8 ->  | J43: 964.6752971
A44: =IF(OR(A43>=Simulador!$C$24,A43=0),0,A43+1) -> 0 | G44: =F44*((1+Simulador!$C$10)^B44-1) ->  | I44: =F44*Simulador!$F$8 ->  | J44: 964.6752971
A45: =IF(OR(A44>=Simulador!$C$24,A44=0),0,A44+1) -> 0 | G45: =F45*((1+Simulador!$C$10)^B45-1) ->  | I45: =F45*Simulador!$F$8 ->  | J45: 964.6752971
A46: =IF(OR(A45>=Simulador!$C$24,A45=0),0,A45+1) -> 0 | G46: =F46*((1+Simulador!$C$10)^B46-1) ->  | I46: =F46*Simulador!$F$8 ->  | J46: 964.6752971
A47: =IF(OR(A46>=Simulador!$C$24,A46=0),0,A46+1) -> 0 | G47: =F47*((1+Simulador!$C$10)^B47-1) ->  | I47: =F47*Simulador!$F$8 ->  | J47: 964.6752971
A48: =IF(OR(A47>=Simulador!$C$24,A47=0),0,A47+1) -> 0 | G48: =F48*((1+Simulador!$C$10)^B48-1) ->  | I48: =F48*Simulador!$F$8 ->  | J48: 964.6752971
A49: =IF(OR(A48>=Simulador!$C$24,A48=0),0,A48+1) -> 0 | G49: =F49*((1+Simulador!$C$10)^B49-1) ->  | I49: =F49*Simulador!$F$8 ->  | J49: 964.6752971
A50: =IF(OR(A49>=Simulador!$C$24,A49=0),0,A49+1) -> 0 | G50: =F50*((1+Simulador!$C$10)^B50-1) ->  | I50: =F50*Simulador!$F$8 ->  | J50: 964.6752971
A51: =IF(OR(A50>=Simulador!$C$24,A50=0),0,A50+1) -> 0 | G51: =F51*((1+Simulador!$C$10)^B51-1) ->  | I51: =F51*Simulador!$F$8 ->  | J51: 964.6752971
A52: =IF(OR(A51>=Simulador!$C$24,A51=0),0,A51+1) -> 0 | G52: =F52*((1+Simulador!$C$10)^B52-1) ->  | I52: =F52*Simulador!$F$8 ->  | J52: 964.6752971
A53: =IF(OR(A52>=Simulador!$C$24,A52=0),0,A52+1) -> 0 | G53: =F53*((1+Simulador!$C$10)^B53-1) ->  | I53: =F53*Simulador!$F$8 ->  | J53: 964.6752971
A54: =IF(OR(A53>=Simulador!$C$24,A53=0),0,A53+1) -> 0 | G54: =F54*((1+Simulador!$C$10)^B54-1) ->  | I54: =F54*Simulador!$F$8 ->  | J54: 964.6752971
A55: =IF(OR(A54>=Simulador!$C$24,A54=0),0,A54+1) -> 0 | G55: =F55*((1+Simulador!$C$10)^B55-1) ->  | I55: =F55*Simulador!$F$8 ->  | J55: 964.6752971
A56: =IF(OR(A55>=Simulador!$C$24,A55=0),0,A55+1) -> 0 | G56: =F56*((1+Simulador!$C$10)^B56-1) ->  | I56: =F56*Simulador!$F$8 ->  | J56: 964.6752971
A57: =IF(OR(A56>=Simulador!$C$24,A56=0),0,A56+1) -> 0 | G57: =F57*((1+Simulador!$C$10)^B57-1) ->  | I57: =F57*Simulador!$F$8 ->  | J57: 964.6752971
A58: =IF(OR(A57>=Simulador!$C$24,A57=0),0,A57+1) -> 0 | G58: =F58*((1+Simulador!$C$10)^B58-1) ->  | I58: =F58*Simulador!$F$8 ->  | J58: 964.6752971
A59: =IF(OR(A58>=Simulador!$C$24,A58=0),0,A58+1) -> 0 | G59: =F59*((1+Simulador!$C$10)^B59-1) ->  | I59: =F59*Simulador!$F$8 ->  | J59: 964.6752971
A60: =IF(OR(A59>=Simulador!$C$24,A59=0),0,A59+1) -> 0 | G60: =F60*((1+Simulador!$C$10)^B60-1) ->  | I60: =F60*Simulador!$F$8 ->  | J60: 964.6752971
A61: =IF(OR(A60>=Simulador!$C$24,A60=0),0,A60+1) -> 0 | G61: =F61*((1+Simulador!$C$10)^B61-1) ->  | I61: =F61*Simulador!$F$8 ->  | J61: 964.6752971
A62: =IF(OR(A61>=Simulador!$C$24,A61=0),0,A61+1) -> 0 | G62: =F62*((1+Simulador!$C$10)^B62-1) ->  | I62: =F62*Simulador!$F$8 ->  | J62: 964.6752971
A63: =IF(OR(A62>=Simulador!$C$24,A62=0),0,A62+1) -> 0 | G63: =F63*((1+Simulador!$C$10)^B63-1) ->  | I63: =F63*Simulador!$F$8 ->  | J63: 964.6752971
A64: =IF(OR(A63>=Simulador!$C$24,A63=0),0,A63+1) -> 0 | G64: =F64*((1+Simulador!$C$10)^B64-1) ->  | I64: =F64*Simulador!$F$8 ->  | J64: 964.6752971
A65: =IF(OR(A64>=Simulador!$C$24,A64=0),0,A64+1) -> 0 | G65: =F65*((1+Simulador!$C$10)^B65-1) ->  | I65: =F65*Simulador!$F$8 ->  | J65: 964.6752971
A66: =IF(OR(A65>=Simulador!$C$24,A65=0),0,A65+1) -> 0 | G66: =F66*((1+Simulador!$C$10)^B66-1) ->  | I66: =F66*Simulador!$F$8 ->  | J66: 964.6752971
A67: =IF(OR(A66>=Simulador!$C$24,A66=0),0,A66+1) -> 0 | G67: =F67*((1+Simulador!$C$10)^B67-1) ->  | I67: =F67*Simulador!$F$8 ->  | J67: 964.6752971
A68: =IF(OR(A67>=Simulador!$C$24,A67=0),0,A67+1) -> 0 | G68: =F68*((1+Simulador!$C$10)^B68-1) ->  | I68: =F68*Simulador!$F$8 ->  | J68: 964.6752971
A69: =IF(OR(A68>=Simulador!$C$24,A68=0),0,A68+1) -> 0 | G69: =F69*((1+Simulador!$C$10)^B69-1) ->  | I69: =F69*Simulador!$F$8 ->  | J69: 964.6752971
A70: =IF(OR(A69>=Simulador!$C$24,A69=0),0,A69+1) -> 0 | E70: =IFERROR(EDATE(D70,1),"") ->  | G70: =F70*((1+Simulador!$C$10)^B70-1) ->  | I70: =F70*Simulador!$F$8 ->  | J70: =$J$4 -> 964.6752971
A71: =IF(OR(A70>=Simulador!$C$24,A70=0),0,A70+1) -> 0 | G71: =F71*((1+Simulador!$C$10)^B71-1) ->  | I71: =F71*Simulador!$F$8 ->  | J71: 964.6752971
A72: =IF(OR(A71>=Simulador!$C$24,A71=0),0,A71+1) -> 0 | G72: =F72*((1+Simulador!$C$10)^B72-1) ->  | I72: =F72*Simulador!$F$8 ->  | J72: 964.6752971
A73: =IF(OR(A72>=Simulador!$C$24,A72=0),0,A72+1) -> 0 | G73: =F73*((1+Simulador!$C$10)^B73-1) ->  | I73: =F73*Simulador!$F$8 ->  | J73: 964.6752971
A74: =IF(OR(A73>=Simulador!$C$24,A73=0),0,A73+1) -> 0 | G74: =F74*((1+Simulador!$C$10)^B74-1) ->  | I74: =F74*Simulador!$F$8 ->  | J74: 964.6752971
A75: =IF(OR(A74>=Simulador!$C$24,A74=0),0,A74+1) -> 0 | G75: =F75*((1+Simulador!$C$10)^B75-1) ->  | I75: =F75*Simulador!$F$8 ->  | J75: 964.6752971
A76: =IF(OR(A75>=Simulador!$C$24,A75=0),0,A75+1) -> 0 | G76: =F76*((1+Simulador!$C$10)^B76-1) ->  | I76: =F76*Simulador!$F$8 ->  | J76: 964.6752971
A77: =IF(OR(A76>=Simulador!$C$24,A76=0),0,A76+1) -> 0 | G77: =F77*((1+Simulador!$C$10)^B77-1) ->  | I77: =F77*Simulador!$F$8 ->  | J77: 964.6752971
A78: =IF(OR(A77>=Simulador!$C$24,A77=0),0,A77+1) -> 0 | G78: =F78*((1+Simulador!$C$10)^B78-1) ->  | I78: =F78*Simulador!$F$8 ->  | J78: 964.6752971
A79: =IF(OR(A78>=Simulador!$C$24,A78=0),0,A78+1) -> 0 | G79: =F79*((1+Simulador!$C$10)^B79-1) ->  | I79: =F79*Simulador!$F$8 ->  | J79: 964.6752971
A80: =IF(OR(A79>=Simulador!$C$24,A79=0),0,A79+1) -> 0 | G80: =F80*((1+Simulador!$C$10)^B80-1) ->  | I80: =F80*Simulador!$F$8 ->  | J80: 964.6752971
A81: =IF(OR(A80>=Simulador!$C$24,A80=0),0,A80+1) -> 0 | G81: =F81*((1+Simulador!$C$10)^B81-1) ->  | I81: =F81*Simulador!$F$8 ->  | J81: 964.6752971
A82: =IF(OR(A81>=Simulador!$C$24,A81=0),0,A81+1) -> 0 | G82: =F82*((1+Simulador!$C$10)^B82-1) ->  | I82: =F82*Simulador!$F$8 ->  | J82: 964.6752971
A83: =IF(OR(A82>=Simulador!$C$24,A82=0),0,A82+1) -> 0 | B83: =IFERROR(_xlfn.DAYS(E83,D83),"") ->  | C83: =IFERROR(C82+B83,"") ->  | D83: =IF(A83<>0,E82,"") ->  | F83: =K82 ->  | G83: =F83*((1+Simulador!$C$10)^B83-1) ->  | H83: =J83-I83-G83 ->  | I83: =F83*Simulador!$F$8 ->  | J83: 964.6752971 | K83: =F83-H83 ->  | M83: =K83-L83 -> 
A84: =IF(OR(A83>=Simulador!$C$24,A83=0),0,A83+1) -> 0 | G84: =F84*((1+Simulador!$C$10)^B84-1) ->  | I84: =F84*Simulador!$F$8 ->  | J84: 964.6752971
A85: =IF(OR(A84>=Simulador!$C$24,A84=0),0,A84+1) -> 0 | G85: =F85*((1+Simulador!$C$10)^B85-1) ->  | I85: =F85*Simulador!$F$8 ->  | J85: 964.6752971
A86: =IF(OR(A85>=Simulador!$C$24,A85=0),0,A85+1) -> 0 | G86: =F86*((1+Simulador!$C$10)^B86-1) ->  | I86: =F86*Simulador!$F$8 ->  | J86: 964.6752971
A87: =IF(OR(A86>=Simulador!$C$24,A86=0),0,A86+1) -> 0 | G87: =F87*((1+Simulador!$C$10)^B87-1) ->  | I87: =F87*Simulador!$F$8 ->  | J87: 964.6752971
A88: =IF(OR(A87>=Simulador!$C$24,A87=0),0,A87+1) -> 0 | G88: =F88*((1+Simulador!$C$10)^B88-1) ->  | I88: =F88*Simulador!$F$8 ->  | J88: 964.6752971
A89: =IF(OR(A88>=Simulador!$C$24,A88=0),0,A88+1) -> 0 | G89: =F89*((1+Simulador!$C$10)^B89-1) ->  | I89: =F89*Simulador!$F$8 ->  | J89: 964.6752971
A90: =IF(OR(A89>=Simulador!$C$24,A89=0),0,A89+1) -> 0 | G90: =F90*((1+Simulador!$C$10)^B90-1) ->  | I90: =F90*Simulador!$F$8 ->  | J90: 964.6752971
A91: =IF(OR(A90>=Simulador!$C$24,A90=0),0,A90+1) -> 0 | G91: =F91*((1+Simulador!$C$10)^B91-1) ->  | I91: =F91*Simulador!$F$8 ->  | J91: 964.6752971
A92: =IF(OR(A91>=Simulador!$C$24,A91=0),0,A91+1) -> 0 | G92: =F92*((1+Simulador!$C$10)^B92-1) ->  | I92: =F92*Simulador!$F$8 ->  | J92: 964.6752971
A93: =IF(OR(A92>=Simulador!$C$24,A92=0),0,A92+1) -> 0 | G93: =F93*((1+Simulador!$C$10)^B93-1) ->  | I93: =F93*Simulador!$F$8 ->  | J93: 964.6752971
A94: =IF(OR(A93>=Simulador!$C$24,A93=0),0,A93+1) -> 0 | G94: =F94*((1+Simulador!$C$10)^B94-1) ->  | I94: =F94*Simulador!$F$8 ->  | J94: 964.6752971
A95: =IF(OR(A94>=Simulador!$C$24,A94=0),0,A94+1) -> 0 | G95: =F95*((1+Simulador!$C$10)^B95-1) ->  | I95: =F95*Simulador!$F$8 ->  | J95: 964.6752971
A96: =IF(OR(A95>=Simulador!$C$24,A95=0),0,A95+1) -> 0 | G96: =F96*((1+Simulador!$C$10)^B96-1) ->  | I96: =F96*Simulador!$F$8 ->  | J96: 964.6752971
A97: =IF(OR(A96>=Simulador!$C$24,A96=0),0,A96+1) -> 0 | G97: =F97*((1+Simulador!$C$10)^B97-1) ->  | I97: =F97*Simulador!$F$8 ->  | J97: 964.6752971
A98: =IF(OR(A97>=Simulador!$C$24,A97=0),0,A97+1) -> 0 | G98: =F98*((1+Simulador!$C$10)^B98-1) ->  | I98: =F98*Simulador!$F$8 ->  | J98: 964.6752971
A99: =IF(OR(A98>=Simulador!$C$24,A98=0),0,A98+1) -> 0 | G99: =F99*((1+Simulador!$C$10)^B99-1) ->  | I99: =F99*Simulador!$F$8 ->  | J99: 964.6752971
A100: =IF(OR(A99>=Simulador!$C$24,A99=0),0,A99+1) -> 0 | G100: =F100*((1+Simulador!$C$10)^B100-1) ->  | I100: =F100*Simulador!$F$8 ->  | J100: 964.6752971
A101: =IF(OR(A100>=Simulador!$C$24,A100=0),0,A100+1) -> 0 | G101: =F101*((1+Simulador!$C$10)^B101-1) ->  | I101: =F101*Simulador!$F$8 ->  | J101: 964.6752971
A102: =IF(OR(A101>=Simulador!$C$24,A101=0),0,A101+1) -> 0 | G102: =F102*((1+Simulador!$C$10)^B102-1) ->  | I102: =F102*Simulador!$F$8 ->  | J102: 964.6752971
A103: =IF(OR(A102>=Simulador!$C$24,A102=0),0,A102+1) -> 0 | G103: =F103*((1+Simulador!$C$10)^B103-1) ->  | I103: =F103*Simulador!$F$8 ->  | J103: 964.6752971
A104: =IF(OR(A103>=Simulador!$C$24,A103=0),0,A103+1) -> 0 | G104: =F104*((1+Simulador!$C$10)^B104-1) ->  | I104: =F104*Simulador!$F$8 ->  | J104: 964.6752971
A105: =IF(OR(A104>=Simulador!$C$24,A104=0),0,A104+1) -> 0 | G105: =F105*((1+Simulador!$C$10)^B105-1) ->  | I105: =F105*Simulador!$F$8 ->  | J105: 964.6752971
A106: =IF(OR(A105>=Simulador!$C$24,A105=0),0,A105+1) -> 0 | G106: =F106*((1+Simulador!$C$10)^B106-1) ->  | I106: =F106*Simulador!$F$8 ->  | J106: 964.6752971
A107: =IF(OR(A106>=Simulador!$C$24,A106=0),0,A106+1) -> 0 | G107: =F107*((1+Simulador!$C$10)^B107-1) ->  | I107: =F107*Simulador!$F$8 ->  | J107: 964.6752971
A108: =IF(OR(A107>=Simulador!$C$24,A107=0),0,A107+1) -> 0 | G108: =F108*((1+Simulador!$C$10)^B108-1) ->  | I108: =F108*Simulador!$F$8 ->  | J108: 964.6752971
A109: =IF(OR(A108>=Simulador!$C$24,A108=0),0,A108+1) -> 0 | G109: =F109*((1+Simulador!$C$10)^B109-1) ->  | I109: =F109*Simulador!$F$8 ->  | J109: 964.6752971
A110: =IF(OR(A109>=Simulador!$C$24,A109=0),0,A109+1) -> 0 | G110: =F110*((1+Simulador!$C$10)^B110-1) ->  | I110: =F110*Simulador!$F$8 ->  | J110: 964.6752971
A111: =IF(OR(A110>=Simulador!$C$24,A110=0),0,A110+1) -> 0 | G111: =F111*((1+Simulador!$C$10)^B111-1) ->  | I111: =F111*Simulador!$F$8 ->  | J111: 964.6752971
A112: =IF(OR(A111>=Simulador!$C$24,A111=0),0,A111+1) -> 0 | G112: =F112*((1+Simulador!$C$10)^B112-1) ->  | I112: =F112*Simulador!$F$8 ->  | J112: 964.6752971
A113: =IF(OR(A112>=Simulador!$C$24,A112=0),0,A112+1) -> 0 | G113: =F113*((1+Simulador!$C$10)^B113-1) ->  | I113: =F113*Simulador!$F$8 ->  | J113: 964.6752971
A114: =IF(OR(A113>=Simulador!$C$24,A113=0),0,A113+1) -> 0 | G114: =F114*((1+Simulador!$C$10)^B114-1) ->  | I114: =F114*Simulador!$F$8 ->  | J114: 964.6752971
A115: =IF(OR(A114>=Simulador!$C$24,A114=0),0,A114+1) -> 0 | G115: =F115*((1+Simulador!$C$10)^B115-1) ->  | I115: =F115*Simulador!$F$8 ->  | J115: 964.6752971
A116: =IF(OR(A115>=Simulador!$C$24,A115=0),0,A115+1) -> 0 | G116: =F116*((1+Simulador!$C$10)^B116-1) ->  | I116: =F116*Simulador!$F$8 ->  | J116: 964.6752971
A117: =IF(OR(A116>=Simulador!$C$24,A116=0),0,A116+1) -> 0 | G117: =F117*((1+Simulador!$C$10)^B117-1) ->  | I117: =F117*Simulador!$F$8 ->  | J117: 964.6752971
A118: =IF(OR(A117>=Simulador!$C$24,A117=0),0,A117+1) -> 0 | G118: =F118*((1+Simulador!$C$10)^B118-1) ->  | I118: =F118*Simulador!$F$8 ->  | J118: 964.6752971
A119: =IF(OR(A118>=Simulador!$C$24,A118=0),0,A118+1) -> 0 | G119: =F119*((1+Simulador!$C$10)^B119-1) ->  | I119: =F119*Simulador!$F$8 ->  | J119: 964.6752971
A120: =IF(OR(A119>=Simulador!$C$24,A119=0),0,A119+1) -> 0 | G120: =F120*((1+Simulador!$C$10)^B120-1) ->  | I120: =F120*Simulador!$F$8 ->  | J120: 964.6752971
A121: =IF(OR(A120>=Simulador!$C$24,A120=0),0,A120+1) -> 0 | G121: =F121*((1+Simulador!$C$10)^B121-1) ->  | I121: =F121*Simulador!$F$8 ->  | J121: 964.6752971
A122: =IF(OR(A121>=Simulador!$C$24,A121=0),0,A121+1) -> 0 | G122: =F122*((1+Simulador!$C$10)^B122-1) ->  | I122: =F122*Simulador!$F$8 ->  | J122: 964.6752971
A123: =IF(OR(A122>=Simulador!$C$24,A122=0),0,A122+1) -> 0 | G123: =F123*((1+Simulador!$C$10)^B123-1) ->  | I123: =F123*Simulador!$F$8 ->  | J123: 964.6752971
A124: =IF(OR(A123>=Simulador!$C$24,A123=0),0,A123+1) -> 0 | G124: =F124*((1+Simulador!$C$10)^B124-1) ->  | I124: =F124*Simulador!$F$8 ->  | J124: 964.6752971
A125: =IF(OR(A124>=Simulador!$C$24,A124=0),0,A124+1) -> 0 | G125: =F125*((1+Simulador!$C$10)^B125-1) ->  | I125: =F125*Simulador!$F$8 ->  | J125: 964.6752971
A126: =IF(OR(A125>=Simulador!$C$24,A125=0),0,A125+1) -> 0 | G126: =F126*((1+Simulador!$C$10)^B126-1) ->  | I126: =F126*Simulador!$F$8 ->  | J126: 964.6752971
A127: =IF(OR(A126>=Simulador!$C$24,A126=0),0,A126+1) -> 0 | G127: =F127*((1+Simulador!$C$10)^B127-1) ->  | I127: =F127*Simulador!$F$8 ->  | J127: 964.6752971
A128: =IF(OR(A127>=Simulador!$C$24,A127=0),0,A127+1) -> 0 | G128: =F128*((1+Simulador!$C$10)^B128-1) ->  | I128: =F128*Simulador!$F$8 ->  | J128: 964.6752971
A129: =IF(OR(A128>=Simulador!$C$24,A128=0),0,A128+1) -> 0 | G129: =F129*((1+Simulador!$C$10)^B129-1) ->  | I129: =F129*Simulador!$F$8 ->  | J129: 964.6752971
A130: =IF(OR(A129>=Simulador!$C$24,A129=0),0,A129+1) -> 0 | G130: =F130*((1+Simulador!$C$10)^B130-1) ->  | I130: =F130*Simulador!$F$8 ->  | J130: 964.6752971
A131: =IF(OR(A130>=Simulador!$C$24,A130=0),0,A130+1) -> 0 | G131: =F131*((1+Simulador!$C$10)^B131-1) ->  | I131: =F131*Simulador!$F$8 ->  | J131: 964.6752971
A132: =IF(OR(A131>=Simulador!$C$24,A131=0),0,A131+1) -> 0 | G132: =F132*((1+Simulador!$C$10)^B132-1) ->  | I132: =F132*Simulador!$F$8 ->  | J132: 964.6752971
A133: =IF(OR(A132>=Simulador!$C$24,A132=0),0,A132+1) -> 0 | G133: =F133*((1+Simulador!$C$10)^B133-1) ->  | I133: =F133*Simulador!$F$8 ->  | J133: 964.6752971
A134: =IF(OR(A133>=Simulador!$C$24,A133=0),0,A133+1) -> 0 | E134: =IFERROR(EDATE(D134,1),"") ->  | G134: =F134*((1+Simulador!$C$10)^B134-1) ->  | I134: =F134*Simulador!$F$8 ->  | J134: =$J$4 -> 964.6752971
A135: =IF(OR(A134>=Simulador!$C$24,A134=0),0,A134+1) -> 0 | G135: =F135*((1+Simulador!$C$10)^B135-1) ->  | I135: =F135*Simulador!$F$8 ->  | J135: 964.6752971
A136: =IF(OR(A135>=Simulador!$C$24,A135=0),0,A135+1) -> 0 | G136: =F136*((1+Simulador!$C$10)^B136-1) ->  | I136: =F136*Simulador!$F$8 ->  | J136: 964.6752971
A137: =IF(OR(A136>=Simulador!$C$24,A136=0),0,A136+1) -> 0 | G137: =F137*((1+Simulador!$C$10)^B137-1) ->  | I137: =F137*Simulador!$F$8 ->  | J137: 964.6752971
A138: =IF(OR(A137>=Simulador!$C$24,A137=0),0,A137+1) -> 0 | G138: =F138*((1+Simulador!$C$10)^B138-1) ->  | I138: =F138*Simulador!$F$8 ->  | J138: 964.6752971
A139: =IF(OR(A138>=Simulador!$C$24,A138=0),0,A138+1) -> 0 | G139: =F139*((1+Simulador!$C$10)^B139-1) ->  | I139: =F139*Simulador!$F$8 ->  | J139: 964.6752971
A140: =IF(OR(A139>=Simulador!$C$24,A139=0),0,A139+1) -> 0 | G140: =F140*((1+Simulador!$C$10)^B140-1) ->  | I140: =F140*Simulador!$F$8 ->  | J140: 964.6752971
A141: =IF(OR(A140>=Simulador!$C$24,A140=0),0,A140+1) -> 0 | G141: =F141*((1+Simulador!$C$10)^B141-1) ->  | I141: =F141*Simulador!$F$8 ->  | J141: 964.6752971
A142: =IF(OR(A141>=Simulador!$C$24,A141=0),0,A141+1) -> 0 | G142: =F142*((1+Simulador!$C$10)^B142-1) ->  | I142: =F142*Simulador!$F$8 ->  | J142: 964.6752971
A143: =IF(OR(A142>=Simulador!$C$24,A142=0),0,A142+1) -> 0 | G143: =F143*((1+Simulador!$C$10)^B143-1) ->  | I143: =F143*Simulador!$F$8 ->  | J143: 964.6752971
A144: =IF(OR(A143>=Simulador!$C$24,A143=0),0,A143+1) -> 0 | G144: =F144*((1+Simulador!$C$10)^B144-1) ->  | I144: =F144*Simulador!$F$8 ->  | J144: 964.6752971
A145: =IF(OR(A144>=Simulador!$C$24,A144=0),0,A144+1) -> 0 | G145: =F145*((1+Simulador!$C$10)^B145-1) ->  | I145: =F145*Simulador!$F$8 ->  | J145: 964.6752971
A146: =IF(OR(A145>=Simulador!$C$24,A145=0),0,A145+1) -> 0 | G146: =F146*((1+Simulador!$C$10)^B146-1) ->  | I146: =F146*Simulador!$F$8 ->  | J146: 964.6752971
A147: =IF(OR(A146>=Simulador!$C$24,A146=0),0,A146+1) -> 0 | B147: =IFERROR(_xlfn.DAYS(E147,D147),"") ->  | C147: =IFERROR(C146+B147,"") ->  | D147: =IF(A147<>0,E146,"") ->  | F147: =K146 ->  | G147: =F147*((1+Simulador!$C$10)^B147-1) ->  | H147: =J147-I147-G147 ->  | I147: =F147*Simulador!$F$8 ->  | J147: 964.6752971 | K147: =F147-H147 ->  | M147: =K147-L147 -> 
A148: =IF(OR(A147>=Simulador!$C$24,A147=0),0,A147+1) -> 0 | G148: =F148*((1+Simulador!$C$10)^B148-1) ->  | I148: =F148*Simulador!$F$8 ->  | J148: 964.6752971
A149: =IF(OR(A148>=Simulador!$C$24,A148=0),0,A148+1) -> 0 | G149: =F149*((1+Simulador!$C$10)^B149-1) ->  | I149: =F149*Simulador!$F$8 ->  | J149: 964.6752971
A150: =IF(OR(A149>=Simulador!$C$24,A149=0),0,A149+1) -> 0 | G150: =F150*((1+Simulador!$C$10)^B150-1) ->  | I150: =F150*Simulador!$F$8 ->  | J150: 964.6752971
A151: =IF(OR(A150>=Simulador!$C$24,A150=0),0,A150+1) -> 0 | G151: =F151*((1+Simulador!$C$10)^B151-1) ->  | I151: =F151*Simulador!$F$8 ->  | J151: 964.6752971
A152: =IF(OR(A151>=Simulador!$C$24,A151=0),0,A151+1) -> 0 | G152: =F152*((1+Simulador!$C$10)^B152-1) ->  | I152: =F152*Simulador!$F$8 ->  | J152: 964.6752971
A153: =IF(OR(A152>=Simulador!$C$24,A152=0),0,A152+1) -> 0 | G153: =F153*((1+Simulador!$C$10)^B153-1) ->  | I153: =F153*Simulador!$F$8 ->  | J153: 964.6752971
A154: =IF(OR(A153>=Simulador!$C$24,A153=0),0,A153+1) -> 0 | G154: =F154*((1+Simulador!$C$10)^B154-1) ->  | I154: =F154*Simulador!$F$8 ->  | J154: 964.6752971
A155: =IF(OR(A154>=Simulador!$C$24,A154=0),0,A154+1) -> 0 | G155: =F155*((1+Simulador!$C$10)^B155-1) ->  | I155: =F155*Simulador!$F$8 ->  | J155: 964.6752971
A156: =IF(OR(A155>=Simulador!$C$24,A155=0),0,A155+1) -> 0 | G156: =F156*((1+Simulador!$C$10)^B156-1) ->  | I156: =F156*Simulador!$F$8 ->  | J156: 964.6752971
A157: =IF(OR(A156>=Simulador!$C$24,A156=0),0,A156+1) -> 0 | G157: =F157*((1+Simulador!$C$10)^B157-1) ->  | I157: =F157*Simulador!$F$8 ->  | J157: 964.6752971
A158: =IF(OR(A157>=Simulador!$C$24,A157=0),0,A157+1) -> 0 | G158: =F158*((1+Simulador!$C$10)^B158-1) ->  | I158: =F158*Simulador!$F$8 ->  | J158: 964.6752971
A159: =IF(OR(A158>=Simulador!$C$24,A158=0),0,A158+1) -> 0 | G159: =F159*((1+Simulador!$C$10)^B159-1) ->  | I159: =F159*Simulador!$F$8 ->  | J159: 964.6752971
A160: =IF(OR(A159>=Simulador!$C$24,A159=0),0,A159+1) -> 0 | G160: =F160*((1+Simulador!$C$10)^B160-1) ->  | I160: =F160*Simulador!$F$8 ->  | J160: 964.6752971
A161: =IF(OR(A160>=Simulador!$C$24,A160=0),0,A160+1) -> 0 | G161: =F161*((1+Simulador!$C$10)^B161-1) ->  | I161: =F161*Simulador!$F$8 ->  | J161: 964.6752971
A162: =IF(OR(A161>=Simulador!$C$24,A161=0),0,A161+1) -> 0 | G162: =F162*((1+Simulador!$C$10)^B162-1) ->  | I162: =F162*Simulador!$F$8 ->  | J162: 964.6752971
A163: =IF(OR(A162>=Simulador!$C$24,A162=0),0,A162+1) -> 0 | G163: =F163*((1+Simulador!$C$10)^B163-1) ->  | I163: =F163*Simulador!$F$8 ->  | J163: 964.6752971
A164: =IF(OR(A163>=Simulador!$C$24,A163=0),0,A163+1) -> 0 | G164: =F164*((1+Simulador!$C$10)^B164-1) ->  | I164: =F164*Simulador!$F$8 ->  | J164: 964.6752971
G165: =F165*((1+Simulador!$C$10)^B165-1) ->  | I165: =F165*Simulador!$F$8 ->  | J165: 964.6752971
G166: =F166*((1+Simulador!$C$10)^B166-1) ->  | I166: =F166*Simulador!$F$8 ->  | J166: 964.6752971
G167: =F167*((1+Simulador!$C$10)^B167-1) ->  | I167: =F167*Simulador!$F$8 ->  | J167: 964.6752971
G168: =F168*((1+Simulador!$C$10)^B168-1) ->  | I168: =F168*Simulador!$F$8 ->  | J168: 964.6752971
G169: =F169*((1+Simulador!$C$10)^B169-1) ->  | I169: =F169*Simulador!$F$8 ->  | J169: 964.6752971
G170: =F170*((1+Simulador!$C$10)^B170-1) ->  | I170: =F170*Simulador!$F$8 ->  | J170: 964.6752971
G171: =F171*((1+Simulador!$C$10)^B171-1) ->  | I171: =F171*Simulador!$F$8 ->  | J171: 964.6752971
G172: =F172*((1+Simulador!$C$10)^B172-1) ->  | I172: =F172*Simulador!$F$8 ->  | J172: 964.6752971
G173: =F173*((1+Simulador!$C$10)^B173-1) ->  | I173: =F173*Simulador!$F$8 ->  | J173: 964.6752971
G174: =F174*((1+Simulador!$C$10)^B174-1) ->  | I174: =F174*Simulador!$F$8 ->  | J174: 964.6752971
G175: =F175*((1+Simulador!$C$10)^B175-1) ->  | I175: =F175*Simulador!$F$8 ->  | J175: 964.6752971
G176: =F176*((1+Simulador!$C$10)^B176-1) ->  | I176: =F176*Simulador!$F$8 ->  | J176: 964.6752971
G177: =F177*((1+Simulador!$C$10)^B177-1) ->  | I177: =F177*Simulador!$F$8 ->  | J177: 964.6752971
G178: =F178*((1+Simulador!$C$10)^B178-1) ->  | I178: =F178*Simulador!$F$8 ->  | J178: 964.6752971
G179: =F179*((1+Simulador!$C$10)^B179-1) ->  | I179: =F179*Simulador!$F$8 ->  | J179: 964.6752971
G180: =F180*((1+Simulador!$C$10)^B180-1) ->  | I180: =F180*Simulador!$F$8 ->  | J180: 964.6752971
G181: =F181*((1+Simulador!$C$10)^B181-1) ->  | I181: =F181*Simulador!$F$8 ->  | J181: 964.6752971
G182: =F182*((1+Simulador!$C$10)^B182-1) ->  | I182: =F182*Simulador!$F$8 ->  | J182: 964.6752971
G183: =F183*((1+Simulador!$C$10)^B183-1) ->  | I183: =F183*Simulador!$F$8 ->  | J183: 964.6752971
G184: =F184*((1+Simulador!$C$10)^B184-1) ->  | I184: =F184*Simulador!$F$8 ->  | J184: 964.6752971
G185: =F185*((1+Simulador!$C$10)^B185-1) ->  | I185: =F185*Simulador!$F$8 ->  | J185: 964.6752971

Sheet Con gracia (hidden)
A1: Cronograma
A3: n° Periodo | B3: n° Días | C3: n° días acum | D3: Fecha inicial | E3: Fecha Final | F3: Saldo inicial | G3: i | H3: k | I3: Seguro | J3: Cuota | K3: Saldo Aant | L3: Anticipo | M3: Saldo Final
A4: 0
A5: 0
A6: 1 | B6: =_xlfn.DAYS(E6,D6) -> 29 | C6: =B6 -> 29 | D6: =Simulador!C12 -> 2025-11-07 | E6: =IFERROR(Simulador!C20,"") -> 2025-12-06 | F6: =Simulador!C6 -> 14993.27 | G6: =F6*((1+Simulador!$C$10)^B6-1) -> 741.4162892 | H6: =J6-I6-G6 -> 178.2791979 | I6: =F6*Simulador!$F$8 -> 44.97981 | J6: =Simulador!C34 -> 964.6752971 | K6: =F6-H6 -> 14814.9908 | M6: =K6-L6 -> 14814.9908
A7: =IF(OR(A6>Simulador!$C$24,A6=0),0,A6+1) -> 2 | B7: =IFERROR(_xlfn.DAYS(E7,D7),"") -> 31 | C7: =IFERROR(C6+B7,"") -> 60 | D7: =E6 -> 2025-12-06 | E7: =IFERROR(EDATE(D7,1),"") -> 2026-01-06 | F7: =K6 -> 14814.9908 | G7: =F7*((1+Simulador!$C$10)^B7-1) -> 784.4399019 | H7: =J7-I7-G7 -> 135.7904228 | I7: =F7*Simulador!$F$8 -> 44.44497241 | J7: =$J$6 -> 964.6752971 | K7: =F7-H7 -> 14679.20038 | M7: =K7-L7 -> 14679.20038
A8: =IF(OR(A7>Simulador!$C$24,A7=0),0,A7+1) -> 3 | B8: =IFERROR(_xlfn.DAYS(E8,D8),"") -> 31 | C8: =IFERROR(C7+B8,"") -> 91 | D8: =IF(A8<>0,E7,"") -> 2026-01-06 | E8: =IFERROR(EDATE(D8,1),"") -> 2026-02-06 | F8: =K7 -> 14679.20038 | G8: =F8*((1+Simulador!$C$10)^B8-1) -> 777.2499261 | H8: 143.3877699 | I8: =F8*Simulador!$F$8 -> 44.03760114 | J8: =$J$6 -> 964.6752971 | K8: 14535.81261 | M8: =K8-L8 -> 14535.81261
A9: =IF(OR(A8>=Simulador!$C$24,A8=0),0,A8+1) -> 4 | B9: 28 | C9: 119 | D9: =IF(A9<>0,E8,"") -> 2026-02-06 | E9: 2026-03-06 | F9: 14535.81261 | G9: =F9*((1+Simulador!$C$10)^B9-1) -> 693.4271543 | H9: 227.640705 | I9: =F9*Simulador!$F$8 -> 43.60743783 | J9: 964.6752971 | K9: 14308.1719 | M9: 14308.1719
A10: =IF(OR(A9>=Simulador!$C$24,A9=0),0,A9+1) -> 5 | B10: 31 | C10: 150 | D10: 2026-03-06 | E10: 2026-04-06 | F10: 14308.1719 | G10: =F10*((1+Simulador!$C$10)^B10-1) -> 757.6043155 | H10: 164.1464659 | I10: =F10*Simulador!$F$8 -> 42.92451571 | J10: 964.6752971 | K10: 14144.02544 | M10: 14144.02544
A11: =IF(OR(A10>=Simulador!$C$24,A10=0),0,A10+1) -> 6 | B11: 30 | C11: 180 | D11: 2026-04-06 | E11: 2026-05-06 | F11: 14144.02544 | G11: =F11*((1+Simulador!$C$10)^B11-1) -> 724.1464626 | H11: 198.0967582 | I11: =F11*Simulador!$F$8 -> 42.43207632 | J11: 964.6752971 | K11: 13945.92868 | M11: 13945.92868
A12: =IF(OR(A11>=Simulador!$C$24,A11=0),0,A11+1) -> 7 | B12: 31 | C12: 211 | D12: 2026-05-06 | E12: 2026-06-06 | F12: 13945.92868 | G12: =F12*((1+Simulador!$C$10)^B12-1) -> 738.4238757 | H12: 184.4136354 | I12: =F12*Simulador!$F$8 -> 41.83778604 | J12: 964.6752971 | K12: 13761.51504 | M12: 13761.51504
A13: =IF(OR(A12>=Simulador!$C$24,A12=0),0,A12+1) -> 8 | B13: 30 | C13: 241 | D13: 2026-06-06 | E13: 2026-07-06 | F13: 13761.51504 | G13: =F13*((1+Simulador!$C$10)^B13-1) -> 704.562678 | H13: 218.828074 | I13: =F13*Simulador!$F$8 -> 41.28454513 | J13: 964.6752971 | K13: 13542.68697 | M13: 13542.68697
A14: =IF(OR(A13>=Simulador!$C$24,A13=0),0,A13+1) -> 9 | B14: 31 | C14: 272 | D14: 2026-07-06 | E14: 2026-08-06 | F14: 13542.68697 | G14: =F14*((1+Simulador!$C$10)^B14-1) -> 717.0726044 | H14: 206.9746318 | I14: =F14*Simulador!$F$8 -> 40.62806091 | J14: 964.6752971 | K14: 13335.71234 | M14: 13335.71234
A15: =IF(OR(A14>=Simulador!$C$24,A14=0),0,A14+1) -> 10 | B15: 31 | C15: 303 | D15: 2026-08-06 | E15: 2026-09-06 | F15: 13335.71234 | G15: =F15*((1+Simulador!$C$10)^B15-1) -> 706.1134913 | H15: 218.5546688 | I15: =F15*Simulador!$F$8 -> 40.00713702 | J15: 964.6752971 | K15: 13117.15767 | M15: 13117.15767
A16: =IF(OR(A15>=Simulador!$C$24,A15=0),0,A15+1) -> 11 | B16: 30 | C16: 333 | D16: 2026-09-06 | E16: 2026-10-06 | F16: 13117.15767 | G16: =F16*((1+Simulador!$C$10)^B16-1) -> 671.5728396 | H16: 253.7509845 | I16: =F16*Simulador!$F$8 -> 39.35147301 | J16: 964.6752971 | K16: 12863.40669 | M16: 12863.40669
A17: =IF(OR(A16>=Simulador!$C$24,A16=0),0,A16+1) -> 12 | B17: 31 | C17: 364 | D17: 2026-10-06 | E17: 2026-11-06 | F17: 12863.40669 | G17: =F17*((1+Simulador!$C$10)^B17-1) -> 681.1053489 | H17: 244.9797282 | I17: =F17*Simulador!$F$8 -> 38.59022006 | J17: 964.6752971 | K17: 12618.42696 | M17: 12618.42696
A18: =IF(OR(A17>=Simulador!$C$24,A17=0),0,A17+1) -> 13 | B18: 30 | C18: 394 | D18: 2026-11-06 | E18: 2026-12-06 | F18: 12618.42696 | G18: =F18*((1+Simulador!$C$10)^B18-1) -> 646.0388017 | H18: 280.7812145 | I18: =F18*Simulador!$F$8 -> 37.85528087 | J18: 964.6752971 | K18: 12337.64574 | M18: 12337.64574
A19: =IF(OR(A18>=Simulador!$C$24,A18=0),0,A18+1) -> 14 | B19: 31 | C19: 425 | D19: 2026-12-06 | E19: 2027-01-06 | F19: 12337.64574 | G19: =F19*((1+Simulador!$C$10)^B19-1) -> 653.2667989 | H19: 274.395561 | I19: =F19*Simulador!$F$8 -> 37.01293723 | J19: 964.6752971 | K19: 12063.25018 | M19: 12063.25018
A20: =IF(OR(A19>=Simulador!$C$24,A19=0),0,A19+1) -> 15 | B20: 31 | C20: 456 | D20: 2027-01-06 | E20: 2027-02-06 | F20: 12063.25018 | G20: =F20*((1+Simulador!$C$10)^B20-1) -> 638.7378107 | H20: 289.7477359 | I20: =F20*Simulador!$F$8 -> 36.18975055 | J20: 964.6752971 | K20: 11773.50245 | M20: 11773.50245
A21: =IF(OR(A20>=Simulador!$C$24,A20=0),0,A20+1) -> 16 | B21: 28 | C21: 484 | D21: 2027-02-06 | E21: 2027-03-06 | F21: 11773.50245 | G21: =F21*((1+Simulador!$C$10)^B21-1) -> 561.6518675 | H21: 367.7029223 | I21: =F21*Simulador!$F$8 -> 35.32050734 | J21: 964.6752971 | K21: 11405.79952 | M21: 11405.79952
A22: =IF(OR(A21>=Simulador!$C$24,A21=0),0,A21+1) -> 17 | B22: 31 | C22: 515 | D22: 2027-03-06 | E22: 2027-04-06 | F22: 11405.79952 | G22: =F22*((1+Simulador!$C$10)^B22-1) -> 603.9264134 | H22: 326.5314851 | I22: =F22*Simulador!$F$8 -> 34.21739857 | J22: 964.6752971 | K22: 11079.26804 | M22: 11079.26804
A23: =IF(OR(A22>=Simulador!$C$24,A22=0),0,A22+1) -> 18 | B23: 30 | C23: 545 | D23: 2027-04-06 | E23: 2027-05-06 | F23: 11079.26804 | G23: =F23*((1+Simulador!$C$10)^B23-1) -> 567.2368728 | H23: 364.2006202 | I23: =F23*Simulador!$F$8 -> 33.23780412 | J23: 964.6752971 | K23: 10715.06742 | M23: 10715.06742
A24: =IF(OR(A23>=Simulador!$C$24,A23=0),0,A23+1) -> 19 | B24: 31 | C24: 576 | D24: 2027-05-06 | E24: 2027-06-06 | F24: 10715.06742 | G24: =F24*((1+Simulador!$C$10)^B24-1) -> 567.3527947 | H24: 365.1773002 | I24: =F24*Simulador!$F$8 -> 32.14520226 | J24: 964.6752971 | K24: 10349.89012 | M24: 10349.89012
A25: =IF(OR(A24>=Simulador!$C$24,A24=0),0,A24+1) -> 20 | B25: 30 | C25: 606 | D25: 2027-06-06 | E25: 2027-07-06 | F25: 10349.89012 | G25: =F25*((1+Simulador!$C$10)^B25-1) -> 529.8941486 | H25: 403.7314781 | I25: =F25*Simulador!$F$8 -> 31.04967036 | J25: 964.6752971 | K25: 9946.15864 | M25: 9946.15864
A26: =IF(OR(A25>=Simulador!$C$24,A25=0),0,A25+1) -> 21 | B26: 31 | C26: 637 | D26: 2027-07-06 | E26: 2027-08-06 | F26: 9946.15864 | G26: =F26*((1+Simulador!$C$10)^B26-1) -> 526.6397943 | H26: 408.1970269 | I26: =F26*Simulador!$F$8 -> 29.83847592 | J26: 964.6752971 | K26: 9537.961614 | M26: 9537.961614
A27: =IF(OR(A26>=Simulador!$C$24,A26=0),0,A26+1) -> 22 | B27: 31 | C27: 668 | D27: 2027-08-06 | E27: 2027-09-06 | F27: 9537.961614 | G27: =F27*((1+Simulador!$C$10)^B27-1) -> 505.0261436 | H27: 431.0352686 | I27: =F27*Simulador!$F$8 -> 28.61388484 | J27: 964.6752971 | K27: 9106.926345 | M27: 9106.926345
A28: =IF(OR(A27>=Simulador!$C$24,A27=0),0,A27+1) -> 23 | B28: 30 | C28: 698 | D28: 2027-09-06 | E28: 2027-10-06 | F28: 9106.926345 | G28: =F28*((1+Simulador!$C$10)^B28-1) -> 466.2568324 | H28: 471.0976857 | I28: =F28*Simulador!$F$8 -> 27.32077903 | J28: 964.6752971 | K28: 8635.828659 | M28: 8635.828659
A29: =IF(OR(A28>=Simulador!$C$24,A28=0),0,A28+1) -> 24 | B29: 31 | C29: 729 | D29: 2027-10-06 | E29: 2027-11-06 | F29: 8635.828659 | G29: =F29*((1+Simulador!$C$10)^B29-1) -> 457.2590477 | H29: 481.5087634 | I29: =F29*Simulador!$F$8 -> 25.90748598 | J29: 964.6752971 | K29: 8154.319896 | M29: 8154.319896
A30: =IF(OR(A29>=Simulador!$C$24,A29=0),0,A29+1) -> 25 | B30: 30 | C30: 759 | D30: 2027-11-06 | E30: 2027-12-06 | F30: 8154.319896 | G30: =F30*((1+Simulador!$C$10)^B30-1) -> 417.4852437 | H30: 522.7270937 | I30: =F30*Simulador!$F$8 -> 24.46295969 | J30: 964.6752971 | K30: 7631.592802 | M30: 7631.592802
A31: =IF(OR(A30>=Simulador!$C$24,A30=0),0,A30+1) -> 26 | B31: 31 | C31: 790 | D31: 2027-12-06 | E31: 2028-01-06 | F31: 7631.592802 | G31: =F31*((1+Simulador!$C$10)^B31-1) -> 404.0856987 | H31: 537.69482 | I31: =F31*Simulador!$F$8 -> 22.89477841 | J31: 964.6752971 | K31: 7093.897982 | M31: 7093.897982
A32: =IF(OR(A31>=Simulador!$C$24,A31=0),0,A31+1) -> 27 | B32: 31 | C32: 821 | D32: 2028-01-06 | E32: 2028-02-06 | F32: 7093.897982 | G32: =F32*((1+Simulador!$C$10)^B32-1) -> 375.615261 | H32: 567.7783421 | I32: =F32*Simulador!$F$8 -> 21.28169395 | J32: 964.6752971 | K32: 6526.11964 | M32: 6526.11964
A33: =IF(OR(A32>=Simulador!$C$24,A32=0),0,A32+1) -> 28 | B33: 29 | C33: 850 | D33: 2028-02-06 | E33: 2028-03-06 | F33: 6526.11964 | G33: =F33*((1+Simulador!$C$10)^B33-1) -> 322.7162191 | H33: 622.3807191 | I33: =F33*Simulador!$F$8 -> 19.57835892 | J33: 964.6752971 | K33: 5903.738921 | M33: 5903.738921
A34: =IF(OR(A33>=Simulador!$C$24,A33=0),0,A33+1) -> 29 | B34: 31 | C34: 881 | D34: 2028-03-06 | E34: 2028-04-06 | F34: 5903.738921 | G34: =F34*((1+Simulador!$C$10)^B34-1) -> 312.5974523 | H34: 634.3666281 | I34: =F34*Simulador!$F$8 -> 17.71121676 | J34: 964.6752971 | K34: 5269.372293 | M34: 5269.372293
A35: =IF(OR(A34>=Simulador!$C$24,A34=0),0,A34+1) -> 30 | B35: 30 | C35: 911 | D35: 2028-04-06 | E35: 2028-05-06 | F35: 5269.372293 | G35: =F35*((1+Simulador!$C$10)^B35-1) -> 269.7815641 | H35: 679.0856161 | I35: =F35*Simulador!$F$8 -> 15.80811688 | J35: 964.6752971 | K35: 4590.286677 | M35: 4590.286677
A36: =IF(OR(A35>=Simulador!$C$24,A35=0),0,A35+1) -> 31 | B36: 31 | C36: 942 | D36: 2028-05-06 | E36: 2028-06-06 | F36: 4590.286677 | G36: =F36*((1+Simulador!$C$10)^B36-1) -> 243.0513848 | H36: 707.8530523 | I36: =F36*Simulador!$F$8 -> 13.77086003 | J36: 964.6752971 | K36: 3882.433624 | M36: 3882.433624
A37: =IF(OR(A36>=Simulador!$C$24,A36=0),0,A36+1) -> 32 | B37: 30 | C37: 972 | D37: 2028-06-06 | E37: 2028-07-06 | F37: 3882.433624 | G37: =F37*((1+Simulador!$C$10)^B37-1) -> 198.7730146 | H37: 754.2549816 | I37: =F37*Simulador!$F$8 -> 11.64730087 | J37: 964.6752971 | K37: 3128.178643 | M37: 3128.178643
A38: =IF(OR(A37>=Simulador!$C$24,A37=0),0,A37+1) -> 33 | B38: 31 | C38: 1003 | D38: 2028-07-06 | E38: 2028-08-06 | F38: 3128.178643 | G38: =F38*((1+Simulador!$C$10)^B38-1) -> 165.6341324 | H38: 789.6566288 | I38: =F38*Simulador!$F$8 -> 9.384535928 | J38: 964.6752971 | K38: 2338.522014 | M38: 2338.522014
A39: =IF(OR(A38>=Simulador!$C$24,A38=0),0,A38+1) -> 34 | B39: 31 | C39: 1034 | D39: 2028-08-06 | E39: 2028-09-06 | F39: 2338.522014 | G39: =F39*((1+Simulador!$C$10)^B39-1) -> 123.8225527 | H39: 833.8371784 | I39: =F39*Simulador!$F$8 -> 7.015566042 | J39: 964.6752971 | K39: 1504.684836 | M39: 1504.684836
A40: =IF(OR(A39>=Simulador!$C$24,A39=0),0,A39+1) -> 35 | B40: 30 | C40: 1064 | D40: 2028-09-06 | E40: 2028-10-06 | F40: 1504.684836 | G40: =F40*((1+Simulador!$C$10)^B40-1) -> 77.03692317 | H40: 883.1243194 | I40: =F40*Simulador!$F$8 -> 4.514054507 | J40: 964.6752971 | K40: 621.5605162 | M40: 621.5605162
A41: =IF(OR(A40>=Simulador!$C$24,A40=0),0,A40+1) -> 36 | B41: 31 | C41: 1095 | D41: 2028-10-06 | E41: 2028-11-06 | F41: 621.5605162 | G41: =F41*((1+Simulador!$C$10)^B41-1) -> 32.91104779 | H41: 929.8995678 | I41: =F41*Simulador!$F$8 -> 1.864681548 | J41: 964.6752971 | K41: -308.3390516 | M41: -308.3390516
A42: =IF(OR(A41>=Simulador!$C$24,A41=0),0,A41+1) -> 0 | F42: -308.3390516 | G42: =F42*((1+Simulador!$C$10)^B42-1) ->  | I42: =F42*Simulador!$F$8 -> -0.9250171548 | J42: 964.6752971
A43: =IF(OR(A42>=Simulador!$C$24,A42=0),0,A42+1) -> 0 | G43: =F43*((1+Simulador!$C$10)^B43-1) ->  | I43: =F43*Simulador!$F$8 ->  | J43: 964.6752971
A44: =IF(OR(A43>=Simulador!$C$24,A43=0),0,A43+1) -> 0 | G44: =F44*((1+Simulador!$C$10)^B44-1) ->  | I44: =F44*Simulador!$F$8 ->  | J44: 964.6752971
A45: =IF(OR(A44>=Simulador!$C$24,A44=0),0,A44+1) -> 0 | G45: =F45*((1+Simulador!$C$10)^B45-1) ->  | I45: =F45*Simulador!$F$8 ->  | J45: 964.6752971
A46: =IF(OR(A45>=Simulador!$C$24,A45=0),0,A45+1) -> 0 | G46: =F46*((1+Simulador!$C$10)^B46-1) ->  | I46: =F46*Simulador!$F$8 ->  | J46: 964.6752971
A47: =IF(OR(A46>=Simulador!$C$24,A46=0),0,A46+1) -> 0 | G47: =F47*((1+Simulador!$C$10)^B47-1) ->  | I47: =F47*Simulador!$F$8 ->  | J47: 964.6752971
A48: =IF(OR(A47>=Simulador!$C$24,A47=0),0,A47+1) -> 0 | G48: =F48*((1+Simulador!$C$10)^B48-1) ->  | I48: =F48*Simulador!$F$8 ->  | J48: 964.6752971
A49: =IF(OR(A48>=Simulador!$C$24,A48=0),0,A48+1) -> 0 | G49: =F49*((1+Simulador!$C$10)^B49-1) ->  | I49: =F49*Simulador!$F$8 ->  | J49: 964.6752971
A50: =IF(OR(A49>=Simulador!$C$24,A49=0),0,A49+1) -> 0 | G50: =F50*((1+Simulador!$C$10)^B50-1) ->  | I50: =F50*Simulador!$F$8 ->  | J50: 964.6752971
A51: =IF(OR(A50>=Simulador!$C$24,A50=0),0,A50+1) -> 0 | G51: =F51*((1+Simulador!$C$10)^B51-1) ->  | I51: =F51*Simulador!$F$8 ->  | J51: 964.6752971
A52: =IF(OR(A51>=Simulador!$C$24,A51=0),0,A51+1) -> 0 | G52: =F52*((1+Simulador!$C$10)^B52-1) ->  | I52: =F52*Simulador!$F$8 ->  | J52: 964.6752971
A53: =IF(OR(A52>=Simulador!$C$24,A52=0),0,A52+1) -> 0 | G53: =F53*((1+Simulador!$C$10)^B53-1) ->  | I53: =F53*Simulador!$F$8 ->  | J53: 964.6752971
A54: =IF(OR(A53>=Simulador!$C$24,A53=0),0,A53+1) -> 0 | G54: =F54*((1+Simulador!$C$10)^B54-1) ->  | I54: =F54*Simulador!$F$8 ->  | J54: 964.6752971
A55: =IF(OR(A54>=Simulador!$C$24,A54=0),0,A54+1) -> 0 | G55: =F55*((1+Simulador!$C$10)^B55-1) ->  | I55: =F55*Simulador!$F$8 ->  | J55: 964.6752971
A56: =IF(OR(A55>=Simulador!$C$24,A55=0),0,A55+1) -> 0 | G56: =F56*((1+Simulador!$C$10)^B56-1) ->  | I56: =F56*Simulador!$F$8 ->  | J56: 964.6752971
A57: =IF(OR(A56>=Simulador!$C$24,A56=0),0,A56+1) -> 0 | G57: =F57*((1+Simulador!$C$10)^B57-1) ->  | I57: =F57*Simulador!$F$8 ->  | J57: 964.6752971
A58: =IF(OR(A57>=Simulador!$C$24,A57=0),0,A57+1) -> 0 | G58: =F58*((1+Simulador!$C$10)^B58-1) ->  | I58: =F58*Simulador!$F$8 ->  | J58: 964.6752971
A59: =IF(OR(A58>=Simulador!$C$24,A58=0),0,A58+1) -> 0 | G59: =F59*((1+Simulador!$C$10)^B59-1) ->  | I59: =F59*Simulador!$F$8 ->  | J59: 964.6752971
A60: =IF(OR(A59>=Simulador!$C$24,A59=0),0,A59+1) -> 0 | G60: =F60*((1+Simulador!$C$10)^B60-1) ->  | I60: =F60*Simulador!$F$8 ->  | J60: 964.6752971
A61: =IF(OR(A60>=Simulador!$C$24,A60=0),0,A60+1) -> 0 | G61: =F61*((1+Simulador!$C$10)^B61-1) ->  | I61: =F61*Simulador!$F$8 ->  | J61: 964.6752971
A62: =IF(OR(A61>=Simulador!$C$24,A61=0),0,A61+1) -> 0 | G62: =F62*((1+Simulador!$C$10)^B62-1) ->  | I62: =F62*Simulador!$F$8 ->  | J62: 964.6752971
A63: =IF(OR(A62>=Simulador!$C$24,A62=0),0,A62+1) -> 0 | G63: =F63*((1+Simulador!$C$10)^B63-1) ->  | I63: =F63*Simulador!$F$8 ->  | J63: 964.6752971
A64: =IF(OR(A63>=Simulador!$C$24,A63=0),0,A63+1) -> 0 | G64: =F64*((1+Simulador!$C$10)^B64-1) ->  | I64: =F64*Simulador!$F$8 ->  | J64: 964.6752971
A65: =IF(OR(A64>=Simulador!$C$24,A64=0),0,A64+1) -> 0 | G65: =F65*((1+Simulador!$C$10)^B65-1) ->  | I65: =F65*Simulador!$F$8 ->  | J65: 964.6752971
A66: =IF(OR(A65>=Simulador!$C$24,A65=0),0,A65+1) -> 0 | G66: =F66*((1+Simulador!$C$10)^B66-1) ->  | I66: =F66*Simulador!$F$8 ->  | J66: 964.6752971
A67: =IF(OR(A66>=Simulador!$C$24,A66=0),0,A66+1) -> 0 | G67: =F67*((1+Simulador!$C$10)^B67-1) ->  | I67: =F67*Simulador!$F$8 ->  | J67: 964.6752971
A68: =IF(OR(A67>=Simulador!$C$24,A67=0),0,A67+1) -> 0 | G68: =F68*((1+Simulador!$C$10)^B68-1) ->  | I68: =F68*Simulador!$F$8 ->  | J68: 964.6752971
A69: =IF(OR(A68>=Simulador!$C$24,A68=0),0,A68+1) -> 0 | G69: =F69*((1+Simulador!$C$10)^B69-1) ->  | I69: =F69*Simulador!$F$8 ->  | J69: 964.6752971
A70: =IF(OR(A69>=Simulador!$C$24,A69=0),0,A69+1) -> 0 | G70: =F70*((1+Simulador!$C$10)^B70-1) ->  | I70: =F70*Simulador!$F$8 ->  | J70: 964.6752971
A71: =IF(OR(A70>=Simulador!$C$24,A70=0),0,A70+1) -> 0 | G71: =F71*((1+Simulador!$C$10)^B71-1) ->  | H71: =J71-I71-G71 ->  | I71: =F71*Simulador!$F$8 ->  | J71: 964.6752971 | K71: =F71-H71 -> 
A72: =IF(OR(A71>=Simulador!$C$24,A71=0),0,A71+1) -> 0 | B72: =IFERROR(_xlfn.DAYS(E72,D72),"") ->  | C72: =IFERROR(C71+B72,"") ->  | E72: =IFERROR(EDATE(D72,1),"") ->  | F72: =K71 ->  | G72: =F72*((1+Simulador!$C$10)^B72-1) ->  | I72: =F72*Simulador!$F$8 ->  | J72: =$J$6 -> 964.6752971 | M72: =K72-L72 -> 
A73: =IF(OR(A72>=Simulador!$C$24,A72=0),0,A72+1) -> 0 | D73: =IF(A73<>0,E72,"") ->  | G73: =F73*((1+Simulador!$C$10)^B73-1) ->  | I73: =F73*Simulador!$F$8 ->  | J73: 964.6752971
A74: =IF(OR(A73>=Simulador!$C$24,A73=0),0,A73+1) -> 0 | G74: =F74*((1+Simulador!$C$10)^B74-1) ->  | I74: =F74*Simulador!$F$8 ->  | J74: 964.6752971
A75: =IF(OR(A74>=Simulador!$C$24,A74=0),0,A74+1) -> 0 | G75: =F75*((1+Simulador!$C$10)^B75-1) ->  | I75: =F75*Simulador!$F$8 ->  | J75: 964.6752971
A76: =IF(OR(A75>=Simulador!$C$24,A75=0),0,A75+1) -> 0 | G76: =F76*((1+Simulador!$C$10)^B76-1) ->  | I76: =F76*Simulador!$F$8 ->  | J76: 964.6752971
A77: =IF(OR(A76>=Simulador!$C$24,A76=0),0,A76+1) -> 0 | G77: =F77*((1+Simulador!$C$10)^B77-1) ->  | I77: =F77*Simulador!$F$8 ->  | J77: 964.6752971
A78: =IF(OR(A77>=Simulador!$C$24,A77=0),0,A77+1) -> 0 | G78: =F78*((1+Simulador!$C$10)^B78-1) ->  | I78: =F78*Simulador!$F$8 ->  | J78: 964.6752971
A79: =IF(OR(A78>=Simulador!$C$24,A78=0),0,A78+1) -> 0 | G79: =F79*((1+Simulador!$C$10)^B79-1) ->  | I79: =F79*Simulador!$F$8 ->  | J79: 964.6752971
A80: =IF(OR(A79>=Simulador!$C$24,A79=0),0,A79+1) -> 0 | G80: =F80*((1+Simulador!$C$10)^B80-1) ->  | I80: =F80*Simulador!$F$8 ->  | J80: 964.6752971
A81: =IF(OR(A80>=Simulador!$C$24,A80=0),0,A80+1) -> 0 | G81: =F81*((1+Simulador!$C$10)^B81-1) ->  | I81: =F81*Simulador!$F$8 ->  | J81: 964.6752971
A82: =IF(OR(A81>=Simulador!$C$24,A81=0),0,A81+1) -> 0 | G82: =F82*((1+Simulador!$C$10)^B82-1) ->  | I82: =F82*Simulador!$F$8 ->  | J82: 964.6752971
A83: =IF(OR(A82>=Simulador!$C$24,A82=0),0,A82+1) -> 0 | G83: =F83*((1+Simulador!$C$10)^B83-1) ->  | I83: =F83*Simulador!$F$8 ->  | J83: 964.6752971
A84: =IF(OR(A83>=Simulador!$C$24,A83=0),0,A83+1) -> 0 | G84: =F84*((1+Simulador!$C$10)^B84-1) ->  | I84: =F84*Simulador!$F$8 ->  | J84: 964.6752971
A85: =IF(OR(A84>=Simulador!$C$24,A84=0),0,A84+1) -> 0 | G85: =F85*((1+Simulador!$C$10)^B85-1) ->  | I85: =F85*Simulador!$F$8 ->  | J85: 964.6752971
A86: =IF(OR(A85>=Simulador!$C$24,A85=0),0,A85+1) -> 0 | G86: =F86*((1+Simulador!$C$10)^B86-1) ->  | I86: =F86*Simulador!$F$8 ->  | J86: 964.6752971
A87: =IF(OR(A86>=Simulador!$C$24,A86=0),0,A86+1) -> 0 | G87: =F87*((1+Simulador!$C$10)^B87-1) ->  | I87: =F87*Simulador!$F$8 ->  | J87: 964.6752971
A88: =IF(OR(A87>=Simulador!$C$24,A87=0),0,A87+1) -> 0 | G88: =F88*((1+Simulador!$C$10)^B88-1) ->  | I88: =F88*Simulador!$F$8 ->  | J88: 964.6752971
A89: =IF(OR(A88>=Simulador!$C$24,A88=0),0,A88+1) -> 0 | G89: =F89*((1+Simulador!$C$10)^B89-1) ->  | I89: =F89*Simulador!$F$8 ->  | J89: 964.6752971
A90: =IF(OR(A89>=Simulador!$C$24,A89=0),0,A89+1) -> 0 | G90: =F90*((1+Simulador!$C$10)^B90-1) ->  | I90: =F90*Simulador!$F$8 ->  | J90: 964.6752971
A91: =IF(OR(A90>=Simulador!$C$24,A90=0),0,A90+1) -> 0 | G91: =F91*((1+Simulador!$C$10)^B91-1) ->  | I91: =F91*Simulador!$F$8 ->  | J91: 964.6752971
A92: =IF(OR(A91>=Simulador!$C$24,A91=0),0,A91+1) -> 0 | G92: =F92*((1+Simulador!$C$10)^B92-1) ->  | I92: =F92*Simulador!$F$8 ->  | J92: 964.6752971
A93: =IF(OR(A92>=Simulador!$C$24,A92=0),0,A92+1) -> 0 | G93: =F93*((1+Simulador!$C$10)^B93-1) ->  | I93: =F93*Simulador!$F$8 ->  | J93: 964.6752971
A94: =IF(OR(A93>=Simulador!$C$24,A93=0),0,A93+1) -> 0 | G94: =F94*((1+Simulador!$C$10)^B94-1) ->  | I94: =F94*Simulador!$F$8 ->  | J94: 964.6752971
A95: =IF(OR(A94>=Simulador!$C$24,A94=0),0,A94+1) -> 0 | G95: =F95*((1+Simulador!$C$10)^B95-1) ->  | I95: =F95*Simulador!$F$8 ->  | J95: 964.6752971
A96: =IF(OR(A95>=Simulador!$C$24,A95=0),0,A95+1) -> 0 | G96: =F96*((1+Simulador!$C$10)^B96-1) ->  | I96: =F96*Simulador!$F$8 ->  | J96: 964.6752971
A97: =IF(OR(A96>=Simulador!$C$24,A96=0),0,A96+1) -> 0 | G97: =F97*((1+Simulador!$C$10)^B97-1) ->  | I97: =F97*Simulador!$F$8 ->  | J97: 964.6752971
A98: =IF(OR(A97>=Simulador!$C$24,A97=0),0,A97+1) -> 0 | G98: =F98*((1+Simulador!$C$10)^B98-1) ->  | I98: =F98*Simulador!$F$8 ->  | J98: 964.6752971
A99: =IF(OR(A98>=Simulador!$C$24,A98=0),0,A98+1) -> 0 | G99: =F99*((1+Simulador!$C$10)^B99-1) ->  | I99: =F99*Simulador!$F$8 ->  | J99: 964.6752971
A100: =IF(OR(A99>=Simulador!$C$24,A99=0),0,A99+1) -> 0 | G100: =F100*((1+Simulador!$C$10)^B100-1) ->  | I100: =F100*Simulador!$F$8 ->  | J100: 964.6752971
A101: =IF(OR(A100>=Simulador!$C$24,A100=0),0,A100+1) -> 0 | G101: =F101*((1+Simulador!$C$10)^B101-1) ->  | I101: =F101*Simulador!$F$8 ->  | J101: 964.6752971
A102: =IF(OR(A101>=Simulador!$C$24,A101=0),0,A101+1) -> 0 | G102: =F102*((1+Simulador!$C$10)^B102-1) ->  | I102: =F102*Simulador!$F$8 ->  | J102: 964.6752971
A103: =IF(OR(A102>=Simulador!$C$24,A102=0),0,A102+1) -> 0 | G103: =F103*((1+Simulador!$C$10)^B103-1) ->  | I103: =F103*Simulador!$F$8 ->  | J103: 964.6752971
A104: =IF(OR(A103>=Simulador!$C$24,A103=0),0,A103+1) -> 0 | G104: =F104*((1+Simulador!$C$10)^B104-1) ->  | I104: =F104*Simulador!$F$8 ->  | J104: 964.6752971
A105: =IF(OR(A104>=Simulador!$C$24,A104=0),0,A104+1) -> 0 | G105: =F105*((1+Simulador!$C$10)^B105-1) ->  | I105: =F105*Simulador!$F$8 ->  | J105: 964.6752971
A106: =IF(OR(A105>=Simulador!$C$24,A105=0),0,A105+1) -> 0 | G106: =F106*((1+Simulador!$C$10)^B106-1) ->  | I106: =F106*Simulador!$F$8 ->  | J106: 964.6752971
A107: =IF(OR(A106>=Simulador!$C$24,A106=0),0,A106+1) -> 0 | G107: =F107*((1+Simulador!$C$10)^B107-1) ->  | I107: =F107*Simulador!$F$8 ->  | J107: 964.6752971
A108: =IF(OR(A107>=Simulador!$C$24,A107=0),0,A107+1) -> 0 | G108: =F108*((1+Simulador!$C$10)^B108-1) ->  | I108: =F108*Simulador!$F$8 ->  | J108: 964.6752971
A109: =IF(OR(A108>=Simulador!$C$24,A108=0),0,A108+1) -> 0 | G109: =F109*((1+Simulador!$C$10)^B109-1) ->  | I109: =F109*Simulador!$F$8 ->  | J109: 964.6752971
A110: =IF(OR(A109>=Simulador!$C$24,A109=0),0,A109+1) -> 0 | G110: =F110*((1+Simulador!$C$10)^B110-1) ->  | I110: =F110*Simulador!$F$8 ->  | J110: 964.6752971
A111: =IF(OR(A110>=Simulador!$C$24,A110=0),0,A110+1) -> 0 | G111: =F111*((1+Simulador!$C$10)^B111-1) ->  | I111: =F111*Simulador!$F$8 ->  | J111: 964.6752971
A112: =IF(OR(A111>=Simulador!$C$24,A111=0),0,A111+1) -> 0 | G112: =F112*((1+Simulador!$C$10)^B112-1) ->  | I112: =F112*Simulador!$F$8 ->  | J112: 964.6752971
A113: =IF(OR(A112>=Simulador!$C$24,A112=0),0,A112+1) -> 0 | G113: =F113*((1+Simulador!$C$10)^B113-1) ->  | I113: =F113*Simulador!$F$8 ->  | J113: 964.6752971
A114: =IF(OR(A113>=Simulador!$C$24,A113=0),0,A113+1) -> 0 | G114: =F114*((1+Simulador!$C$10)^B114-1) ->  | I114: =F114*Simulador!$F$8 ->  | J114: 964.6752971
A115: =IF(OR(A114>=Simulador!$C$24,A114=0),0,A114+1) -> 0 | G115: =F115*((1+Simulador!$C$10)^B115-1) ->  | I115: =F115*Simulador!$F$8 ->  | J115: 964.6752971
A116: =IF(OR(A115>=Simulador!$C$24,A115=0),0,A115+1) -> 0 | G116: =F116*((1+Simulador!$C$10)^B116-1) ->  | I116: =F116*Simulador!$F$8 ->  | J116: 964.6752971
A117: =IF(OR(A116>=Simulador!$C$24,A116=0),0,A116+1) -> 0 | G117: =F117*((1+Simulador!$C$10)^B117-1) ->  | I117: =F117*Simulador!$F$8 ->  | J117: 964.6752971
A118: =IF(OR(A117>=Simulador!$C$24,A117=0),0,A117+1) -> 0 | G118: =F118*((1+Simulador!$C$10)^B118-1) ->  | I118: =F118*Simulador!$F$8 ->  | J118: 964.6752971
A119: =IF(OR(A118>=Simulador!$C$24,A118=0),0,A118+1) -> 0 | G119: =F119*((1+Simulador!$C$10)^B119-1) ->  | I119: =F119*Simulador!$F$8 ->  | J119: 964.6752971
A120: =IF(OR(A119>=Simulador!$C$24,A119=0),0,A119+1) -> 0 | G120: =F120*((1+Simulador!$C$10)^B120-1) ->  | I120: =F120*Simulador!$F$8 ->  | J120: 964.6752971
A121: =IF(OR(A120>=Simulador!$C$24,A120=0),0,A120+1) -> 0 | G121: =F121*((1+Simulador!$C$10)^B121-1) ->  | I121: =F121*Simulador!$F$8 ->  | J121: 964.6752971
A122: =IF(OR(A121>=Simulador!$C$24,A121=0),0,A121+1) -> 0 | G122: =F122*((1+Simulador!$C$10)^B122-1) ->  | I122: =F122*Simulador!$F$8 ->  | J122: 964.6752971
A123: =IF(OR(A122>=Simulador!$C$24,A122=0),0,A122+1) -> 0 | G123: =F123*((1+Simulador!$C$10)^B123-1) ->  | I123: =F123*Simulador!$F$8 ->  | J123: 964.6752971
A124: =IF(OR(A123>=Simulador!$C$24,A123=0),0,A123+1) -> 0 | G124: =F124*((1+Simulador!$C$10)^B124-1) ->  | I124: =F124*Simulador!$F$8 ->  | J124: 964.6752971
A125: =IF(OR(A124>=Simulador!$C$24,A124=0),0,A124+1) -> 0 | G125: =F125*((1+Simulador!$C$10)^B125-1) ->  | I125: =F125*Simulador!$F$8 ->  | J125: 964.6752971
A126: =IF(OR(A125>=Simulador!$C$24,A125=0),0,A125+1) -> 0 | G126: =F126*((1+Simulador!$C$10)^B126-1) ->  | I126: =F126*Simulador!$F$8 ->  | J126: 964.6752971
A127: =IF(OR(A126>=Simulador!$C$24,A126=0),0,A126+1) -> 0 | G127: =F127*((1+Simulador!$C$10)^B127-1) ->  | I127: =F127*Simulador!$F$8 ->  | J127: 964.6752971
A128: =IF(OR(A127>=Simulador!$C$24,A127=0),0,A127+1) -> 0 | G128: =F128*((1+Simulador!$C$10)^B128-1) ->  | I128: =F128*Simulador!$F$8 ->  | J128: 964.6752971
A129: =IF(OR(A128>=Simulador!$C$24,A128=0),0,A128+1) -> 0 | G129: =F129*((1+Simulador!$C$10)^B129-1) ->  | I129: =F129*Simulador!$F$8 ->  | J129: 964.6752971
A130: =IF(OR(A129>=Simulador!$C$24,A129=0),0,A129+1) -> 0 | G130: =F130*((1+Simulador!$C$10)^B130-1) ->  | I130: =F130*Simulador!$F$8 ->  | J130: 964.6752971
A131: =IF(OR(A130>=Simulador!$C$24,A130=0),0,A130+1) -> 0 | G131: =F131*((1+Simulador!$C$10)^B131-1) ->  | I131: =F131*Simulador!$F$8 ->  | J131: 964.6752971
A132: =IF(OR(A131>=Simulador!$C$24,A131=0),0,A131+1) -> 0 | G132: =F132*((1+Simulador!$C$10)^B132-1) ->  | I132: =F132*Simulador!$F$8 ->  | J132: 964.6752971
A133: =IF(OR(A132>=Simulador!$C$24,A132=0),0,A132+1) -> 0 | G133: =F133*((1+Simulador!$C$10)^B133-1) ->  | I133: =F133*Simulador!$F$8 ->  | J133: 964.6752971
A134: =IF(OR(A133>=Simulador!$C$24,A133=0),0,A133+1) -> 0 | G134: =F134*((1+Simulador!$C$10)^B134-1) ->  | I134: =F134*Simulador!$F$8 ->  | J134: 964.6752971
A135: =IF(OR(A134>=Simulador!$C$24,A134=0),0,A134+1) -> 0 | G135: =F135*((1+Simulador!$C$10)^B135-1) ->  | H135: =J135-I135-G135 ->  | I135: =F135*Simulador!$F$8 ->  | J135: 964.6752971 | K135: =F135-H135 -> 
A136: =IF(OR(A135>=Simulador!$C$24,A135=0),0,A135+1) -> 0 | B136: =IFERROR(_xlfn.DAYS(E136,D136),"") ->  | C136: =IFERROR(C135+B136,"") ->  | E136: =IFERROR(EDATE(D136,1),"") ->  | F136: =K135 ->  | G136: =F136*((1+Simulador!$C$10)^B136-1) ->  | I136: =F136*Simulador!$F$8 ->  | J136: =$J$6 -> 964.6752971 | M136: =K136-L136 -> 
A137: =IF(OR(A136>=Simulador!$C$24,A136=0),0,A136+1) -> 0 | D137: =IF(A137<>0,E136,"") ->  | G137: =F137*((1+Simulador!$C$10)^B137-1) ->  | I137: =F137*Simulador!$F$8 ->  | J137: 964.6752971
A138: =IF(OR(A137>=Simulador!$C$24,A137=0),0,A137+1) -> 0 | G138: =F138*((1+Simulador!$C$10)^B138-1) ->  | I138: =F138*Simulador!$F$8 ->  | J138: 964.6752971
A139: =IF(OR(A138>=Simulador!$C$24,A138=0),0,A138+1) -> 0 | G139: =F139*((1+Simulador!$C$10)^B139-1) ->  | I139: =F139*Simulador!$F$8 ->  | J139: 964.6752971
A140: =IF(OR(A139>=Simulador!$C$24,A139=0),0,A139+1) -> 0 | G140: =F140*((1+Simulador!$C$10)^B140-1) ->  | I140: =F140*Simulador!$F$8 ->  | J140: 964.6752971
A141: =IF(OR(A140>=Simulador!$C$24,A140=0),0,A140+1) -> 0 | G141: =F141*((1+Simulador!$C$10)^B141-1) ->  | I141: =F141*Simulador!$F$8 ->  | J141: 964.6752971
A142: =IF(OR(A141>=Simulador!$C$24,A141=0),0,A141+1) -> 0 | G142: =F142*((1+Simulador!$C$10)^B142-1) ->  | I142: =F142*Simulador!$F$8 ->  | J142: 964.6752971
A143: =IF(OR(A142>=Simulador!$C$24,A142=0),0,A142+1) -> 0 | G143: =F143*((1+Simulador!$C$10)^B143-1) ->  | I143: =F143*Simulador!$F$8 ->  | J143: 964.6752971
A144: =IF(OR(A143>=Simulador!$C$24,A143=0),0,A143+1) -> 0 | G144: =F144*((1+Simulador!$C$10)^B144-1) ->  | I144: =F144*Simulador!$F$8 ->  | J144: 964.6752971
A145: =IF(OR(A144>=Simulador!$C$24,A144=0),0,A144+1) -> 0 | G145: =F145*((1+Simulador!$C$10)^B145-1) ->  | I145: =F145*Simulador!$F$8 ->  | J145: 964.6752971
A146: =IF(OR(A145>=Simulador!$C$24,A145=0),0,A145+1) -> 0 | G146: =F146*((1+Simulador!$C$10)^B146-1) ->  | I146: =F146*Simulador!$F$8 ->  | J146: 964.6752971
A147: =IF(OR(A146>=Simulador!$C$24,A146=0),0,A146+1) -> 0 | G147: =F147*((1+Simulador!$C$10)^B147-1) ->  | I147: =F147*Simulador!$F$8 ->  | J147: 964.6752971
A148: =IF(OR(A147>=Simulador!$C$24,A147=0),0,A147+1) -> 0 | G148: =F148*((1+Simulador!$C$10)^B148-1) ->  | I148: =F148*Simulador!$F$8 ->  | J148: 964.6752971
A149: =IF(OR(A148>=Simulador!$C$24,A148=0),0,A148+1) -> 0 | G149: =F149*((1+Simulador!$C$10)^B149-1) ->  | I149: =F149*Simulador!$F$8 ->  | J149: 964.6752971
A150: =IF(OR(A149>=Simulador!$C$24,A149=0),0,A149+1) -> 0 | G150: =F150*((1+Simulador!$C$10)^B150-1) ->  | I150: =F150*Simulador!$F$8 ->  | J150: 964.6752971
A151: =IF(OR(A150>=Simulador!$C$24,A150=0),0,A150+1) -> 0 | G151: =F151*((1+Simulador!$C$10)^B151-1) ->  | I151: =F151*Simulador!$F$8 ->  | J151: 964.6752971
A152: =IF(OR(A151>=Simulador!$C$24,A151=0),0,A151+1) -> 0 | G152: =F152*((1+Simulador!$C$10)^B152-1) ->  | I152: =F152*Simulador!$F$8 ->  | J152: 964.6752971
A153: =IF(OR(A152>=Simulador!$C$24,A152=0),0,A152+1) -> 0 | G153: =F153*((1+Simulador!$C$10)^B153-1) ->  | I153: =F153*Simulador!$F$8 ->  | J153: 964.6752971
A154: =IF(OR(A153>=Simulador!$C$24,A153=0),0,A153+1) -> 0 | G154: =F154*((1+Simulador!$C$10)^B154-1) ->  | I154: =F154*Simulador!$F$8 ->  | J154: 964.6752971
A155: =IF(OR(A154>=Simulador!$C$24,A154=0),0,A154+1) -> 0 | G155: =F155*((1+Simulador!$C$10)^B155-1) ->  | I155: =F155*Simulador!$F$8 ->  | J155: 964.6752971
A156: =IF(OR(A155>=Simulador!$C$24,A155=0),0,A155+1) -> 0 | G156: =F156*((1+Simulador!$C$10)^B156-1) ->  | I156: =F156*Simulador!$F$8 ->  | J156: 964.6752971
A157: =IF(OR(A156>=Simulador!$C$24,A156=0),0,A156+1) -> 0 | G157: =F157*((1+Simulador!$C$10)^B157-1) ->  | I157: =F157*Simulador!$F$8 ->  | J157: 964.6752971
A158: =IF(OR(A157>=Simulador!$C$24,A157=0),0,A157+1) -> 0 | G158: =F158*((1+Simulador!$C$10)^B158-1) ->  | I158: =F158*Simulador!$F$8 ->  | J158: 964.6752971
A159: =IF(OR(A158>=Simulador!$C$24,A158=0),0,A158+1) -> 0 | G159: =F159*((1+Simulador!$C$10)^B159-1) ->  | I159: =F159*Simulador!$F$8 ->  | J159: 964.6752971
A160: =IF(OR(A159>=Simulador!$C$24,A159=0),0,A159+1) -> 0 | G160: =F160*((1+Simulador!$C$10)^B160-1) ->  | I160: =F160*Simulador!$F$8 ->  | J160: 964.6752971
A161: =IF(OR(A160>=Simulador!$C$24,A160=0),0,A160+1) -> 0 | G161: =F161*((1+Simulador!$C$10)^B161-1) ->  | I161: =F161*Simulador!$F$8 ->  | J161: 964.6752971
A162: =IF(OR(A161>=Simulador!$C$24,A161=0),0,A161+1) -> 0 | G162: =F162*((1+Simulador!$C$10)^B162-1) ->  | I162: =F162*Simulador!$F$8 ->  | J162: 964.6752971
A163: =IF(OR(A162>=Simulador!$C$24,A162=0),0,A162+1) -> 0 | G163: =F163*((1+Simulador!$C$10)^B163-1) ->  | I163: =F163*Simulador!$F$8 ->  | J163: 964.6752971
A164: =IF(OR(A163>=Simulador!$C$24,A163=0),0,A163+1) -> 0 | G164: =F164*((1+Simulador!$C$10)^B164-1) ->  | I164: =F164*Simulador!$F$8 ->  | J164: 964.6752971
A165: =IF(OR(A164>=Simulador!$C$24,A164=0),0,A164+1) -> 0 | G165: =F165*((1+Simulador!$C$10)^B165-1) ->  | I165: =F165*Simulador!$F$8 ->  | J165: 964.6752971
A166: =IF(OR(A165>=Simulador!$C$24,A165=0),0,A165+1) -> 0 | G166: =F166*((1+Simulador!$C$10)^B166-1) ->  | I166: =F166*Simulador!$F$8 ->  | J166: 964.6752971

Sheet Cronograma final (hidden)

Sheet Resultados (hidden)
A1: Resultados:
A2: Cuota
A3: TCEA
A4: Última fecha de pago
A5: Intereses
A7: Cronograma:

Sheet Procesamiento (2) (hidden)
A1: Cronograma
A3: n° Periodo | B3: n° Días | C3: n° días acum | D3: Fecha inicial | E3: Fecha Final | F3: Saldo inicial | G3: i | H3: k | I3: Seguro | J3: Cuota | K3: Saldo Aant | L3: Anticipo | M3: Saldo Final | P3: =_xlfn.MAXIFS($K$4:$K$185,$K$4:$K$185,"<1") -> -0.1135510739 | Q3: =P3/(COUNT($C$5:$C$206)*2) -> -0.001577098249 | R3: =D4 -> 2025-11-07 | S3: =-F4 -> -14993.27 | T3: =S3 -> -14993.27 | V3: =SUM(S4:S40) -> 34728.3103 | X3: =D4 -> 2025-11-07 | Y3: =MAX(E4:E185) -> 2028-11-06
A4: 0 | B4: =_xlfn.DAYS(E4,D4) -> 23 | C4: =B4 -> 23 | D4: =Simulador!C12 -> 2025-11-07 | E4: =EOMONTH(E5,-1) -> 2025-11-30 | F4: =Simulador!C6 -> 14993.27 | G4: =F4*((1+Simulador!$C$10)^B4-1) -> 585.0700518 | I4: =F4*Simulador!$F$8 -> 44.97981 | K4: =F4-H4+G4+I4 -> 15623.31986 | M4: =K4-L4 -> 15623.31986 | T4: =S4+T3 -> -14993.27 | V4: =T3 -> -14993.27 | Y4: =Y3-X3 -> 1095
A5: =IF(OR(A4>Simulador!$C$24,A4=0),0,A4+1)+1 -> 1 | B5: =IFERROR(_xlfn.DAYS(E5,D5),"") -> 6 | C5: =IFERROR(C4+B5,"") -> 29 | D5: =E4 -> 2025-11-30 | E5: =Simulador!C20 -> 2025-12-06 | F5: =K4 -> 15623.31986 | G5: =F5*((1+Simulador!$C$10)^B5-1) -> 156.7976607 | H5: =J5-I5-G5 -> 761.0076658 | I5: =F5*Simulador!$F$8 -> 46.86995959 | J5: =Simulador!$C$34+Q5 -> 964.675286 | K5: =F5-H5 -> 14862.3122 | M5: =K5-L5 -> 14862.3122 | P5: =$Q$3 -> -0.001577098249 | Q5: -1.109519071e-05 | R5: =IF(E5="",0,E5) -> 2025-12-06 | S5: =IFERROR(I5+G5+H5,0) -> 964.675286 | T5: =S5+T4 -> -14028.59471 | V5: =((1+-V3/V4))/Y4*360 -> 1.090277232 | X5: =IRR(S3:S81) -> 0.05496760141 | Y5: =X5/Y4*360 -> 0.01807154019
A6: =IF(OR(A5>Simulador!$C$24,A5=0),0,A5+1) -> 2 | B6: =IFERROR(_xlfn.DAYS(E6,D6),"") -> 31 | C6: =IFERROR(C5+B6,"") -> 60 | D6: =IF(A6<>0,E5,"") -> 2025-12-06 | E6: =IFERROR(EDATE(D6,1),"") -> 2026-01-06 | F6: =K5 -> 14862.3122 | G6: =F6*((1+Simulador!$C$10)^B6-1) -> 786.9455255 | H6: 133.142824 | I6: =F6*Simulador!$F$8 -> 44.58693659 | J6: =Simulador!$C$34+Q6 -> 964.675286 | K6: 14729.16937 | M6: =K6-L6 -> 14729.16937 | P6: =$Q$3 -> -0.001577098249 | Q6: -1.109519071e-05 | R6: 2026-01-06 | S6: 964.675286 | T6: =S6+T5 -> -13063.91943
A7: =IF(OR(A6>=Simulador!$C$24,A6=0),0,A6+1) -> 3 | B7: 31 | C7: 91 | D7: =IF(A7<>0,E6,"") -> 2026-01-06 | E7: 2026-02-06 | F7: 14729.16937 | G7: =F7*((1+Simulador!$C$10)^B7-1) -> 779.8957375 | H7: 140.5920404 | I7: =F7*Simulador!$F$8 -> 44.18750812 | J7: =Simulador!$C$34+Q7 -> 964.675286 | K7: 14588.57733 | M7: 14588.57733 | P7: -0.001577098249 | Q7: -1.109519071e-05 | R7: 2026-02-06 | S7: 964.675286 | T7: =S7+T6 -> -12099.24414 | V7: =(V3+V4)/V4 -> -1.316259915
A8: =IF(OR(A7>=Simulador!$C$24,A7=0),0,A7+1) -> 4 | B8: 28 | C8: 119 | D8: 2026-02-06 | E8: 2026-03-06 | F8: 14588.57733 | G8: =F8*((1+Simulador!$C$10)^B8-1) -> 695.9442816 | H8: 224.9652724 | I8: =F8*Simulador!$F$8 -> 43.76573199 | J8: =Simulador!$C$34+Q8 -> 964.675286 | K8: 14363.61206 | M8: 14363.61206 | P8: -0.001577098249 | Q8: -1.109519071e-05 | R8: 2026-03-06 | S8: 964.675286 | T8: =S8+T7 -> -11134.56886
A9: =IF(OR(A8>=Simulador!$C$24,A8=0),0,A8+1) -> 5 | B9: 31 | C9: 150 | D9: 2026-03-06 | E9: 2026-04-06 | F9: 14363.61206 | G9: =F9*((1+Simulador!$C$10)^B9-1) -> 760.5398198 | H9: 161.04463 | I9: =F9*Simulador!$F$8 -> 43.09083618 | J9: =Simulador!$C$34+Q9 -> 964.675286 | K9: 14202.56743 | M9: 14202.56743 | P9: -0.001577098249 | Q9: -1.109519071e-05 | R9: =IF(E9="",0,E9) -> 2026-04-06 | S9: 964.675286 | T9: =S9+T8 -> -10169.89357
A10: =IF(OR(A9>=Simulador!$C$24,A9=0),0,A9+1) -> 6 | B10: 30 | C10: 180 | D10: 2026-04-06 | E10: 2026-05-06 | F10: 14202.56743 | G10: =F10*((1+Simulador!$C$10)^B10-1) -> 727.1436982 | H10: 194.9238856 | I10: =F10*Simulador!$F$8 -> 42.60770229 | J10: =Simulador!$C$34+Q10 -> 964.675286 | K10: 14007.64354 | M10: 14007.64354 | P10: -0.001577098249 | Q10: -1.109519071e-05 | R10: 2026-05-06 | S10: 964.675286 | T10: -9205.218284 | V10: =XIRR(S3:S79,R3:R79) -> 0.9051582932
A11: =IF(OR(A10>=Simulador!$C$24,A10=0),0,A10+1) -> 7 | B11: 31 | C11: 211 | D11: 2026-05-06 | E11: 2026-06-06 | F11: 14007.64354 | G11: =F11*((1+Simulador!$C$10)^B11-1) -> 741.6916199 | H11: 180.9607354 | I11: =F11*Simulador!$F$8 -> 42.02293063 | J11: =Simulador!$C$34+Q11 -> 964.675286 | K11: 13826.68281 | M11: 13826.68281 | P11: -0.001577098249 | Q11: -1.109519071e-05 | R11: 2026-06-06 | S11: 964.675286 | T11: -8240.542998
A12: =IF(OR(A11>=Simulador!$C$24,A11=0),0,A11+1) -> 8 | B12: 30 | C12: 241 | D12: 2026-06-06 | E12: 2026-07-06 | F12: 13826.68281 | G12: =F12*((1+Simulador!$C$10)^B12-1) -> 707.8991401 | H12: 215.2960975 | I12: =F12*Simulador!$F$8 -> 41.48004842 | J12: =Simulador!$C$34+Q12 -> 964.675286 | K12: 13611.38671 | M12: 13611.38671 | P12: -0.001577098249 | Q12: -1.109519071e-05 | R12: 2026-07-06 | S12: 964.675286 | T12: -7275.867712
A13: =IF(OR(A12>=Simulador!$C$24,A12=0),0,A12+1) -> 9 | B13: 31 | C13: 272 | D13: 2026-07-06 | E13: 2026-08-06 | F13: 13611.38671 | G13: =F13*((1+Simulador!$C$10)^B13-1) -> 720.7101914 | H13: 203.1309345 | I13: =F13*Simulador!$F$8 -> 40.83416013 | J13: =Simulador!$C$34+Q13 -> 964.675286 | K13: 13408.25578 | M13: 13408.25578 | P13: -0.001577098249 | Q13: -1.109519071e-05 | R13: 2026-08-06 | S13: 964.675286 | T13: -6311.192426
A14: =IF(OR(A13>=Simulador!$C$24,A13=0),0,A13+1) -> 10 | B14: 31 | C14: 303 | D14: 2026-08-06 | E14: 2026-09-06 | F14: 13408.25578 | G14: =F14*((1+Simulador!$C$10)^B14-1) -> 709.9545985 | H14: 214.4959202 | I14: =F14*Simulador!$F$8 -> 40.22476733 | J14: =Simulador!$C$34+Q14 -> 964.675286 | K14: 13193.75986 | M14: 13193.75986 | P14: -0.001577098249 | Q14: -1.109519071e-05 | R14: 2026-09-06 | S14: 964.675286 | T14: -5346.51714
A15: =IF(OR(A14>=Simulador!$C$24,A14=0),0,A14+1) -> 11 | B15: 30 | C15: 333 | D15: 2026-09-06 | E15: 2026-10-06 | F15: 13193.75986 | G15: =F15*((1+Simulador!$C$10)^B15-1) -> 675.4947218 | H15: 249.5992847 | I15: =F15*Simulador!$F$8 -> 39.58127957 | J15: =Simulador!$C$34+Q15 -> 964.675286 | K15: 12944.16057 | M15: 12944.16057 | P15: -0.001577098249 | Q15: -1.109519071e-05 | R15: 2026-10-06 | S15: 964.675286 | T15: -4381.841854
A16: =IF(OR(A15>=Simulador!$C$24,A15=0),0,A15+1) -> 12 | B16: 31 | C16: 364 | D16: 2026-10-06 | E16: 2026-11-06 | F16: 12944.16057 | G16: =F16*((1+Simulador!$C$10)^B16-1) -> 685.3811916 | H16: 240.4616127 | I16: =F16*Simulador!$F$8 -> 38.83248171 | J16: =Simulador!$C$34+Q16 -> 964.675286 | K16: 12703.69896 | M16: 12703.69896 | P16: -0.001577098249 | Q16: -1.109519071e-05 | R16: 2026-11-06 | S16: 964.675286 | T16: -3417.166568
A17: =IF(OR(A16>=Simulador!$C$24,A16=0),0,A16+1) -> 13 | B17: 30 | C17: 394 | D17: 2026-11-06 | E17: 2026-12-06 | F17: 12703.69896 | G17: =F17*((1+Simulador!$C$10)^B17-1) -> 650.4045615 | H17: 276.1596276 | I17: =F17*Simulador!$F$8 -> 38.11109688 | J17: =Simulador!$C$34+Q17 -> 964.675286 | K17: 12427.53933 | M17: 12427.53933 | P17: -0.001577098249 | Q17: -1.109519071e-05 | R17: 2026-12-06 | S17: 964.675286 | T17: -2452.491282
A18: =IF(OR(A17>=Simulador!$C$24,A17=0),0,A17+1) -> 14 | B18: 31 | C18: 425 | D18: 2026-12-06 | E18: 2027-01-06 | F18: 12427.53933 | G18: =F18*((1+Simulador!$C$10)^B18-1) -> 658.0265802 | H18: 269.3660878 | I18: =F18*Simulador!$F$8 -> 37.28261799 | J18: =Simulador!$C$34+Q18 -> 964.675286 | K18: 12158.17324 | M18: 12158.17324 | P18: -0.001577098249 | Q18: -1.109519071e-05 | R18: 2027-01-06 | S18: 964.675286 | T18: -1487.815996
A19: =IF(OR(A18>=Simulador!$C$24,A18=0),0,A18+1) -> 15 | B19: 31 | C19: 456 | D19: 2027-01-06 | E19: 2027-02-06 | F19: 12158.17324 | G19: =F19*((1+Simulador!$C$10)^B19-1) -> 643.7638979 | H19: 284.4368684 | I19: =F19*Simulador!$F$8 -> 36.47451973 | J19: =Simulador!$C$34+Q19 -> 964.675286 | K19: 11873.73637 | M19: 11873.73637 | P19: -0.001577098249 | Q19: -1.109519071e-05 | R19: 2027-02-06 | S19: 964.675286 | T19: -523.1407097
A20: =IF(OR(A19>=Simulador!$C$24,A19=0),0,A19+1) -> 16 | B20: 28 | C20: 484 | D20: 2027-02-06 | E20: 2027-03-06 | F20: 11873.73637 | G20: =F20*((1+Simulador!$C$10)^B20-1) -> 566.4335009 | H20: 362.620576 | I20: =F20*Simulador!$F$8 -> 35.62120912 | J20: =Simulador!$C$34+Q20 -> 964.675286 | K20: 11511.1158 | M20: 11511.1158 | P20: -0.001577098249 | Q20: -1.109519071e-05 | R20: 2027-03-06 | S20: 964.675286 | T20: 441.5345763
A21: =IF(OR(A20>=Simulador!$C$24,A20=0),0,A20+1) -> 17 | B21: 31 | C21: 515 | D21: 2027-03-06 | E21: 2027-04-06 | F21: 11511.1158 | G21: =F21*((1+Simulador!$C$10)^B21-1) -> 609.5028116 | H21: 320.639127 | I21: =F21*Simulador!$F$8 -> 34.5333474 | J21: =Simulador!$C$34+Q21 -> 964.675286 | K21: 11190.47667 | M21: 11190.47667 | P21: -0.001577098249 | Q21: -1.109519071e-05 | R21: 2027-04-06 | S21: 964.675286 | T21: 1406.209862
A22: =IF(OR(A21>=Simulador!$C$24,A21=0),0,A21+1) -> 18 | B22: 30 | C22: 545 | D22: 2027-04-06 | E22: 2027-05-06 | F22: 11190.47667 | G22: =F22*((1+Simulador!$C$10)^B22-1) -> 572.9305375 | H22: 358.1733185 | I22: =F22*Simulador!$F$8 -> 33.57143002 | J22: =Simulador!$C$34+Q22 -> 964.675286 | K22: 10832.30335 | M22: 10832.30335 | P22: -0.001577098249 | Q22: -1.109519071e-05 | R22: 2027-05-06 | S22: 964.675286 | T22: 2370.885148
A23: =IF(OR(A22>=Simulador!$C$24,A22=0),0,A22+1) -> 19 | B23: 31 | C23: 576 | D23: 2027-05-06 | E23: 2027-06-06 | F23: 10832.30335 | G23: =F23*((1+Simulador!$C$10)^B23-1) -> 573.5603277 | H23: 358.6180482 | I23: =F23*Simulador!$F$8 -> 32.49691006 | J23: =Simulador!$C$34+Q23 -> 964.675286 | K23: 10473.68531 | M23: 10473.68531 | P23: -0.001577098249 | Q23: -1.109519071e-05 | R23: 2027-06-06 | S23: 964.675286 | T23: 3335.560434
A24: =IF(OR(A23>=Simulador!$C$24,A23=0),0,A23+1) -> 20 | B24: 30 | C24: 606 | D24: 2027-06-06 | E24: 2027-07-06 | F24: 10473.68531 | G24: =F24*((1+Simulador!$C$10)^B24-1) -> 536.2322203 | H24: 397.0220098 | I24: =F24*Simulador!$F$8 -> 31.42105592 | J24: =Simulador!$C$34+Q24 -> 964.675286 | K24: 10076.6633 | M24: 10076.6633 | P24: -0.001577098249 | Q24: -1.109519071e-05 | R24: 2027-07-06 | S24: 964.675286 | T24: 4300.23572
A25: =IF(OR(A24>=Simulador!$C$24,A24=0),0,A24+1) -> 21 | B25: 31 | C25: 637 | D25: 2027-07-06 | E25: 2027-08-06 | F25: 10076.6633 | G25: =F25*((1+Simulador!$C$10)^B25-1) -> 533.5498937 | H25: 400.8954025 | I25: =F25*Simulador!$F$8 -> 30.22998989 | J25: =Simulador!$C$34+Q25 -> 964.675286 | K25: 9675.767893 | M25: 9675.767893 | P25: -0.001577098249 | Q25: -1.109519071e-05 | R25: 2027-08-06 | S25: 964.675286 | T25: 5264.911006
A26: =IF(OR(A25>=Simulador!$C$24,A25=0),0,A25+1) -> 22 | B26: 31 | C26: 668 | D26: 2027-08-06 | E26: 2027-09-06 | F26: 9675.767893 | G26: =F26*((1+Simulador!$C$10)^B26-1) -> 512.3228572 | H26: 423.3251252 | I26: =F26*Simulador!$F$8 -> 29.02730368 | J26: =Simulador!$C$34+Q26 -> 964.675286 | K26: 9252.442768 | M26: 9252.442768 | P26: -0.001577098249 | Q26: -1.109519071e-05 | R26: 2027-09-06 | S26: 964.675286 | T26: 6229.586292
A27: =IF(OR(A26>=Simulador!$C$24,A26=0),0,A26+1) -> 23 | B27: 30 | C27: 698 | D27: 2027-09-06 | E27: 2027-10-06 | F27: 9252.442768 | G27: =F27*((1+Simulador!$C$10)^B27-1) -> 473.7069889 | H27: 463.2109689 | I27: =F27*Simulador!$F$8 -> 27.7573283 | J27: =Simulador!$C$34+Q27 -> 964.675286 | K27: 8789.231799 | M27: 8789.231799 | P27: -0.001577098249 | Q27: -1.109519071e-05 | R27: 2027-10-06 | S27: 964.675286 | T27: 7194.261578
A28: =IF(OR(A27>=Simulador!$C$24,A27=0),0,A27+1) -> 24 | B28: 31 | C28: 729 | D28: 2027-10-06 | E28: 2027-11-06 | F28: 8789.231799 | G28: =F28*((1+Simulador!$C$10)^B28-1) -> 465.3816004 | H28: 472.9259902 | I28: =F28*Simulador!$F$8 -> 26.3676954 | J28: =Simulador!$C$34+Q28 -> 964.675286 | K28: 8316.305809 | M28: 8316.305809 | P28: -0.001577098249 | Q28: -1.109519071e-05 | R28: 2027-11-06 | S28: 964.675286 | T28: 8158.936864
A29: =IF(OR(A28>=Simulador!$C$24,A28=0),0,A28+1) -> 25 | B29: 30 | C29: 759 | D29: 2027-11-06 | E29: 2027-12-06 | F29: 8316.305809 | G29: =F29*((1+Simulador!$C$10)^B29-1) -> 425.7786059 | H29: 513.9477627 | I29: =F29*Simulador!$F$8 -> 24.94891743 | J29: =Simulador!$C$34+Q29 -> 964.675286 | K29: 7802.358046 | M29: 7802.358046 | P29: -0.001577098249 | Q29: -1.109519071e-05 | R29: 2027-12-06 | S29: 964.675286 | T29: 9123.61215
A30: =IF(OR(A29>=Simulador!$C$24,A29=0),0,A29+1) -> 26 | B30: 31 | C30: 790 | D30: 2027-12-06 | E30: 2028-01-06 | F30: 7802.358046 | G30: =F30*((1+Simulador!$C$10)^B30-1) -> 413.1275586 | H30: 528.1406533 | I30: =F30*Simulador!$F$8 -> 23.40707414 | J30: =Simulador!$C$34+Q30 -> 964.675286 | K30: 7274.217393 | M30: 7274.217393 | P30: -0.001577098249 | Q30: -1.109519071e-05 | R30: 2028-01-06 | S30: 964.675286 | T30: 10088.28744
A31: =IF(OR(A30>=Simulador!$C$24,A30=0),0,A30+1) -> 27 | B31: 31 | C31: 821 | D31: 2028-01-06 | E31: 2028-02-06 | F31: 7274.217393 | G31: =F31*((1+Simulador!$C$10)^B31-1) -> 385.1630051 | H31: 557.6896287 | I31: =F31*Simulador!$F$8 -> 21.82265218 | J31: =Simulador!$C$34+Q31 -> 964.675286 | K31: 6716.527764 | M31: 6716.527764 | P31: -0.001577098249 | Q31: -1.109519071e-05 | R31: 2028-02-06 | S31: 964.675286 | T31: 11052.96272
A32: =IF(OR(A31>=Simulador!$C$24,A31=0),0,A31+1) -> 28 | B32: 29 | C32: 850 | D32: 2028-02-06 | E32: 2028-03-06 | F32: 6716.527764 | G32: =F32*((1+Simulador!$C$10)^B32-1) -> 332.1318893 | H32: 612.3938135 | I32: =F32*Simulador!$F$8 -> 20.14958329 | J32: =Simulador!$C$34+Q32 -> 964.675286 | K32: 6104.13395 | M32: 6104.13395 | P32: -0.001577098249 | Q32: -1.109519071e-05 | R32: 2028-03-06 | S32: 964.675286 | T32: 12017.63801
A33: =IF(OR(A32>=Simulador!$C$24,A32=0),0,A32+1) -> 29 | B33: 31 | C33: 881 | D33: 2028-03-06 | E33: 2028-04-06 | F33: 6104.13395 | G33: =F33*((1+Simulador!$C$10)^B33-1) -> 323.2081816 | H33: 623.1547026 | I33: =F33*Simulador!$F$8 -> 18.31240185 | J33: =Simulador!$C$34+Q33 -> 964.675286 | K33: 5480.979248 | M33: 5480.979248 | P33: -0.001577098249 | Q33: -1.109519071e-05 | R33: 2028-04-06 | S33: 964.675286 | T33: 12982.31329
A34: =IF(OR(A33>=Simulador!$C$24,A33=0),0,A33+1) -> 30 | B34: 30 | C34: 911 | D34: 2028-04-06 | E34: 2028-05-06 | F34: 5480.979248 | G34: =F34*((1+Simulador!$C$10)^B34-1) -> 280.6154267 | H34: 667.6169216 | I34: =F34*Simulador!$F$8 -> 16.44293774 | J34: =Simulador!$C$34+Q34 -> 964.675286 | K34: 4813.362326 | M34: 4813.362326 | P34: -0.001577098249 | Q34: -1.109519071e-05 | R34: 2028-05-06 | S34: 964.675286 | T34: 13946.98858
A35: =IF(OR(A34>=Simulador!$C$24,A34=0),0,A34+1) -> 31 | B35: 31 | C35: 942 | D35: 2028-05-06 | E35: 2028-06-06 | F35: 4813.362326 | G35: =F35*((1+Simulador!$C$10)^B35-1) -> 254.8630317 | H35: 695.3721673 | I35: =F35*Simulador!$F$8 -> 14.44008698 | J35: =Simulador!$C$34+Q35 -> 964.675286 | K35: 4117.990159 | M35: 4117.990159 | P35: -0.001577098249 | Q35: -1.109519071e-05 | R35: 2028-06-06 | S35: 964.675286 | T35: 14911.66387
A36: =IF(OR(A35>=Simulador!$C$24,A35=0),0,A35+1) -> 32 | B36: 30 | C36: 972 | D36: 2028-06-06 | E36: 2028-07-06 | F36: 4117.990159 | G36: =F36*((1+Simulador!$C$10)^B36-1) -> 210.8330489 | H36: 741.4882667 | I36: =F36*Simulador!$F$8 -> 12.35397048 | J36: =Simulador!$C$34+Q36 -> 964.675286 | K36: 3376.501892 | M36: 3376.501892 | P36: -0.001577098249 | Q36: -1.109519071e-05 | R36: 2028-07-06 | S36: 964.675286 | T36: 15876.33915
A37: =IF(OR(A36>=Simulador!$C$24,A36=0),0,A36+1) -> 33 | B37: 31 | C37: 1003 | D37: 2028-07-06 | E37: 2028-08-06 | F37: 3376.501892 | G37: =F37*((1+Simulador!$C$10)^B37-1) -> 178.7826161 | H37: 775.7631642 | I37: =F37*Simulador!$F$8 -> 10.12950568 | J37: =Simulador!$C$34+Q37 -> 964.675286 | K37: 2600.738728 | M37: 2600.738728 | P37: -0.001577098249 | Q37: -1.109519071e-05 | R37: 2028-08-06 | S37: 964.675286 | T37: 16841.01444
A38: =IF(OR(A37>=Simulador!$C$24,A37=0),0,A37+1) -> 34 | B38: 31 | C38: 1034 | D38: 2028-08-06 | E38: 2028-09-06 | F38: 2600.738728 | G38: =F38*((1+Simulador!$C$10)^B38-1) -> 137.7066824 | H38: 819.1663875 | I38: =F38*Simulador!$F$8 -> 7.802216184 | J38: =Simulador!$C$34+Q38 -> 964.675286 | K38: 1781.572341 | M38: 1781.572341 | P38: -0.001577098249 | Q38: -1.109519071e-05 | R38: 2028-09-06 | S38: 964.675286 | T38: 17805.68972
A39: =IF(OR(A38>=Simulador!$C$24,A38=0),0,A38+1) -> 35 | B39: 30 | C39: 1064 | D39: 2028-09-06 | E39: 2028-10-06 | F39: 1781.572341 | G39: =F39*((1+Simulador!$C$10)^B39-1) -> 91.21302234 | H39: 868.1175467 | I39: =F39*Simulador!$F$8 -> 5.344717022 | J39: =Simulador!$C$34+Q39 -> 964.675286 | K39: 913.4547939 | M39: 913.4547939 | P39: -0.001577098249 | Q39: -1.109519071e-05 | R39: 2028-10-06 | S39: 964.675286 | T39: 18770.36501
A40: =IF(OR(A39>=Simulador!$C$24,A39=0),0,A39+1) -> 36 | B40: 31 | C40: 1095 | D40: 2028-10-06 | E40: 2028-11-06 | F40: 913.4547939 | G40: =F40*((1+Simulador!$C$10)^B40-1) -> 48.3665767 | H40: 913.5683449 | I40: =F40*Simulador!$F$8 -> 2.740364382 | J40: =Simulador!$C$34+Q40 -> 964.675286 | K40: =F40-H40 -> -0.1135510739 | M40: -0.1135510739 | P40: -0.001577098249 | Q40: -1.109519071e-05 | R40: 2028-11-06 | S40: 964.675286 | T40: 19735.0403
A41: =IF(OR(A40>=Simulador!$C$24,A40=0),0,A40+1) -> 0 | F41: -0.1135510739 | G41: =F41*((1+Simulador!$C$10)^B41-1) ->  | I41: =F41*Simulador!$F$8 -> -0.0003406532217 | J41: =Simulador!$C$34+Q41 -> 964.675286 | P41: -0.001577098249 | Q41: -1.109519071e-05 | R41: =IF(E41="",0,E41) -> 00:00:00 | S41: 0
A42: =IF(OR(A41>=Simulador!$C$24,A41=0),0,A41+1) -> 0 | G42: =F42*((1+Simulador!$C$10)^B42-1) ->  | I42: =F42*Simulador!$F$8 ->  | J42: =$J$5 -> 964.675286 | P42: -0.001577098249 | Q42: -1.109519071e-05 | R42: =IF(E42="",0,E42) -> 00:00:00 | S42: 0
A43: =IF(OR(A42>=Simulador!$C$24,A42=0),0,A42+1) -> 0 | G43: =F43*((1+Simulador!$C$10)^B43-1) ->  | I43: =F43*Simulador!$F$8 ->  | J43: 964.675286 | P43: -0.001577098249 | Q43: -1.109519071e-05 | R43: 00:00:00 | S43: 0
A44: =IF(OR(A43>=Simulador!$C$24,A43=0),0,A43+1) -> 0 | G44: =F44*((1+Simulador!$C$10)^B44-1) ->  | I44: =F44*Simulador!$F$8 ->  | J44: 964.675286 | P44: -0.001577098249 | Q44: -1.109519071e-05 | R44: 00:00:00 | S44: 0
A45: =IF(OR(A44>=Simulador!$C$24,A44=0),0,A44+1) -> 0 | G45: =F45*((1+Simulador!$C$10)^B45-1) ->  | I45: =F45*Simulador!$F$8 ->  | J45: 964.675286 | P45: -0.001577098249 | Q45: -1.109519071e-05 | R45: 00:00:00 | S45: 0
A46: =IF(OR(A45>=Simulador!$C$24,A45=0),0,A45+1) -> 0 | G46: =F46*((1+Simulador!$C$10)^B46-1) ->  | I46: =F46*Simulador!$F$8 ->  | J46: 964.675286 | P46: -0.001577098249 | Q46: -1.109519071e-05 | R46: 00:00:00 | S46: 0
A47: =IF(OR(A46>=Simulador!$C$24,A46=0),0,A46+1) -> 0 | G47: =F47*((1+Simulador!$C$10)^B47-1) ->  | I47: =F47*Simulador!$F$8 ->  | J47: 964.675286 | P47: -0.001577098249 | Q47: -1.109519071e-05 | R47: 00:00:00 | S47: 0
A48: =IF(OR(A47>=Simulador!$C$24,A47=0),0,A47+1) -> 0 | G48: =F48*((1+Simulador!$C$10)^B48-1) ->  | I48: =F48*Simulador!$F$8 ->  | J48: 964.675286 | P48: -0.001577098249 | Q48: -1.109519071e-05 | R48: 00:00:00 | S48: 0
A49: =IF(OR(A48>=Simulador!$C$24,A48=0),0,A48+1) -> 0 | G49: =F49*((1+Simulador!$C$10)^B49-1) ->  | I49: =F49*Simulador!$F$8 ->  | J49: 964.675286 | P49: -0.001577098249 | Q49: -1.109519071e-05 | R49: 00:00:00 | S49: 0
A50: =IF(OR(A49>=Simulador!$C$24,A49=0),0,A49+1) -> 0 | G50: =F50*((1+Simulador!$C$10)^B50-1) ->  | I50: =F50*Simulador!$F$8 ->  | J50: 964.675286 | P50: -0.001577098249 | Q50: -1.109519071e-05 | R50: 00:00:00 | S50: 0
A51: =IF(OR(A50>=Simulador!$C$24,A50=0),0,A50+1) -> 0 | G51: =F51*((1+Simulador!$C$10)^B51-1) ->  | I51: =F51*Simulador!$F$8 ->  | J51: 964.675286 | P51: -0.001577098249 | Q51: -1.109519071e-05 | R51: 00:00:00 | S51: 0
A52: =IF(OR(A51>=Simulador!$C$24,A51=0),0,A51+1) -> 0 | G52: =F52*((1+Simulador!$C$10)^B52-1) ->  | I52: =F52*Simulador!$F$8 ->  | J52: 964.675286 | P52: -0.001577098249 | Q52: -1.109519071e-05 | R52: 00:00:00 | S52: 0
A53: =IF(OR(A52>=Simulador!$C$24,A52=0),0,A52+1) -> 0 | G53: =F53*((1+Simulador!$C$10)^B53-1) ->  | I53: =F53*Simulador!$F$8 ->  | J53: 964.675286 | P53: -0.001577098249 | Q53: -1.109519071e-05 | R53: 00:00:00 | S53: 0
A54: =IF(OR(A53>=Simulador!$C$24,A53=0),0,A53+1) -> 0 | D54: =IF(A54<>0,E53,"") ->  | E54: =IFERROR(EDATE(D54,1),"") ->  | G54: =F54*((1+Simulador!$C$10)^B54-1) ->  | I54: =F54*Simulador!$F$8 ->  | J54: 964.675286 | P54: -0.001577098249 | Q54: -1.109519071e-05 | R54: 00:00:00 | S54: 0
A55: =IF(OR(A54>=Simulador!$C$24,A54=0),0,A54+1) -> 0 | G55: =F55*((1+Simulador!$C$10)^B55-1) ->  | I55: =F55*Simulador!$F$8 ->  | J55: 964.675286 | P55: -0.001577098249 | Q55: -1.109519071e-05 | R55: 00:00:00 | S55: 0
A56: =IF(OR(A55>=Simulador!$C$24,A55=0),0,A55+1) -> 0 | G56: =F56*((1+Simulador!$C$10)^B56-1) ->  | I56: =F56*Simulador!$F$8 ->  | J56: 964.675286 | P56: -0.001577098249 | Q56: -1.109519071e-05 | R56: 00:00:00 | S56: 0
A57: =IF(OR(A56>=Simulador!$C$24,A56=0),0,A56+1) -> 0 | G57: =F57*((1+Simulador!$C$10)^B57-1) ->  | I57: =F57*Simulador!$F$8 ->  | J57: 964.675286 | P57: -0.001577098249 | Q57: -1.109519071e-05 | R57: 00:00:00 | S57: 0
A58: =IF(OR(A57>=Simulador!$C$24,A57=0),0,A57+1) -> 0 | G58: =F58*((1+Simulador!$C$10)^B58-1) ->  | I58: =F58*Simulador!$F$8 ->  | J58: 964.675286 | P58: -0.001577098249 | Q58: -1.109519071e-05 | R58: 00:00:00 | S58: 0
A59: =IF(OR(A58>=Simulador!$C$24,A58=0),0,A58+1) -> 0 | G59: =F59*((1+Simulador!$C$10)^B59-1) ->  | I59: =F59*Simulador!$F$8 ->  | J59: 964.675286 | P59: -0.001577098249 | Q59: -1.109519071e-05 | R59: 00:00:00 | S59: 0
A60: =IF(OR(A59>=Simulador!$C$24,A59=0),0,A59+1) -> 0 | G60: =F60*((1+Simulador!$C$10)^B60-1) ->  | I60: =F60*Simulador!$F$8 ->  | J60: 964.675286 | P60: -0.001577098249 | Q60: -1.109519071e-05 | R60: 00:00:00 | S60: 0
A61: =IF(OR(A60>=Simulador!$C$24,A60=0),0,A60+1) -> 0 | G61: =F61*((1+Simulador!$C$10)^B61-1) ->  | I61: =F61*Simulador!$F$8 ->  | J61: 964.675286 | P61: -0.001577098249 | Q61: -1.109519071e-05 | R61: 00:00:00 | S61: 0
A62: =IF(OR(A61>=Simulador!$C$24,A61=0),0,A61+1) -> 0 | G62: =F62*((1+Simulador!$C$10)^B62-1) ->  | I62: =F62*Simulador!$F$8 ->  | J62: 964.675286 | P62: -0.001577098249 | Q62: -1.109519071e-05 | R62: 00:00:00 | S62: 0
A63: =IF(OR(A62>=Simulador!$C$24,A62=0),0,A62+1) -> 0 | G63: =F63*((1+Simulador!$C$10)^B63-1) ->  | I63: =F63*Simulador!$F$8 ->  | J63: 964.675286 | P63: -0.001577098249 | Q63: -1.109519071e-05 | R63: 00:00:00 | S63: 0
A64: =IF(OR(A63>=Simulador!$C$24,A63=0),0,A63+1) -> 0 | G64: =F64*((1+Simulador!$C$10)^B64-1) ->  | I64: =F64*Simulador!$F$8 ->  | J64: 964.675286 | P64: -0.001577098249 | Q64: -1.109519071e-05 | R64: 00:00:00 | S64: 0
A65: =IF(OR(A64>=Simulador!$C$24,A64=0),0,A64+1) -> 0 | G65: =F65*((1+Simulador!$C$10)^B65-1) ->  | I65: =F65*Simulador!$F$8 ->  | J65: 964.675286 | P65: -0.001577098249 | Q65: -1.109519071e-05 | R65: 00:00:00 | S65: 0
A66: =IF(OR(A65>=Simulador!$C$24,A65=0),0,A65+1) -> 0 | G66: =F66*((1+Simulador!$C$10)^B66-1) ->  | I66: =F66*Simulador!$F$8 ->  | J66: 964.675286 | P66: -0.001577098249 | Q66: -1.109519071e-05 | R66: 00:00:00 | S66: 0
A67: =IF(OR(A66>=Simulador!$C$24,A66=0),0,A66+1) -> 0 | G67: =F67*((1+Simulador!$C$10)^B67-1) ->  | I67: =F67*Simulador!$F$8 ->  | J67: 964.675286 | P67: -0.001577098249 | Q67: -1.109519071e-05 | R67: 00:00:00 | S67: 0
A68: =IF(OR(A67>=Simulador!$C$24,A67=0),0,A67+1) -> 0 | G68: =F68*((1+Simulador!$C$10)^B68-1) ->  | I68: =F68*Simulador!$F$8 ->  | J68: 964.675286 | P68: -0.001577098249 | Q68: -1.109519071e-05 | R68: 00:00:00 | S68: 0
A69: =IF(OR(A68>=Simulador!$C$24,A68=0),0,A68+1) -> 0 | G69: =F69*((1+Simulador!$C$10)^B69-1) ->  | H69: =J69-I69-G69 ->  | I69: =F69*Simulador!$F$8 ->  | J69: 964.675286 | K69: =F69-H69 ->  | P69: -0.001577098249 | Q69: -1.109519071e-05 | R69: 00:00:00 | S69: =IFERROR(I69+G69+H69,0) -> 0
A70: =IF(OR(A69>=Simulador!$C$24,A69=0),0,A69+1) -> 0 | B70: =IFERROR(_xlfn.DAYS(E70,D70),"") ->  | C70: =IFERROR(C69+B70,"") ->  | E70: =IFERROR(EDATE(D70,1),"") ->  | F70: =K69 ->  | G70: =F70*((1+Simulador!$C$10)^B70-1) ->  | I70: =F70*Simulador!$F$8 ->  | J70: 964.675286 | M70: =K70-L70 ->  | P70: =$Q$3 -> -0.001577098249 | Q70: -1.109519071e-05 | R70: 00:00:00 | S70: 0
A71: =IF(OR(A70>=Simulador!$C$24,A70=0),0,A70+1) -> 0 | D71: =IF(A71<>0,E70,"") ->  | G71: =F71*((1+Simulador!$C$10)^B71-1) ->  | I71: =F71*Simulador!$F$8 ->  | J71: =$J$5 -> 964.675286 | P71: -0.001577098249 | Q71: -1.109519071e-05 | R71: 00:00:00 | S71: 0
A72: =IF(OR(A71>=Simulador!$C$24,A71=0),0,A71+1) -> 0 | G72: =F72*((1+Simulador!$C$10)^B72-1) ->  | I72: =F72*Simulador!$F$8 ->  | J72: 964.675286 | P72: -0.001577098249 | Q72: -1.109519071e-05 | R72: 00:00:00 | S72: 0
A73: =IF(OR(A72>=Simulador!$C$24,A72=0),0,A72+1) -> 0 | G73: =F73*((1+Simulador!$C$10)^B73-1) ->  | I73: =F73*Simulador!$F$8 ->  | J73: 964.675286 | P73: -0.001577098249 | Q73: -1.109519071e-05 | R73: 00:00:00 | S73: 0
A74: =IF(OR(A73>=Simulador!$C$24,A73=0),0,A73+1) -> 0 | G74: =F74*((1+Simulador!$C$10)^B74-1) ->  | I74: =F74*Simulador!$F$8 ->  | J74: 964.675286 | P74: -0.001577098249 | Q74: -1.109519071e-05 | R74: 00:00:00 | S74: 0
A75: =IF(OR(A74>=Simulador!$C$24,A74=0),0,A74+1) -> 0 | G75: =F75*((1+Simulador!$C$10)^B75-1) ->  | I75: =F75*Simulador!$F$8 ->  | J75: 964.675286 | P75: -0.001577098249 | Q75: -1.109519071e-05 | R75: 00:00:00 | S75: 0
A76: =IF(OR(A75>=Simulador!$C$24,A75=0),0,A75+1) -> 0 | G76: =F76*((1+Simulador!$C$10)^B76-1) ->  | I76: =F76*Simulador!$F$8 ->  | J76: 964.675286 | P76: -0.001577098249 | Q76: -1.109519071e-05 | R76: 00:00:00 | S76: 0
A77: =IF(OR(A76>=Simulador!$C$24,A76=0),0,A76+1) -> 0 | G77: =F77*((1+Simulador!$C$10)^B77-1) ->  | I77: =F77*Simulador!$F$8 ->  | J77: 964.675286 | P77: -0.001577098249 | Q77: -1.109519071e-05 | R77: 00:00:00 | S77: 0
A78: =IF(OR(A77>=Simulador!$C$24,A77=0),0,A77+1) -> 0 | G78: =F78*((1+Simulador!$C$10)^B78-1) ->  | I78: =F78*Simulador!$F$8 ->  | J78: 964.675286 | P78: -0.001577098249 | Q78: -1.109519071e-05 | R78: 00:00:00 | S78: 0
A79: =IF(OR(A78>=Simulador!$C$24,A78=0),0,A78+1) -> 0 | G79: =F79*((1+Simulador!$C$10)^B79-1) ->  | I79: =F79*Simulador!$F$8 ->  | J79: 964.675286 | P79: -0.001577098249 | Q79: -1.109519071e-05 | R79: 00:00:00 | S79: 0
A80: =IF(OR(A79>=Simulador!$C$24,A79=0),0,A79+1) -> 0 | G80: =F80*((1+Simulador!$C$10)^B80-1) ->  | I80: =F80*Simulador!$F$8 ->  | J80: 964.675286 | P80: -0.001577098249 | Q80: -1.109519071e-05 | R80: 00:00:00 | S80: 0
A81: =IF(OR(A80>=Simulador!$C$24,A80=0),0,A80+1) -> 0 | G81: =F81*((1+Simulador!$C$10)^B81-1) ->  | I81: =F81*Simulador!$F$8 ->  | J81: 964.675286 | P81: -0.001577098249 | Q81: -1.109519071e-05 | R81: 00:00:00 | S81: 0
A82: =IF(OR(A81>=Simulador!$C$24,A81=0),0,A81+1) -> 0 | G82: =F82*((1+Simulador!$C$10)^B82-1) ->  | I82: =F82*Simulador!$F$8 ->  | J82: 964.675286 | P82: -0.001577098249 | Q82: -1.109519071e-05 | R82: 00:00:00
A83: =IF(OR(A82>=Simulador!$C$24,A82=0),0,A82+1) -> 0 | G83: =F83*((1+Simulador!$C$10)^B83-1) ->  | I83: =F83*Simulador!$F$8 ->  | J83: 964.675286 | P83: -0.001577098249 | Q83: -1.109519071e-05 | R83: 00:00:00
A84: =IF(OR(A83>=Simulador!$C$24,A83=0),0,A83+1) -> 0 | G84: =F84*((1+Simulador!$C$10)^B84-1) ->  | I84: =F84*Simulador!$F$8 ->  | J84: 964.675286 | P84: -0.001577098249 | Q84: -1.109519071e-05 | R84: 00:00:00
A85: =IF(OR(A84>=Simulador!$C$24,A84=0),0,A84+1) -> 0 | G85: =F85*((1+Simulador!$C$10)^B85-1) ->  | I85: =F85*Simulador!$F$8 ->  | J85: 964.675286 | P85: -0.001577098249 | Q85: -1.109519071e-05 | R85: 00:00:00
A86: =IF(OR(A85>=Simulador!$C$24,A85=0),0,A85+1) -> 0 | G86: =F86*((1+Simulador!$C$10)^B86-1) ->  | I86: =F86*Simulador!$F$8 ->  | J86: 964.675286 | P86: -0.001577098249 | Q86: -1.109519071e-05 | R86: 00:00:00
A87: =IF(OR(A86>=Simulador!$C$24,A86=0),0,A86+1) -> 0 | G87: =F87*((1+Simulador!$C$10)^B87-1) ->  | I87: =F87*Simulador!$F$8 ->  | J87: 964.675286 | P87: -0.001577098249 | Q87: -1.109519071e-05 | R87: 00:00:00
A88: =IF(OR(A87>=Simulador!$C$24,A87=0),0,A87+1) -> 0 | G88: =F88*((1+Simulador!$C$10)^B88-1) ->  | I88: =F88*Simulador!$F$8 ->  | J88: 964.675286 | P88: -0.001577098249 | Q88: -1.109519071e-05 | R88: 00:00:00
A89: =IF(OR(A88>=Simulador!$C$24,A88=0),0,A88+1) -> 0 | G89: =F89*((1+Simulador!$C$10)^B89-1) ->  | I89: =F89*Simulador!$F$8 ->  | J89: 964.675286
A90: =IF(OR(A89>=Simulador!$C$24,A89=0),0,A89+1) -> 0 | G90: =F90*((1+Simulador!$C$10)^B90-1) ->  | I90: =F90*Simulador!$F$8 ->  | J90: 964.675286
A91: =IF(OR(A90>=Simulador!$C$24,A90=0),0,A90+1) -> 0 | G91: =F91*((1+Simulador!$C$10)^B91-1) ->  | I91: =F91*Simulador!$F$8 ->  | J91: 964.675286
A92: =IF(OR(A91>=Simulador!$C$24,A91=0),0,A91+1) -> 0 | G92: =F92*((1+Simulador!$C$10)^B92-1) ->  | I92: =F92*Simulador!$F$8 ->  | J92: 964.675286
A93: =IF(OR(A92>=Simulador!$C$24,A92=0),0,A92+1) -> 0 | G93: =F93*((1+Simulador!$C$10)^B93-1) ->  | I93: =F93*Simulador!$F$8 ->  | J93: 964.675286
A94: =IF(OR(A93>=Simulador!$C$24,A93=0),0,A93+1) -> 0 | G94: =F94*((1+Simulador!$C$10)^B94-1) ->  | I94: =F94*Simulador!$F$8 ->  | J94: 964.675286
A95: =IF(OR(A94>=Simulador!$C$24,A94=0),0,A94+1) -> 0 | G95: =F95*((1+Simulador!$C$10)^B95-1) ->  | I95: =F95*Simulador!$F$8 ->  | J95: 964.675286
A96: =IF(OR(A95>=Simulador!$C$24,A95=0),0,A95+1) -> 0 | G96: =F96*((1+Simulador!$C$10)^B96-1) ->  | I96: =F96*Simulador!$F$8 ->  | J96: 964.675286
A97: =IF(OR(A96>=Simulador!$C$24,A96=0),0,A96+1) -> 0 | G97: =F97*((1+Simulador!$C$10)^B97-1) ->  | I97: =F97*Simulador!$F$8 ->  | J97: 964.675286
A98: =IF(OR(A97>=Simulador!$C$24,A97=0),0,A97+1) -> 0 | G98: =F98*((1+Simulador!$C$10)^B98-1) ->  | I98: =F98*Simulador!$F$8 ->  | J98: 964.675286
A99: =IF(OR(A98>=Simulador!$C$24,A98=0),0,A98+1) -> 0 | G99: =F99*((1+Simulador!$C$10)^B99-1) ->  | I99: =F99*Simulador!$F$8 ->  | J99: 964.675286
A100: =IF(OR(A99>=Simulador!$C$24,A99=0),0,A99+1) -> 0 | G100: =F100*((1+Simulador!$C$10)^B100-1) ->  | I100: =F100*Simulador!$F$8 ->  | J100: 964.675286
A101: =IF(OR(A100>=Simulador!$C$24,A100=0),0,A100+1) -> 0 | G101: =F101*((1+Simulador!$C$10)^B101-1) ->  | I101: =F101*Simulador!$F$8 ->  | J101: 964.675286
A102: =IF(OR(A101>=Simulador!$C$24,A101=0),0,A101+1) -> 0 | G102: =F102*((1+Simulador!$C$10)^B102-1) ->  | I102: =F102*Simulador!$F$8 ->  | J102: 964.675286
A103: =IF(OR(A102>=Simulador!$C$24,A102=0),0,A102+1) -> 0 | G103: =F103*((1+Simulador!$C$10)^B103-1) ->  | I103: =F103*Simulador!$F$8 ->  | J103: 964.675286
A104: =IF(OR(A103>=Simulador!$C$24,A103=0),0,A103+1) -> 0 | G104: =F104*((1+Simulador!$C$10)^B104-1) ->  | I104: =F104*Simulador!$F$8 ->  | J104: 964.675286
A105: =IF(OR(A104>=Simulador!$C$24,A104=0),0,A104+1) -> 0 | G105: =F105*((1+Simulador!$C$10)^B105-1) ->  | I105: =F105*Simulador!$F$8 ->  | J105: 964.675286
A106: =IF(OR(A105>=Simulador!$C$24,A105=0),0,A105+1) -> 0 | G106: =F106*((1+Simulador!$C$10)^B106-1) ->  | I106: =F106*Simulador!$F$8 ->  | J106: 964.675286
A107: =IF(OR(A106>=Simulador!$C$24,A106=0),0,A106+1) -> 0 | G107: =F107*((1+Simulador!$C$10)^B107-1) ->  | I107: =F107*Simulador!$F$8 ->  | J107: 964.675286
A108: =IF(OR(A107>=Simulador!$C$24,A107=0),0,A107+1) -> 0 | G108: =F108*((1+Simulador!$C$10)^B108-1) ->  | I108: =F108*Simulador!$F$8 ->  | J108: 964.675286
A109: =IF(OR(A108>=Simulador!$C$24,A108=0),0,A108+1) -> 0 | G109: =F109*((1+Simulador!$C$10)^B109-1) ->  | I109: =F109*Simulador!$F$8 ->  | J109: 964.675286
A110: =IF(OR(A109>=Simulador!$C$24,A109=0),0,A109+1) -> 0 | G110: =F110*((1+Simulador!$C$10)^B110-1) ->  | I110: =F110*Simulador!$F$8 ->  | J110: 964.675286
A111: =IF(OR(A110>=Simulador!$C$24,A110=0),0,A110+1) -> 0 | G111: =F111*((1+Simulador!$C$10)^B111-1) ->  | I111: =F111*Simulador!$F$8 ->  | J111: 964.675286
A112: =IF(OR(A111>=Simulador!$C$24,A111=0),0,A111+1) -> 0 | G112: =F112*((1+Simulador!$C$10)^B112-1) ->  | I112: =F112*Simulador!$F$8 ->  | J112: 964.675286
A113: =IF(OR(A112>=Simulador!$C$24,A112=0),0,A112+1) -> 0 | G113: =F113*((1+Simulador!$C$10)^B113-1) ->  | I113: =F113*Simulador!$F$8 ->  | J113: 964.675286
A114: =IF(OR(A113>=Simulador!$C$24,A113=0),0,A113+1) -> 0 | G114: =F114*((1+Simulador!$C$10)^B114-1) ->  | I114: =F114*Simulador!$F$8 ->  | J114: 964.675286
A115: =IF(OR(A114>=Simulador!$C$24,A114=0),0,A114+1) -> 0 | G115: =F115*((1+Simulador!$C$10)^B115-1) ->  | I115: =F115*Simulador!$F$8 ->  | J115: 964.675286
A116: =IF(OR(A115>=Simulador!$C$24,A115=0),0,A115+1) -> 0 | G116: =F116*((1+Simulador!$C$10)^B116-1) ->  | I116: =F116*Simulador!$F$8 ->  | J116: 964.675286
A117: =IF(OR(A116>=Simulador!$C$24,A116=0),0,A116+1) -> 0 | G117: =F117*((1+Simulador!$C$10)^B117-1) ->  | I117: =F117*Simulador!$F$8 ->  | J117: 964.675286
A118: =IF(OR(A117>=Simulador!$C$24,A117=0),0,A117+1) -> 0 | G118: =F118*((1+Simulador!$C$10)^B118-1) ->  | I118: =F118*Simulador!$F$8 ->  | J118: 964.675286
A119: =IF(OR(A118>=Simulador!$C$24,A118=0),0,A118+1) -> 0 | G119: =F119*((1+Simulador!$C$10)^B119-1) ->  | I119: =F119*Simulador!$F$8 ->  | J119: 964.675286
A120: =IF(OR(A119>=Simulador!$C$24,A119=0),0,A119+1) -> 0 | G120: =F120*((1+Simulador!$C$10)^B120-1) ->  | I120: =F120*Simulador!$F$8 ->  | J120: 964.675286
A121: =IF(OR(A120>=Simulador!$C$24,A120=0),0,A120+1) -> 0 | G121: =F121*((1+Simulador!$C$10)^B121-1) ->  | I121: =F121*Simulador!$F$8 ->  | J121: 964.675286
A122: =IF(OR(A121>=Simulador!$C$24,A121=0),0,A121+1) -> 0 | G122: =F122*((1+Simulador!$C$10)^B122-1) ->  | I122: =F122*Simulador!$F$8 ->  | J122: 964.675286
A123: =IF(OR(A122>=Simulador!$C$24,A122=0),0,A122+1) -> 0 | G123: =F123*((1+Simulador!$C$10)^B123-1) ->  | I123: =F123*Simulador!$F$8 ->  | J123: 964.675286
A124: =IF(OR(A123>=Simulador!$C$24,A123=0),0,A123+1) -> 0 | G124: =F124*((1+Simulador!$C$10)^B124-1) ->  | I124: =F124*Simulador!$F$8 ->  | J124: 964.675286
A125: =IF(OR(A124>=Simulador!$C$24,A124=0),0,A124+1) -> 0 | G125: =F125*((1+Simulador!$C$10)^B125-1) ->  | I125: =F125*Simulador!$F$8 ->  | J125: 964.675286
A126: =IF(OR(A125>=Simulador!$C$24,A125=0),0,A125+1) -> 0 | G126: =F126*((1+Simulador!$C$10)^B126-1) ->  | I126: =F126*Simulador!$F$8 ->  | J126: 964.675286
A127: =IF(OR(A126>=Simulador!$C$24,A126=0),0,A126+1) -> 0 | G127: =F127*((1+Simulador!$C$10)^B127-1) ->  | I127: =F127*Simulador!$F$8 ->  | J127: 964.675286
A128: =IF(OR(A127>=Simulador!$C$24,A127=0),0,A127+1) -> 0 | G128: =F128*((1+Simulador!$C$10)^B128-1) ->  | I128: =F128*Simulador!$F$8 ->  | J128: 964.675286
A129: =IF(OR(A128>=Simulador!$C$24,A128=0),0,A128+1) -> 0 | G129: =F129*((1+Simulador!$C$10)^B129-1) ->  | I129: =F129*Simulador!$F$8 ->  | J129: 964.675286
A130: =IF(OR(A129>=Simulador!$C$24,A129=0),0,A129+1) -> 0 | G130: =F130*((1+Simulador!$C$10)^B130-1) ->  | I130: =F130*Simulador!$F$8 ->  | J130: 964.675286
A131: =IF(OR(A130>=Simulador!$C$24,A130=0),0,A130+1) -> 0 | G131: =F131*((1+Simulador!$C$10)^B131-1) ->  | I131: =F131*Simulador!$F$8 ->  | J131: 964.675286
A132: =IF(OR(A131>=Simulador!$C$24,A131=0),0,A131+1) -> 0 | G132: =F132*((1+Simulador!$C$10)^B132-1) ->  | I132: =F132*Simulador!$F$8 ->  | J132: 964.675286
A133: =IF(OR(A132>=Simulador!$C$24,A132=0),0,A132+1) -> 0 | G133: =F133*((1+Simulador!$C$10)^B133-1) ->  | H133: =J133-I133-G133 ->  | I133: =F133*Simulador!$F$8 ->  | J133: 964.675286 | K133: =F133-H133 -> 
A134: =IF(OR(A133>=Simulador!$C$24,A133=0),0,A133+1) -> 0 | B134: =IFERROR(_xlfn.DAYS(E134,D134),"") ->  | C134: =IFERROR(C133+B134,"") ->  | E134: =IFERROR(EDATE(D134,1),"") ->  | F134: =K133 ->  | G134: =F134*((1+Simulador!$C$10)^B134-1) ->  | I134: =F134*Simulador!$F$8 ->  | J134: 964.675286 | M134: =K134-L134 -> 
A135: =IF(OR(A134>=Simulador!$C$24,A134=0),0,A134+1) -> 0 | D135: =IF(A135<>0,E134,"") ->  | G135: =F135*((1+Simulador!$C$10)^B135-1) ->  | I135: =F135*Simulador!$F$8 ->  | J135: =$J$5 -> 964.675286
A136: =IF(OR(A135>=Simulador!$C$24,A135=0),0,A135+1) -> 0 | G136: =F136*((1+Simulador!$C$10)^B136-1) ->  | I136: =F136*Simulador!$F$8 ->  | J136: 964.675286
A137: =IF(OR(A136>=Simulador!$C$24,A136=0),0,A136+1) -> 0 | G137: =F137*((1+Simulador!$C$10)^B137-1) ->  | I137: =F137*Simulador!$F$8 ->  | J137: 964.675286
A138: =IF(OR(A137>=Simulador!$C$24,A137=0),0,A137+1) -> 0 | G138: =F138*((1+Simulador!$C$10)^B138-1) ->  | I138: =F138*Simulador!$F$8 ->  | J138: 964.675286
A139: =IF(OR(A138>=Simulador!$C$24,A138=0),0,A138+1) -> 0 | G139: =F139*((1+Simulador!$C$10)^B139-1) ->  | I139: =F139*Simulador!$F$8 ->  | J139: 964.675286
A140: =IF(OR(A139>=Simulador!$C$24,A139=0),0,A139+1) -> 0 | G140: =F140*((1+Simulador!$C$10)^B140-1) ->  | I140: =F140*Simulador!$F$8 ->  | J140: 964.675286
A141: =IF(OR(A140>=Simulador!$C$24,A140=0),0,A140+1) -> 0 | G141: =F141*((1+Simulador!$C$10)^B141-1) ->  | I141: =F141*Simulador!$F$8 ->  | J141: 964.675286
A142: =IF(OR(A141>=Simulador!$C$24,A141=0),0,A141+1) -> 0 | G142: =F142*((1+Simulador!$C$10)^B142-1) ->  | I142: =F142*Simulador!$F$8 ->  | J142: 964.675286
A143: =IF(OR(A142>=Simulador!$C$24,A142=0),0,A142+1) -> 0 | G143: =F143*((1+Simulador!$C$10)^B143-1) ->  | I143: =F143*Simulador!$F$8 ->  | J143: 964.675286
A144: =IF(OR(A143>=Simulador!$C$24,A143=0),0,A143+1) -> 0 | G144: =F144*((1+Simulador!$C$10)^B144-1) ->  | I144: =F144*Simulador!$F$8 ->  | J144: 964.675286
A145: =IF(OR(A144>=Simulador!$C$24,A144=0),0,A144+1) -> 0 | G145: =F145*((1+Simulador!$C$10)^B145-1) ->  | I145: =F145*Simulador!$F$8 ->  | J145: 964.675286
A146: =IF(OR(A145>=Simulador!$C$24,A145=0),0,A145+1) -> 0 | G146: =F146*((1+Simulador!$C$10)^B146-1) ->  | I146: =F146*Simulador!$F$8 ->  | J146: 964.675286
A147: =IF(OR(A146>=Simulador!$C$24,A146=0),0,A146+1) -> 0 | G147: =F147*((1+Simulador!$C$10)^B147-1) ->  | I147: =F147*Simulador!$F$8 ->  | J147: 964.675286
A148: =IF(OR(A147>=Simulador!$C$24,A147=0),0,A147+1) -> 0 | G148: =F148*((1+Simulador!$C$10)^B148-1) ->  | I148: =F148*Simulador!$F$8 ->  | J148: 964.675286
A149: =IF(OR(A148>=Simulador!$C$24,A148=0),0,A148+1) -> 0 | G149: =F149*((1+Simulador!$C$10)^B149-1) ->  | I149: =F149*Simulador!$F$8 ->  | J149: 964.675286
A150: =IF(OR(A149>=Simulador!$C$24,A149=0),0,A149+1) -> 0 | G150: =F150*((1+Simulador!$C$10)^B150-1) ->  | I150: =F150*Simulador!$F$8 ->  | J150: 964.675286
A151: =IF(OR(A150>=Simulador!$C$24,A150=0),0,A150+1) -> 0 | G151: =F151*((1+Simulador!$C$10)^B151-1) ->  | I151: =F151*Simulador!$F$8 ->  | J151: 964.675286
A152: =IF(OR(A151>=Simulador!$C$24,A151=0),0,A151+1) -> 0 | G152: =F152*((1+Simulador!$C$10)^B152-1) ->  | I152: =F152*Simulador!$F$8 ->  | J152: 964.675286
A153: =IF(OR(A152>=Simulador!$C$24,A152=0),0,A152+1) -> 0 | G153: =F153*((1+Simulador!$C$10)^B153-1) ->  | I153: =F153*Simulador!$F$8 ->  | J153: 964.675286
A154: =IF(OR(A153>=Simulador!$C$24,A153=0),0,A153+1) -> 0 | G154: =F154*((1+Simulador!$C$10)^B154-1) ->  | I154: =F154*Simulador!$F$8 ->  | J154: 964.675286
A155: =IF(OR(A154>=Simulador!$C$24,A154=0),0,A154+1) -> 0 | G155: =F155*((1+Simulador!$C$10)^B155-1) ->  | I155: =F155*Simulador!$F$8 ->  | J155: 964.675286
A156: =IF(OR(A155>=Simulador!$C$24,A155=0),0,A155+1) -> 0 | G156: =F156*((1+Simulador!$C$10)^B156-1) ->  | I156: =F156*Simulador!$F$8 ->  | J156: 964.675286
A157: =IF(OR(A156>=Simulador!$C$24,A156=0),0,A156+1) -> 0 | G157: =F157*((1+Simulador!$C$10)^B157-1) ->  | I157: =F157*Simulador!$F$8 ->  | J157: 964.675286
A158: =IF(OR(A157>=Simulador!$C$24,A157=0),0,A157+1) -> 0 | G158: =F158*((1+Simulador!$C$10)^B158-1) ->  | I158: =F158*Simulador!$F$8 ->  | J158: 964.675286
A159: =IF(OR(A158>=Simulador!$C$24,A158=0),0,A158+1) -> 0 | G159: =F159*((1+Simulador!$C$10)^B159-1) ->  | I159: =F159*Simulador!$F$8 ->  | J159: 964.675286
A160: =IF(OR(A159>=Simulador!$C$24,A159=0),0,A159+1) -> 0 | G160: =F160*((1+Simulador!$C$10)^B160-1) ->  | I160: =F160*Simulador!$F$8 ->  | J160: 964.675286
A161: =IF(OR(A160>=Simulador!$C$24,A160=0),0,A160+1) -> 0 | G161: =F161*((1+Simulador!$C$10)^B161-1) ->  | I161: =F161*Simulador!$F$8 ->  | J161: 964.675286
A162: =IF(OR(A161>=Simulador!$C$24,A161=0),0,A161+1) -> 0 | G162: =F162*((1+Simulador!$C$10)^B162-1) ->  | I162: =F162*Simulador!$F$8 ->  | J162: 964.675286
A163: =IF(OR(A162>=Simulador!$C$24,A162=0),0,A162+1) -> 0 | G163: =F163*((1+Simulador!$C$10)^B163-1) ->  | I163: =F163*Simulador!$F$8 ->  | J163: 964.675286
A164: =IF(OR(A163>=Simulador!$C$24,A163=0),0,A163+1) -> 0 | G164: =F164*((1+Simulador!$C$10)^B164-1) ->  | I164: =F164*Simulador!$F$8 ->  | J164: 964.675286
G165: =F165*((1+Simulador!$C$10)^B165-1) ->  | I165: =F165*Simulador!$F$8 ->  | J165: 964.675286
G166: =F166*((1+Simulador!$C$10)^B166-1) ->  | I166: =F166*Simulador!$F$8 ->  | J166: 964.675286
G167: =F167*((1+Simulador!$C$10)^B167-1) ->  | I167: =F167*Simulador!$F$8 ->  | J167: 964.675286
G168: =F168*((1+Simulador!$C$10)^B168-1) ->  | I168: =F168*Simulador!$F$8 ->  | J168: 964.675286
G169: =F169*((1+Simulador!$C$10)^B169-1) ->  | I169: =F169*Simulador!$F$8 ->  | J169: 964.675286
G170: =F170*((1+Simulador!$C$10)^B170-1) ->  | I170: =F170*Simulador!$F$8 ->  | J170: 964.675286
G171: =F171*((1+Simulador!$C$10)^B171-1) ->  | I171: =F171*Simulador!$F$8 ->  | J171: 964.675286
G172: =F172*((1+Simulador!$C$10)^B172-1) ->  | I172: =F172*Simulador!$F$8 ->  | J172: 964.675286
G173: =F173*((1+Simulador!$C$10)^B173-1) ->  | I173: =F173*Simulador!$F$8 ->  | J173: 964.675286
G174: =F174*((1+Simulador!$C$10)^B174-1) ->  | I174: =F174*Simulador!$F$8 ->  | J174: 964.675286
G175: =F175*((1+Simulador!$C$10)^B175-1) ->  | I175: =F175*Simulador!$F$8 ->  | J175: 964.675286
G176: =F176*((1+Simulador!$C$10)^B176-1) ->  | I176: =F176*Simulador!$F$8 ->  | J176: 964.675286
G177: =F177*((1+Simulador!$C$10)^B177-1) ->  | I177: =F177*Simulador!$F$8 ->  | J177: 964.675286
G178: =F178*((1+Simulador!$C$10)^B178-1) ->  | I178: =F178*Simulador!$F$8 ->  | J178: 964.675286
G179: =F179*((1+Simulador!$C$10)^B179-1) ->  | I179: =F179*Simulador!$F$8 ->  | J179: 964.675286
G180: =F180*((1+Simulador!$C$10)^B180-1) ->  | I180: =F180*Simulador!$F$8 ->  | J180: 964.675286
G181: =F181*((1+Simulador!$C$10)^B181-1) ->  | I181: =F181*Simulador!$F$8 ->  | J181: 964.675286
G182: =F182*((1+Simulador!$C$10)^B182-1) ->  | I182: =F182*Simulador!$F$8 ->  | J182: 964.675286
G183: =F183*((1+Simulador!$C$10)^B183-1) ->  | I183: =F183*Simulador!$F$8 ->  | J183: 964.675286
G184: =F184*((1+Simulador!$C$10)^B184-1) ->  | I184: =F184*Simulador!$F$8 ->  | J184: 964.675286
G185: =F185*((1+Simulador!$C$10)^B185-1) ->  | I185: =F185*Simulador!$F$8 ->  | J185: 964.675286

Sheet Procesamiento T24 (hidden)
A1: Cronograma
A3: n° Periodo | B3: n° Días | C3: n° días acum | D3: Fecha inicial | E3: Fecha Final | F3: Saldo inicial | G3: i | H3: k | I3: Seguro | J3: Cuota | K3: Saldo Aant | L3: Anticipo | M3: Saldo Final
A4: 1 | B4: =_xlfn.DAYS(E4,D4) -> 60 | C4: =B4 -> 60 | D4: =Simulador!C12 -> 2025-11-07 | E4: =+Simulador!C22 -> 2026-01-06 | F4: =Simulador!C6 -> 14993.27 | G4: =F4*((1+Simulador!$C$10)^B4-1) -> 1574.553207 | H4: =IF((J4-I4-G4)<0,0,J4-I4-G4) -> 0 | I4: =F4*Simulador!$F$8 -> 44.97981 | J4: =Simulador!F34 -> 961.7899273 | K4: =F4-H4 -> 14993.27 | M4: =K4-L4 -> 14993.27
A5: =IF(OR(A4>Simulador!$C$24,A4=0),0,A4+1) -> 2 | B5: =IFERROR(_xlfn.DAYS(E5,D5),"") -> 31 | C5: =IFERROR(C4+B5,"") -> 91 | D5: =E4 -> 2026-01-06 | E5: =IFERROR(EDATE(D5,1),"") -> 2026-02-06 | F5: =K4 -> 14993.27 | G5: =F5*((1+Simulador!$C$10)^B5-1) -> 793.8796186 | H5: =J5-I5-G5 -> 122.9304987 | I5: =F5*Simulador!$F$8 -> 44.97981 | J5: =$J$4 -> 961.7899273 | K5: =F5-H5 -> 14870.3395 | M5: =K5-L5 -> 14870.3395
A6: =IF(OR(A5>Simulador!$C$24,A5=0),0,A5+1) -> 3 | B6: =IFERROR(_xlfn.DAYS(E6,D6),"") -> 28 | C6: =IFERROR(C5+B6,"") -> 119 | D6: =IF(A6<>0,E5,"") -> 2026-02-06 | E6: =IFERROR(EDATE(D6,1),"") -> 2026-03-06 | F6: =K5 -> 14870.3395 | G6: =F6*((1+Simulador!$C$10)^B6-1) -> 709.3856725 | H6: 207.7932363 | I6: =F6*Simulador!$F$8 -> 44.6110185 | J6: =$J$4 -> 961.7899273 | K6: 14662.54627 | M6: =K6-L6 -> 14662.54627
A7: =IF(OR(A6>=Simulador!$C$24,A6=0),0,A6+1) -> 4 | B7: 31 | C7: 150 | D7: =IF(A7<>0,E6,"") -> 2026-03-06 | E7: 2026-04-06 | F7: 14662.54627 | G7: =F7*((1+Simulador!$C$10)^B7-1) -> 776.3681063 | H7: 141.4341822 | I7: =F7*Simulador!$F$8 -> 43.9876388 | J7: 961.7899273 | K7: 14521.11208 | M7: 14521.11208
A8: =IF(OR(A7>=Simulador!$C$24,A7=0),0,A7+1) -> 5 | B8: 30 | C8: 180 | D8: 2026-04-06 | E8: 2026-05-06 | F8: 14521.11208 | G8: =F8*((1+Simulador!$C$10)^B8-1) -> 743.4525619 | H8: 174.7740292 | I8: =F8*Simulador!$F$8 -> 43.56333625 | J8: 961.7899273 | K8: 14346.33805 | M8: 14346.33805
A9: =IF(OR(A8>=Simulador!$C$24,A8=0),0,A8+1) -> 6 | B9: 31 | C9: 211 | D9: 2026-05-06 | E9: 2026-06-06 | F9: 14346.33805 | G9: =F9*((1+Simulador!$C$10)^B9-1) -> 759.6251774 | H9: 159.1257358 | I9: =F9*Simulador!$F$8 -> 43.03901416 | J9: 961.7899273 | K9: 14187.21232 | M9: 14187.21232
A10: =IF(OR(A9>=Simulador!$C$24,A9=0),0,A9+1) -> 7 | B10: 30 | C10: 241 | D10: 2026-06-06 | E10: 2026-07-06 | F10: 14187.21232 | G10: =F10*((1+Simulador!$C$10)^B10-1) -> 726.3575465 | H10: 192.8707439 | I10: =F10*Simulador!$F$8 -> 42.56163695 | J10: 961.7899273 | K10: 13994.34157 | M10: 13994.34157
A11: =IF(OR(A10>=Simulador!$C$24,A10=0),0,A10+1) -> 8 | B11: 31 | C11: 272 | D11: 2026-07-06 | E11: 2026-08-06 | F11: 13994.34157 | G11: =F11*((1+Simulador!$C$10)^B11-1) -> 740.9872931 | H11: 178.8196095 | I11: =F11*Simulador!$F$8 -> 41.98302472 | J11: 961.7899273 | K11: 13815.52196 | M11: 13815.52196
A12: =IF(OR(A11>=Simulador!$C$24,A11=0),0,A11+1) -> 9 | B12: 31 | C12: 303 | D12: 2026-08-06 | E12: 2026-09-06 | F12: 13815.52196 | G12: =F12*((1+Simulador!$C$10)^B12-1) -> 731.5189621 | H12: 188.8243994 | I12: =F12*Simulador!$F$8 -> 41.44656589 | J12: 961.7899273 | K12: 13626.69757 | M12: 13626.69757
A13: =IF(OR(A12>=Simulador!$C$24,A12=0),0,A12+1) -> 10 | B13: 30 | C13: 333 | D13: 2026-09-06 | E13: 2026-10-06 | F13: 13626.69757 | G13: =F13*((1+Simulador!$C$10)^B13-1) -> 697.6602865 | H13: 223.2495482 | I13: =F13*Simulador!$F$8 -> 40.8800927 | J13: 961.7899273 | K13: 13403.44802 | M13: 13403.44802
A14: =IF(OR(A13>=Simulador!$C$24,A13=0),0,A13+1) -> 11 | B14: 31 | C14: 364 | D14: 2026-10-06 | E14: 2026-11-06 | F14: 13403.44802 | G14: =F14*((1+Simulador!$C$10)^B14-1) -> 709.7000321 | H14: 211.8795512 | I14: =F14*Simulador!$F$8 -> 40.21034405 | J14: 961.7899273 | K14: 13191.56847 | M14: 13191.56847
A15: =IF(OR(A14>=Simulador!$C$24,A14=0),0,A14+1) -> 12 | B15: 30 | C15: 394 | D15: 2026-11-06 | E15: 2026-12-06 | F15: 13191.56847 | G15: =F15*((1+Simulador!$C$10)^B15-1) -> 675.3825269 | H15: 246.8326951 | I15: =F15*Simulador!$F$8 -> 39.5747054 | J15: 961.7899273 | K15: 12944.73577 | M15: 12944.73577
A16: =IF(OR(A15>=Simulador!$C$24,A15=0),0,A15+1) -> 13 | B16: 31 | C16: 425 | D16: 2026-12-06 | E16: 2027-01-06 | F16: 12944.73577 | G16: =F16*((1+Simulador!$C$10)^B16-1) -> 685.4116478 | H16: 237.5440722 | I16: =F16*Simulador!$F$8 -> 38.83420731 | J16: 961.7899273 | K16: 12707.1917 | M16: 12707.1917
A17: =IF(OR(A16>=Simulador!$C$24,A16=0),0,A16+1) -> 14 | B17: 31 | C17: 456 | D17: 2027-01-06 | E17: 2027-02-06 | F17: 12707.1917 | G17: =F17*((1+Simulador!$C$10)^B17-1) -> 672.8339115 | H17: 250.8344408 | I17: =F17*Simulador!$F$8 -> 38.1215751 | J17: 961.7899273 | K17: 12456.35726 | M17: 12456.35726
A18: =IF(OR(A17>=Simulador!$C$24,A17=0),0,A17+1) -> 15 | B18: 28 | C18: 484 | D18: 2027-02-06 | E18: 2027-03-06 | F18: 12456.35726 | G18: =F18*((1+Simulador!$C$10)^B18-1) -> 594.2272784 | H18: 330.1935772 | I18: =F18*Simulador!$F$8 -> 37.36907177 | J18: 961.7899273 | K18: 12126.16368 | M18: 12126.16368
A19: =IF(OR(A18>=Simulador!$C$24,A18=0),0,A18+1) -> 16 | B19: 31 | C19: 515 | D19: 2027-03-06 | E19: 2027-04-06 | F19: 12126.16368 | G19: =F19*((1+Simulador!$C$10)^B19-1) -> 642.0690215 | H19: 283.3424148 | I19: =F19*Simulador!$F$8 -> 36.37849104 | J19: 961.7899273 | K19: 11842.82127 | M19: 11842.82127
A20: =IF(OR(A19>=Simulador!$C$24,A19=0),0,A19+1) -> 17 | B20: 30 | C20: 545 | D20: 2027-04-06 | E20: 2027-05-06 | F20: 11842.82127 | G20: =F20*((1+Simulador!$C$10)^B20-1) -> 606.3293059 | H20: 319.9321576 | I20: =F20*Simulador!$F$8 -> 35.5284638 | J20: 961.7899273 | K20: 11522.88911 | M20: 11522.88911
A21: =IF(OR(A20>=Simulador!$C$24,A20=0),0,A20+1) -> 18 | B21: 31 | C21: 576 | D21: 2027-05-06 | E21: 2027-06-06 | F21: 11522.88911 | G21: =F21*((1+Simulador!$C$10)^B21-1) -> 610.1261973 | H21: 317.0950627 | I21: =F21*Simulador!$F$8 -> 34.56866732 | J21: 961.7899273 | K21: 11205.79405 | M21: 11205.79405
A22: =IF(OR(A21>=Simulador!$C$24,A21=0),0,A21+1) -> 19 | B22: 30 | C22: 606 | D22: 2027-06-06 | E22: 2027-07-06 | F22: 11205.79405 | G22: =F22*((1+Simulador!$C$10)^B22-1) -> 573.7147571 | H22: 354.4577881 | I22: =F22*Simulador!$F$8 -> 33.61738214 | J22: 961.7899273 | K22: 10851.33626 | M22: 10851.33626
A23: =IF(OR(A22>=Simulador!$C$24,A22=0),0,A22+1) -> 20 | B23: 31 | C23: 637 | D23: 2027-07-06 | E23: 2027-08-06 | F23: 10851.33626 | G23: =F23*((1+Simulador!$C$10)^B23-1) -> 574.5681022 | H23: 354.6678163 | I23: =F23*Simulador!$F$8 -> 32.55400877 | J23: 961.7899273 | K23: 10496.66844 | M23: 10496.66844
A24: =IF(OR(A23>=Simulador!$C$24,A23=0),0,A23+1) -> 21 | B24: 31 | C24: 668 | D24: 2027-08-06 | E24: 2027-09-06 | F24: 10496.66844 | G24: =F24*((1+Simulador!$C$10)^B24-1) -> 555.7887732 | H24: 374.5111488 | I24: =F24*Simulador!$F$8 -> 31.49000532 | J24: 961.7899273 | K24: 10122.15729 | M24: 10122.15729
A25: =IF(OR(A24>=Simulador!$C$24,A24=0),0,A24+1) -> 22 | B25: 30 | C25: 698 | D25: 2027-09-06 | E25: 2027-10-06 | F25: 10122.15729 | G25: =F25*((1+Simulador!$C$10)^B25-1) -> 518.2346729 | H25: 413.1887825 | I25: =F25*Simulador!$F$8 -> 30.36647188 | J25: 961.7899273 | K25: 9708.96851 | M25: 9708.96851
A26: =IF(OR(A25>=Simulador!$C$24,A25=0),0,A25+1) -> 23 | B26: 31 | C26: 729 | D26: 2027-10-06 | E26: 2027-11-06 | F26: 9708.96851 | G26: =F26*((1+Simulador!$C$10)^B26-1) -> 514.0807988 | H26: 418.582223 | I26: =F26*Simulador!$F$8 -> 29.12690553 | J26: 961.7899273 | K26: 9290.386287 | M26: 9290.386287
A27: =IF(OR(A26>=Simulador!$C$24,A26=0),0,A26+1) -> 24 | B27: 30 | C27: 759 | D27: 2027-11-06 | E27: 2027-12-06 | F27: 9290.386287 | G27: =F27*((1+Simulador!$C$10)^B27-1) -> 475.6496229 | H27: 458.2691456 | I27: =F27*Simulador!$F$8 -> 27.87115886 | J27: 961.7899273 | K27: 8832.117141 | M27: 8832.117141
A28: =IF(OR(A27>=Simulador!$C$24,A27=0),0,A27+1) -> 25 | B28: 31 | C28: 790 | D28: 2027-12-06 | E28: 2028-01-06 | F28: 8832.117141 | G28: =F28*((1+Simulador!$C$10)^B28-1) -> 467.6523392 | H28: 467.6412367 | I28: =F28*Simulador!$F$8 -> 26.49635142 | J28: 961.7899273 | K28: 8364.475904 | M28: 8364.475904
A29: =IF(OR(A28>=Simulador!$C$24,A28=0),0,A28+1) -> 26 | B29: 31 | C29: 821 | D29: 2028-01-06 | E29: 2028-02-06 | F29: 8364.475904 | G29: =F29*((1+Simulador!$C$10)^B29-1) -> 442.8911732 | H29: 493.8053264 | I29: =F29*Simulador!$F$8 -> 25.09342771 | J29: 961.7899273 | K29: 7870.670578 | M29: 7870.670578
A30: =IF(OR(A29>=Simulador!$C$24,A29=0),0,A29+1) -> 27 | B30: 29 | C30: 850 | D30: 2028-02-06 | E30: 2028-03-06 | F30: 7870.670578 | G30: =F30*((1+Simulador!$C$10)^B30-1) -> 389.2041812 | H30: 548.9737344 | I30: =F30*Simulador!$F$8 -> 23.61201173 | J30: 961.7899273 | K30: 7321.696844 | M30: 7321.696844
A31: =IF(OR(A30>=Simulador!$C$24,A30=0),0,A30+1) -> 28 | B31: 31 | C31: 881 | D31: 2028-03-06 | E31: 2028-04-06 | F31: 7321.696844 | G31: =F31*((1+Simulador!$C$10)^B31-1) -> 387.6769976 | H31: 552.1478392 | I31: =F31*Simulador!$F$8 -> 21.96509053 | J31: 961.7899273 | K31: 6769.549004 | M31: 6769.549004
A32: =IF(OR(A31>=Simulador!$C$24,A31=0),0,A31+1) -> 29 | B32: 30 | C32: 911 | D32: 2028-04-06 | E32: 2028-05-06 | F32: 6769.549004 | G32: =F32*((1+Simulador!$C$10)^B32-1) -> 346.5876802 | H32: 594.8936001 | I32: =F32*Simulador!$F$8 -> 20.30864701 | J32: 961.7899273 | K32: 6174.655404 | M32: 6174.655404
A33: =IF(OR(A32>=Simulador!$C$24,A32=0),0,A32+1) -> 30 | B33: 31 | C33: 942 | D33: 2028-05-06 | E33: 2028-06-06 | F33: 6174.655404 | G33: =F33*((1+Simulador!$C$10)^B33-1) -> 326.9422266 | H33: 616.3237345 | I33: =F33*Simulador!$F$8 -> 18.52396621 | J33: 961.7899273 | K33: 5558.33167 | M33: 5558.33167
A34: =IF(OR(A33>=Simulador!$C$24,A33=0),0,A33+1) -> 31 | B34: 30 | C34: 972 | D34: 2028-06-06 | E34: 2028-07-06 | F34: 5558.33167 | G34: =F34*((1+Simulador!$C$10)^B34-1) -> 284.5757196 | H34: 660.5392128 | I34: =F34*Simulador!$F$8 -> 16.67499501 | J34: 961.7899273 | K34: 4897.792457 | M34: 4897.792457
A35: =IF(OR(A34>=Simulador!$C$24,A34=0),0,A34+1) -> 32 | B35: 31 | C35: 1003 | D35: 2028-07-06 | E35: 2028-08-06 | F35: 4897.792457 | G35: =F35*((1+Simulador!$C$10)^B35-1) -> 259.3335282 | H35: 687.7630218 | I35: =F35*Simulador!$F$8 -> 14.69337737 | J35: 961.7899273 | K35: 4210.029435 | M35: 4210.029435
A36: =IF(OR(A35>=Simulador!$C$24,A35=0),0,A35+1) -> 33 | B36: 31 | C36: 1034 | D36: 2028-08-06 | E36: 2028-09-06 | F36: 4210.029435 | G36: =F36*((1+Simulador!$C$10)^B36-1) -> 222.9171196 | H36: 726.2427194 | I36: =F36*Simulador!$F$8 -> 12.63008831 | J36: 961.7899273 | K36: 3483.786716 | M36: 3483.786716
A37: =IF(OR(A36>=Simulador!$C$24,A36=0),0,A36+1) -> 34 | B37: 30 | C37: 1064 | D37: 2028-09-06 | E37: 2028-10-06 | F37: 3483.786716 | G37: =F37*((1+Simulador!$C$10)^B37-1) -> 178.3630719 | H37: 772.9754952 | I37: =F37*Simulador!$F$8 -> 10.45136015 | J37: 961.7899273 | K37: 2710.811221 | M37: 2710.811221
A38: =IF(OR(A37>=Simulador!$C$24,A37=0),0,A37+1) -> 35 | B38: 31 | C38: 1095 | D38: 2028-10-06 | E38: 2028-11-06 | F38: 2710.811221 | G38: =F38*((1+Simulador!$C$10)^B38-1) -> 143.5349179 | H38: 810.1225758 | I38: =F38*Simulador!$F$8 -> 8.132433662 | J38: 961.7899273 | K38: 1900.688645 | M38: 1900.688645
A39: =IF(OR(A38>=Simulador!$C$24,A38=0),0,A38+1) -> 36 | B39: 30 | C39: 1125 | D39: 2028-11-06 | E39: 2028-12-06 | F39: 1900.688645 | G39: =F39*((1+Simulador!$C$10)^B39-1) -> 97.31154434 | H39: 858.7763171 | I39: =F39*Simulador!$F$8 -> 5.702065934 | J39: 961.7899273 | K39: 1041.912328 | M39: 1041.912328
A40: =IF(OR(A39>=Simulador!$C$24,A39=0),0,A39+1) -> 0 | F40: 1041.912328 | G40: =F40*((1+Simulador!$C$10)^B40-1) ->  | I40: =F40*Simulador!$F$8 -> 3.125736983 | J40: 961.7899273
A41: =IF(OR(A40>=Simulador!$C$24,A40=0),0,A40+1) -> 0 | G41: =F41*((1+Simulador!$C$10)^B41-1) ->  | I41: =F41*Simulador!$F$8 ->  | J41: 961.7899273
A42: =IF(OR(A41>=Simulador!$C$24,A41=0),0,A41+1) -> 0 | G42: =F42*((1+Simulador!$C$10)^B42-1) ->  | I42: =F42*Simulador!$F$8 ->  | J42: 961.7899273
A43: =IF(OR(A42>=Simulador!$C$24,A42=0),0,A42+1) -> 0 | G43: =F43*((1+Simulador!$C$10)^B43-1) ->  | I43: =F43*Simulador!$F$8 ->  | J43: 961.7899273
A44: =IF(OR(A43>=Simulador!$C$24,A43=0),0,A43+1) -> 0 | G44: =F44*((1+Simulador!$C$10)^B44-1) ->  | I44: =F44*Simulador!$F$8 ->  | J44: 961.7899273
A45: =IF(OR(A44>=Simulador!$C$24,A44=0),0,A44+1) -> 0 | G45: =F45*((1+Simulador!$C$10)^B45-1) ->  | I45: =F45*Simulador!$F$8 ->  | J45: 961.7899273
A46: =IF(OR(A45>=Simulador!$C$24,A45=0),0,A45+1) -> 0 | G46: =F46*((1+Simulador!$C$10)^B46-1) ->  | I46: =F46*Simulador!$F$8 ->  | J46: 961.7899273
A47: =IF(OR(A46>=Simulador!$C$24,A46=0),0,A46+1) -> 0 | G47: =F47*((1+Simulador!$C$10)^B47-1) ->  | I47: =F47*Simulador!$F$8 ->  | J47: 961.7899273
A48: =IF(OR(A47>=Simulador!$C$24,A47=0),0,A47+1) -> 0 | G48: =F48*((1+Simulador!$C$10)^B48-1) ->  | I48: =F48*Simulador!$F$8 ->  | J48: 961.7899273
A49: =IF(OR(A48>=Simulador!$C$24,A48=0),0,A48+1) -> 0 | G49: =F49*((1+Simulador!$C$10)^B49-1) ->  | I49: =F49*Simulador!$F$8 ->  | J49: 961.7899273
A50: =IF(OR(A49>=Simulador!$C$24,A49=0),0,A49+1) -> 0 | G50: =F50*((1+Simulador!$C$10)^B50-1) ->  | I50: =F50*Simulador!$F$8 ->  | J50: 961.7899273
A51: =IF(OR(A50>=Simulador!$C$24,A50=0),0,A50+1) -> 0 | G51: =F51*((1+Simulador!$C$10)^B51-1) ->  | I51: =F51*Simulador!$F$8 ->  | J51: 961.7899273
A52: =IF(OR(A51>=Simulador!$C$24,A51=0),0,A51+1) -> 0 | G52: =F52*((1+Simulador!$C$10)^B52-1) ->  | I52: =F52*Simulador!$F$8 ->  | J52: 961.7899273
A53: =IF(OR(A52>=Simulador!$C$24,A52=0),0,A52+1) -> 0 | G53: =F53*((1+Simulador!$C$10)^B53-1) ->  | I53: =F53*Simulador!$F$8 ->  | J53: 961.7899273
A54: =IF(OR(A53>=Simulador!$C$24,A53=0),0,A53+1) -> 0 | G54: =F54*((1+Simulador!$C$10)^B54-1) ->  | I54: =F54*Simulador!$F$8 ->  | J54: 961.7899273
A55: =IF(OR(A54>=Simulador!$C$24,A54=0),0,A54+1) -> 0 | G55: =F55*((1+Simulador!$C$10)^B55-1) ->  | I55: =F55*Simulador!$F$8 ->  | J55: 961.7899273
A56: =IF(OR(A55>=Simulador!$C$24,A55=0),0,A55+1) -> 0 | G56: =F56*((1+Simulador!$C$10)^B56-1) ->  | I56: =F56*Simulador!$F$8 ->  | J56: 961.7899273
A57: =IF(OR(A56>=Simulador!$C$24,A56=0),0,A56+1) -> 0 | G57: =F57*((1+Simulador!$C$10)^B57-1) ->  | I57: =F57*Simulador!$F$8 ->  | J57: 961.7899273
A58: =IF(OR(A57>=Simulador!$C$24,A57=0),0,A57+1) -> 0 | G58: =F58*((1+Simulador!$C$10)^B58-1) ->  | I58: =F58*Simulador!$F$8 ->  | J58: 961.7899273
A59: =IF(OR(A58>=Simulador!$C$24,A58=0),0,A58+1) -> 0 | G59: =F59*((1+Simulador!$C$10)^B59-1) ->  | I59: =F59*Simulador!$F$8 ->  | J59: 961.7899273
A60: =IF(OR(A59>=Simulador!$C$24,A59=0),0,A59+1) -> 0 | G60: =F60*((1+Simulador!$C$10)^B60-1) ->  | I60: =F60*Simulador!$F$8 ->  | J60: 961.7899273
A61: =IF(OR(A60>=Simulador!$C$24,A60=0),0,A60+1) -> 0 | G61: =F61*((1+Simulador!$C$10)^B61-1) ->  | I61: =F61*Simulador!$F$8 ->  | J61: 961.7899273
A62: =IF(OR(A61>=Simulador!$C$24,A61=0),0,A61+1) -> 0 | G62: =F62*((1+Simulador!$C$10)^B62-1) ->  | I62: =F62*Simulador!$F$8 ->  | J62: 961.7899273
A63: =IF(OR(A62>=Simulador!$C$24,A62=0),0,A62+1) -> 0 | G63: =F63*((1+Simulador!$C$10)^B63-1) ->  | I63: =F63*Simulador!$F$8 ->  | J63: 961.7899273
A64: =IF(OR(A63>=Simulador!$C$24,A63=0),0,A63+1) -> 0 | G64: =F64*((1+Simulador!$C$10)^B64-1) ->  | I64: =F64*Simulador!$F$8 ->  | J64: 961.7899273
A65: =IF(OR(A64>=Simulador!$C$24,A64=0),0,A64+1) -> 0 | G65: =F65*((1+Simulador!$C$10)^B65-1) ->  | I65: =F65*Simulador!$F$8 ->  | J65: 961.7899273
A66: =IF(OR(A65>=Simulador!$C$24,A65=0),0,A65+1) -> 0 | G66: =F66*((1+Simulador!$C$10)^B66-1) ->  | I66: =F66*Simulador!$F$8 ->  | J66: 961.7899273
A67: =IF(OR(A66>=Simulador!$C$24,A66=0),0,A66+1) -> 0 | G67: =F67*((1+Simulador!$C$10)^B67-1) ->  | I67: =F67*Simulador!$F$8 ->  | J67: 961.7899273
A68: =IF(OR(A67>=Simulador!$C$24,A67=0),0,A67+1) -> 0 | G68: =F68*((1+Simulador!$C$10)^B68-1) ->  | I68: =F68*Simulador!$F$8 ->  | J68: 961.7899273
A69: =IF(OR(A68>=Simulador!$C$24,A68=0),0,A68+1) -> 0 | G69: =F69*((1+Simulador!$C$10)^B69-1) ->  | H69: =J69-I69-G69 ->  | I69: =F69*Simulador!$F$8 ->  | J69: 961.7899273 | K69: =F69-H69 -> 
A70: =IF(OR(A69>=Simulador!$C$24,A69=0),0,A69+1) -> 0 | B70: =IFERROR(_xlfn.DAYS(E70,D70),"") ->  | C70: =IFERROR(C69+B70,"") ->  | E70: =IFERROR(EDATE(D70,1),"") ->  | F70: =K69 ->  | G70: =F70*((1+Simulador!$C$10)^B70-1) ->  | I70: =F70*Simulador!$F$8 ->  | J70: =$J$4 -> 961.7899273 | M70: =K70-L70 -> 
A71: =IF(OR(A70>=Simulador!$C$24,A70=0),0,A70+1) -> 0 | D71: =IF(A71<>0,E70,"") ->  | G71: =F71*((1+Simulador!$C$10)^B71-1) ->  | I71: =F71*Simulador!$F$8 ->  | J71: 961.7899273
A72: =IF(OR(A71>=Simulador!$C$24,A71=0),0,A71+1) -> 0 | G72: =F72*((1+Simulador!$C$10)^B72-1) ->  | I72: =F72*Simulador!$F$8 ->  | J72: 961.7899273
A73: =IF(OR(A72>=Simulador!$C$24,A72=0),0,A72+1) -> 0 | G73: =F73*((1+Simulador!$C$10)^B73-1) ->  | I73: =F73*Simulador!$F$8 ->  | J73: 961.7899273
A74: =IF(OR(A73>=Simulador!$C$24,A73=0),0,A73+1) -> 0 | G74: =F74*((1+Simulador!$C$10)^B74-1) ->  | I74: =F74*Simulador!$F$8 ->  | J74: 961.7899273
A75: =IF(OR(A74>=Simulador!$C$24,A74=0),0,A74+1) -> 0 | G75: =F75*((1+Simulador!$C$10)^B75-1) ->  | I75: =F75*Simulador!$F$8 ->  | J75: 961.7899273
A76: =IF(OR(A75>=Simulador!$C$24,A75=0),0,A75+1) -> 0 | G76: =F76*((1+Simulador!$C$10)^B76-1) ->  | I76: =F76*Simulador!$F$8 ->  | J76: 961.7899273
A77: =IF(OR(A76>=Simulador!$C$24,A76=0),0,A76+1) -> 0 | G77: =F77*((1+Simulador!$C$10)^B77-1) ->  | I77: =F77*Simulador!$F$8 ->  | J77: 961.7899273
A78: =IF(OR(A77>=Simulador!$C$24,A77=0),0,A77+1) -> 0 | G78: =F78*((1+Simulador!$C$10)^B78-1) ->  | I78: =F78*Simulador!$F$8 ->  | J78: 961.7899273
A79: =IF(OR(A78>=Simulador!$C$24,A78=0),0,A78+1) -> 0 | G79: =F79*((1+Simulador!$C$10)^B79-1) ->  | I79: =F79*Simulador!$F$8 ->  | J79: 961.7899273
A80: =IF(OR(A79>=Simulador!$C$24,A79=0),0,A79+1) -> 0 | G80: =F80*((1+Simulador!$C$10)^B80-1) ->  | I80: =F80*Simulador!$F$8 ->  | J80: 961.7899273
A81: =IF(OR(A80>=Simulador!$C$24,A80=0),0,A80+1) -> 0 | G81: =F81*((1+Simulador!$C$10)^B81-1) ->  | I81: =F81*Simulador!$F$8 ->  | J81: 961.7899273
A82: =IF(OR(A81>=Simulador!$C$24,A81=0),0,A81+1) -> 0 | G82: =F82*((1+Simulador!$C$10)^B82-1) ->  | I82: =F82*Simulador!$F$8 ->  | J82: 961.7899273
A83: =IF(OR(A82>=Simulador!$C$24,A82=0),0,A82+1) -> 0 | G83: =F83*((1+Simulador!$C$10)^B83-1) ->  | I83: =F83*Simulador!$F$8 ->  | J83: 961.7899273
A84: =IF(OR(A83>=Simulador!$C$24,A83=0),0,A83+1) -> 0 | G84: =F84*((1+Simulador!$C$10)^B84-1) ->  | I84: =F84*Simulador!$F$8 ->  | J84: 961.7899273
A85: =IF(OR(A84>=Simulador!$C$24,A84=0),0,A84+1) -> 0 | G85: =F85*((1+Simulador!$C$10)^B85-1) ->  | I85: =F85*Simulador!$F$8 ->  | J85: 961.7899273
A86: =IF(OR(A85>=Simulador!$C$24,A85=0),0,A85+1) -> 0 | G86: =F86*((1+Simulador!$C$10)^B86-1) ->  | I86: =F86*Simulador!$F$8 ->  | J86: 961.7899273
A87: =IF(OR(A86>=Simulador!$C$24,A86=0),0,A86+1) -> 0 | G87: =F87*((1+Simulador!$C$10)^B87-1) ->  | I87: =F87*Simulador!$F$8 ->  | J87: 961.7899273
A88: =IF(OR(A87>=Simulador!$C$24,A87=0),0,A87+1) -> 0 | G88: =F88*((1+Simulador!$C$10)^B88-1) ->  | I88: =F88*Simulador!$F$8 ->  | J88: 961.7899273
A89: =IF(OR(A88>=Simulador!$C$24,A88=0),0,A88+1) -> 0 | G89: =F89*((1+Simulador!$C$10)^B89-1) ->  | I89: =F89*Simulador!$F$8 ->  | J89: 961.7899273
A90: =IF(OR(A89>=Simulador!$C$24,A89=0),0,A89+1) -> 0 | G90: =F90*((1+Simulador!$C$10)^B90-1) ->  | I90: =F90*Simulador!$F$8 ->  | J90: 961.7899273
A91: =IF(OR(A90>=Simulador!$C$24,A90=0),0,A90+1) -> 0 | G91: =F91*((1+Simulador!$C$10)^B91-1) ->  | I91: =F91*Simulador!$F$8 ->  | J91: 961.7899273
A92: =IF(OR(A91>=Simulador!$C$24,A91=0),0,A91+1) -> 0 | G92: =F92*((1+Simulador!$C$10)^B92-1) ->  | I92: =F92*Simulador!$F$8 ->  | J92: 961.7899273
A93: =IF(OR(A92>=Simulador!$C$24,A92=0),0,A92+1) -> 0 | G93: =F93*((1+Simulador!$C$10)^B93-1) ->  | I93: =F93*Simulador!$F$8 ->  | J93: 961.7899273
A94: =IF(OR(A93>=Simulador!$C$24,A93=0),0,A93+1) -> 0 | G94: =F94*((1+Simulador!$C$10)^B94-1) ->  | I94: =F94*Simulador!$F$8 ->  | J94: 961.7899273
A95: =IF(OR(A94>=Simulador!$C$24,A94=0),0,A94+1) -> 0 | G95: =F95*((1+Simulador!$C$10)^B95-1) ->  | I95: =F95*Simulador!$F$8 ->  | J95: 961.7899273
A96: =IF(OR(A95>=Simulador!$C$24,A95=0),0,A95+1) -> 0 | G96: =F96*((1+Simulador!$C$10)^B96-1) ->  | I96: =F96*Simulador!$F$8 ->  | J96: 961.7899273
A97: =IF(OR(A96>=Simulador!$C$24,A96=0),0,A96+1) -> 0 | G97: =F97*((1+Simulador!$C$10)^B97-1) ->  | I97: =F97*Simulador!$F$8 ->  | J97: 961.7899273
A98: =IF(OR(A97>=Simulador!$C$24,A97=0),0,A97+1) -> 0 | G98: =F98*((1+Simulador!$C$10)^B98-1) ->  | I98: =F98*Simulador!$F$8 ->  | J98: 961.7899273
A99: =IF(OR(A98>=Simulador!$C$24,A98=0),0,A98+1) -> 0 | G99: =F99*((1+Simulador!$C$10)^B99-1) ->  | I99: =F99*Simulador!$F$8 ->  | J99: 961.7899273
A100: =IF(OR(A99>=Simulador!$C$24,A99=0),0,A99+1) -> 0 | G100: =F100*((1+Simulador!$C$10)^B100-1) ->  | I100: =F100*Simulador!$F$8 ->  | J100: 961.7899273
A101: =IF(OR(A100>=Simulador!$C$24,A100=0),0,A100+1) -> 0 | G101: =F101*((1+Simulador!$C$10)^B101-1) ->  | I101: =F101*Simulador!$F$8 ->  | J101: 961.7899273
A102: =IF(OR(A101>=Simulador!$C$24,A101=0),0,A101+1) -> 0 | G102: =F102*((1+Simulador!$C$10)^B102-1) ->  | I102: =F102*Simulador!$F$8 ->  | J102: 961.7899273
A103: =IF(OR(A102>=Simulador!$C$24,A102=0),0,A102+1) -> 0 | G103: =F103*((1+Simulador!$C$10)^B103-1) ->  | I103: =F103*Simulador!$F$8 ->  | J103: 961.7899273
A104: =IF(OR(A103>=Simulador!$C$24,A103=0),0,A103+1) -> 0 | G104: =F104*((1+Simulador!$C$10)^B104-1) ->  | I104: =F104*Simulador!$F$8 ->  | J104: 961.7899273
A105: =IF(OR(A104>=Simulador!$C$24,A104=0),0,A104+1) -> 0 | G105: =F105*((1+Simulador!$C$10)^B105-1) ->  | I105: =F105*Simulador!$F$8 ->  | J105: 961.7899273
A106: =IF(OR(A105>=Simulador!$C$24,A105=0),0,A105+1) -> 0 | G106: =F106*((1+Simulador!$C$10)^B106-1) ->  | I106: =F106*Simulador!$F$8 ->  | J106: 961.7899273
A107: =IF(OR(A106>=Simulador!$C$24,A106=0),0,A106+1) -> 0 | G107: =F107*((1+Simulador!$C$10)^B107-1) ->  | I107: =F107*Simulador!$F$8 ->  | J107: 961.7899273
A108: =IF(OR(A107>=Simulador!$C$24,A107=0),0,A107+1) -> 0 | G108: =F108*((1+Simulador!$C$10)^B108-1) ->  | I108: =F108*Simulador!$F$8 ->  | J108: 961.7899273
A109: =IF(OR(A108>=Simulador!$C$24,A108=0),0,A108+1) -> 0 | G109: =F109*((1+Simulador!$C$10)^B109-1) ->  | I109: =F109*Simulador!$F$8 ->  | J109: 961.7899273
A110: =IF(OR(A109>=Simulador!$C$24,A109=0),0,A109+1) -> 0 | G110: =F110*((1+Simulador!$C$10)^B110-1) ->  | I110: =F110*Simulador!$F$8 ->  | J110: 961.7899273
A111: =IF(OR(A110>=Simulador!$C$24,A110=0),0,A110+1) -> 0 | G111: =F111*((1+Simulador!$C$10)^B111-1) ->  | I111: =F111*Simulador!$F$8 ->  | J111: 961.7899273
A112: =IF(OR(A111>=Simulador!$C$24,A111=0),0,A111+1) -> 0 | G112: =F112*((1+Simulador!$C$10)^B112-1) ->  | I112: =F112*Simulador!$F$8 ->  | J112: 961.7899273
A113: =IF(OR(A112>=Simulador!$C$24,A112=0),0,A112+1) -> 0 | G113: =F113*((1+Simulador!$C$10)^B113-1) ->  | I113: =F113*Simulador!$F$8 ->  | J113: 961.7899273
A114: =IF(OR(A113>=Simulador!$C$24,A113=0),0,A113+1) -> 0 | G114: =F114*((1+Simulador!$C$10)^B114-1) ->  | I114: =F114*Simulador!$F$8 ->  | J114: 961.7899273
A115: =IF(OR(A114>=Simulador!$C$24,A114=0),0,A114+1) -> 0 | G115: =F115*((1+Simulador!$C$10)^B115-1) ->  | I115: =F115*Simulador!$F$8 ->  | J115: 961.7899273
A116: =IF(OR(A115>=Simulador!$C$24,A115=0),0,A115+1) -> 0 | G116: =F116*((1+Simulador!$C$10)^B116-1) ->  | I116: =F116*Simulador!$F$8 ->  | J116: 961.7899273
A117: =IF(OR(A116>=Simulador!$C$24,A116=0),0,A116+1) -> 0 | G117: =F117*((1+Simulador!$C$10)^B117-1) ->  | I117: =F117*Simulador!$F$8 ->  | J117: 961.7899273
A118: =IF(OR(A117>=Simulador!$C$24,A117=0),0,A117+1) -> 0 | G118: =F118*((1+Simulador!$C$10)^B118-1) ->  | I118: =F118*Simulador!$F$8 ->  | J118: 961.7899273
A119: =IF(OR(A118>=Simulador!$C$24,A118=0),0,A118+1) -> 0 | G119: =F119*((1+Simulador!$C$10)^B119-1) ->  | I119: =F119*Simulador!$F$8 ->  | J119: 961.7899273
A120: =IF(OR(A119>=Simulador!$C$24,A119=0),0,A119+1) -> 0 | G120: =F120*((1+Simulador!$C$10)^B120-1) ->  | I120: =F120*Simulador!$F$8 ->  | J120: 961.7899273
A121: =IF(OR(A120>=Simulador!$C$24,A120=0),0,A120+1) -> 0 | G121: =F121*((1+Simulador!$C$10)^B121-1) ->  | I121: =F121*Simulador!$F$8 ->  | J121: 961.7899273
A122: =IF(OR(A121>=Simulador!$C$24,A121=0),0,A121+1) -> 0 | G122: =F122*((1+Simulador!$C$10)^B122-1) ->  | I122: =F122*Simulador!$F$8 ->  | J122: 961.7899273
A123: =IF(OR(A122>=Simulador!$C$24,A122=0),0,A122+1) -> 0 | G123: =F123*((1+Simulador!$C$10)^B123-1) ->  | I123: =F123*Simulador!$F$8 ->  | J123: 961.7899273
A124: =IF(OR(A123>=Simulador!$C$24,A123=0),0,A123+1) -> 0 | G124: =F124*((1+Simulador!$C$10)^B124-1) ->  | I124: =F124*Simulador!$F$8 ->  | J124: 961.7899273
A125: =IF(OR(A124>=Simulador!$C$24,A124=0),0,A124+1) -> 0 | G125: =F125*((1+Simulador!$C$10)^B125-1) ->  | I125: =F125*Simulador!$F$8 ->  | J125: 961.7899273
A126: =IF(OR(A125>=Simulador!$C$24,A125=0),0,A125+1) -> 0 | G126: =F126*((1+Simulador!$C$10)^B126-1) ->  | I126: =F126*Simulador!$F$8 ->  | J126: 961.7899273
A127: =IF(OR(A126>=Simulador!$C$24,A126=0),0,A126+1) -> 0 | G127: =F127*((1+Simulador!$C$10)^B127-1) ->  | I127: =F127*Simulador!$F$8 ->  | J127: 961.7899273
A128: =IF(OR(A127>=Simulador!$C$24,A127=0),0,A127+1) -> 0 | G128: =F128*((1+Simulador!$C$10)^B128-1) ->  | I128: =F128*Simulador!$F$8 ->  | J128: 961.7899273
A129: =IF(OR(A128>=Simulador!$C$24,A128=0),0,A128+1) -> 0 | G129: =F129*((1+Simulador!$C$10)^B129-1) ->  | I129: =F129*Simulador!$F$8 ->  | J129: 961.7899273
A130: =IF(OR(A129>=Simulador!$C$24,A129=0),0,A129+1) -> 0 | G130: =F130*((1+Simulador!$C$10)^B130-1) ->  | I130: =F130*Simulador!$F$8 ->  | J130: 961.7899273
A131: =IF(OR(A130>=Simulador!$C$24,A130=0),0,A130+1) -> 0 | G131: =F131*((1+Simulador!$C$10)^B131-1) ->  | I131: =F131*Simulador!$F$8 ->  | J131: 961.7899273
A132: =IF(OR(A131>=Simulador!$C$24,A131=0),0,A131+1) -> 0 | G132: =F132*((1+Simulador!$C$10)^B132-1) ->  | I132: =F132*Simulador!$F$8 ->  | J132: 961.7899273
A133: =IF(OR(A132>=Simulador!$C$24,A132=0),0,A132+1) -> 0 | G133: =F133*((1+Simulador!$C$10)^B133-1) ->  | H133: =J133-I133-G133 ->  | I133: =F133*Simulador!$F$8 ->  | J133: 961.7899273 | K133: =F133-H133 -> 
A134: =IF(OR(A133>=Simulador!$C$24,A133=0),0,A133+1) -> 0 | B134: =IFERROR(_xlfn.DAYS(E134,D134),"") ->  | C134: =IFERROR(C133+B134,"") ->  | E134: =IFERROR(EDATE(D134,1),"") ->  | F134: =K133 ->  | G134: =F134*((1+Simulador!$C$10)^B134-1) ->  | I134: =F134*Simulador!$F$8 ->  | J134: =$J$4 -> 961.7899273 | M134: =K134-L134 -> 
A135: =IF(OR(A134>=Simulador!$C$24,A134=0),0,A134+1) -> 0 | D135: =IF(A135<>0,E134,"") ->  | G135: =F135*((1+Simulador!$C$10)^B135-1) ->  | I135: =F135*Simulador!$F$8 ->  | J135: 961.7899273
A136: =IF(OR(A135>=Simulador!$C$24,A135=0),0,A135+1) -> 0 | G136: =F136*((1+Simulador!$C$10)^B136-1) ->  | I136: =F136*Simulador!$F$8 ->  | J136: 961.7899273
A137: =IF(OR(A136>=Simulador!$C$24,A136=0),0,A136+1) -> 0 | G137: =F137*((1+Simulador!$C$10)^B137-1) ->  | I137: =F137*Simulador!$F$8 ->  | J137: 961.7899273
A138: =IF(OR(A137>=Simulador!$C$24,A137=0),0,A137+1) -> 0 | G138: =F138*((1+Simulador!$C$10)^B138-1) ->  | I138: =F138*Simulador!$F$8 ->  | J138: 961.7899273
A139: =IF(OR(A138>=Simulador!$C$24,A138=0),0,A138+1) -> 0 | G139: =F139*((1+Simulador!$C$10)^B139-1) ->  | I139: =F139*Simulador!$F$8 ->  | J139: 961.7899273
A140: =IF(OR(A139>=Simulador!$C$24,A139=0),0,A139+1) -> 0 | G140: =F140*((1+Simulador!$C$10)^B140-1) ->  | I140: =F140*Simulador!$F$8 ->  | J140: 961.7899273
A141: =IF(OR(A140>=Simulador!$C$24,A140=0),0,A140+1) -> 0 | G141: =F141*((1+Simulador!$C$10)^B141-1) ->  | I141: =F141*Simulador!$F$8 ->  | J141: 961.7899273
A142: =IF(OR(A141>=Simulador!$C$24,A141=0),0,A141+1) -> 0 | G142: =F142*((1+Simulador!$C$10)^B142-1) ->  | I142: =F142*Simulador!$F$8 ->  | J142: 961.7899273
A143: =IF(OR(A142>=Simulador!$C$24,A142=0),0,A142+1) -> 0 | G143: =F143*((1+Simulador!$C$10)^B143-1) ->  | I143: =F143*Simulador!$F$8 ->  | J143: 961.7899273
A144: =IF(OR(A143>=Simulador!$C$24,A143=0),0,A143+1) -> 0 | G144: =F144*((1+Simulador!$C$10)^B144-1) ->  | I144: =F144*Simulador!$F$8 ->  | J144: 961.7899273
A145: =IF(OR(A144>=Simulador!$C$24,A144=0),0,A144+1) -> 0 | G145: =F145*((1+Simulador!$C$10)^B145-1) ->  | I145: =F145*Simulador!$F$8 ->  | J145: 961.7899273
A146: =IF(OR(A145>=Simulador!$C$24,A145=0),0,A145+1) -> 0 | G146: =F146*((1+Simulador!$C$10)^B146-1) ->  | I146: =F146*Simulador!$F$8 ->  | J146: 961.7899273
A147: =IF(OR(A146>=Simulador!$C$24,A146=0),0,A146+1) -> 0 | G147: =F147*((1+Simulador!$C$10)^B147-1) ->  | I147: =F147*Simulador!$F$8 ->  | J147: 961.7899273
A148: =IF(OR(A147>=Simulador!$C$24,A147=0),0,A147+1) -> 0 | G148: =F148*((1+Simulador!$C$10)^B148-1) ->  | I148: =F148*Simulador!$F$8 ->  | J148: 961.7899273
A149: =IF(OR(A148>=Simulador!$C$24,A148=0),0,A148+1) -> 0 | G149: =F149*((1+Simulador!$C$10)^B149-1) ->  | I149: =F149*Simulador!$F$8 ->  | J149: 961.7899273
A150: =IF(OR(A149>=Simulador!$C$24,A149=0),0,A149+1) -> 0 | G150: =F150*((1+Simulador!$C$10)^B150-1) ->  | I150: =F150*Simulador!$F$8 ->  | J150: 961.7899273
A151: =IF(OR(A150>=Simulador!$C$24,A150=0),0,A150+1) -> 0 | G151: =F151*((1+Simulador!$C$10)^B151-1) ->  | I151: =F151*Simulador!$F$8 ->  | J151: 961.7899273
A152: =IF(OR(A151>=Simulador!$C$24,A151=0),0,A151+1) -> 0 | G152: =F152*((1+Simulador!$C$10)^B152-1) ->  | I152: =F152*Simulador!$F$8 ->  | J152: 961.7899273
A153: =IF(OR(A152>=Simulador!$C$24,A152=0),0,A152+1) -> 0 | G153: =F153*((1+Simulador!$C$10)^B153-1) ->  | I153: =F153*Simulador!$F$8 ->  | J153: 961.7899273
A154: =IF(OR(A153>=Simulador!$C$24,A153=0),0,A153+1) -> 0 | G154: =F154*((1+Simulador!$C$10)^B154-1) ->  | I154: =F154*Simulador!$F$8 ->  | J154: 961.7899273
A155: =IF(OR(A154>=Simulador!$C$24,A154=0),0,A154+1) -> 0 | G155: =F155*((1+Simulador!$C$10)^B155-1) ->  | I155: =F155*Simulador!$F$8 ->  | J155: 961.7899273
A156: =IF(OR(A155>=Simulador!$C$24,A155=0),0,A155+1) -> 0 | G156: =F156*((1+Simulador!$C$10)^B156-1) ->  | I156: =F156*Simulador!$F$8 ->  | J156: 961.7899273
A157: =IF(OR(A156>=Simulador!$C$24,A156=0),0,A156+1) -> 0 | G157: =F157*((1+Simulador!$C$10)^B157-1) ->  | I157: =F157*Simulador!$F$8 ->  | J157: 961.7899273
A158: =IF(OR(A157>=Simulador!$C$24,A157=0),0,A157+1) -> 0 | G158: =F158*((1+Simulador!$C$10)^B158-1) ->  | I158: =F158*Simulador!$F$8 ->  | J158: 961.7899273
A159: =IF(OR(A158>=Simulador!$C$24,A158=0),0,A158+1) -> 0 | G159: =F159*((1+Simulador!$C$10)^B159-1) ->  | I159: =F159*Simulador!$F$8 ->  | J159: 961.7899273
A160: =IF(OR(A159>=Simulador!$C$24,A159=0),0,A159+1) -> 0 | G160: =F160*((1+Simulador!$C$10)^B160-1) ->  | I160: =F160*Simulador!$F$8 ->  | J160: 961.7899273
A161: =IF(OR(A160>=Simulador!$C$24,A160=0),0,A160+1) -> 0 | G161: =F161*((1+Simulador!$C$10)^B161-1) ->  | I161: =F161*Simulador!$F$8 ->  | J161: 961.7899273
A162: =IF(OR(A161>=Simulador!$C$24,A161=0),0,A161+1) -> 0 | G162: =F162*((1+Simulador!$C$10)^B162-1) ->  | I162: =F162*Simulador!$F$8 ->  | J162: 961.7899273
A163: =IF(OR(A162>=Simulador!$C$24,A162=0),0,A162+1) -> 0 | G163: =F163*((1+Simulador!$C$10)^B163-1) ->  | I163: =F163*Simulador!$F$8 ->  | J163: 961.7899273
A164: =IF(OR(A163>=Simulador!$C$24,A163=0),0,A163+1) -> 0 | G164: =F164*((1+Simulador!$C$10)^B164-1) ->  | I164: =F164*Simulador!$F$8 ->  | J164: 961.7899273
G165: =F165*((1+Simulador!$C$10)^B165-1) ->  | I165: =F165*Simulador!$F$8 ->  | J165: 961.7899273
G166: =F166*((1+Simulador!$C$10)^B166-1) ->  | I166: =F166*Simulador!$F$8 ->  | J166: 961.7899273
G167: =F167*((1+Simulador!$C$10)^B167-1) ->  | I167: =F167*Simulador!$F$8 ->  | J167: 961.7899273
G168: =F168*((1+Simulador!$C$10)^B168-1) ->  | I168: =F168*Simulador!$F$8 ->  | J168: 961.7899273
G169: =F169*((1+Simulador!$C$10)^B169-1) ->  | I169: =F169*Simulador!$F$8 ->  | J169: 961.7899273
G170: =F170*((1+Simulador!$C$10)^B170-1) ->  | I170: =F170*Simulador!$F$8 ->  | J170: 961.7899273
G171: =F171*((1+Simulador!$C$10)^B171-1) ->  | I171: =F171*Simulador!$F$8 ->  | J171: 961.7899273
G172: =F172*((1+Simulador!$C$10)^B172-1) ->  | I172: =F172*Simulador!$F$8 ->  | J172: 961.7899273
G173: =F173*((1+Simulador!$C$10)^B173-1) ->  | I173: =F173*Simulador!$F$8 ->  | J173: 961.7899273
G174: =F174*((1+Simulador!$C$10)^B174-1) ->  | I174: =F174*Simulador!$F$8 ->  | J174: 961.7899273
G175: =F175*((1+Simulador!$C$10)^B175-1) ->  | I175: =F175*Simulador!$F$8 ->  | J175: 961.7899273
G176: =F176*((1+Simulador!$C$10)^B176-1) ->  | I176: =F176*Simulador!$F$8 ->  | J176: 961.7899273
G177: =F177*((1+Simulador!$C$10)^B177-1) ->  | I177: =F177*Simulador!$F$8 ->  | J177: 961.7899273
G178: =F178*((1+Simulador!$C$10)^B178-1) ->  | I178: =F178*Simulador!$F$8 ->  | J178: 961.7899273
G179: =F179*((1+Simulador!$C$10)^B179-1) ->  | I179: =F179*Simulador!$F$8 ->  | J179: 961.7899273
G180: =F180*((1+Simulador!$C$10)^B180-1) ->  | I180: =F180*Simulador!$F$8 ->  | J180: 961.7899273
G181: =F181*((1+Simulador!$C$10)^B181-1) ->  | I181: =F181*Simulador!$F$8 ->  | J181: 961.7899273
G182: =F182*((1+Simulador!$C$10)^B182-1) ->  | I182: =F182*Simulador!$F$8 ->  | J182: 961.7899273
G183: =F183*((1+Simulador!$C$10)^B183-1) ->  | I183: =F183*Simulador!$F$8 ->  | J183: 961.7899273
G184: =F184*((1+Simulador!$C$10)^B184-1) ->  | I184: =F184*Simulador!$F$8 ->  | J184: 961.7899273
G185: =F185*((1+Simulador!$C$10)^B185-1) ->  | I185: =F185*Simulador!$F$8 ->  | J185: 961.7899273

Sheet Procesamiento T24 (2) (hidden)
A1: Cronograma
A3: n° Periodo | B3: n° Días | C3: n° días acum | D3: Fecha inicial | E3: Fecha Final | F3: Saldo inicial | G3: i | H3: k | I3: Seguro | J3: Cuota | K3: Saldo Aant | L3: Anticipo | M3: Saldo Final
A4: 0 | B4: =_xlfn.DAYS(E4,D4) -> 23 | C4: =B4 -> 23 | D4: =Simulador!C12 -> 2025-11-07 | E4: =EOMONTH(D4,0) -> 2025-11-30 | F4: =Simulador!C6 -> 14993.27 | G4: =F4*((1+Simulador!$C$10)^B4-1) -> 585.0700518 | H4: =IF((J4-I4-G4)<0,0,J4-I4-G4) -> 0 | I4: =F4*Simulador!$F$8 -> 44.97981 | J4: =Simulador!F32 -> 0 | K4: =F4-H4+G4+I4 -> 15623.31986 | M4: =K4-L4 -> 15623.31986
A5: 0 | B5: =_xlfn.DAYS(E5,D5) -> 30 | C5: =B5 -> 30 | D5: =E4+1 -> 2025-12-01 | E5: =EOMONTH(D5,0) -> 2025-12-31 | F5: =K4 -> 15623.31986 | G5: =F5*((1+Simulador!$C$10)^B5-1) -> 799.8834463 | H5: =IF((J5-I5-G5)<0,0,J5-I5-G5) -> 0 | J5: =Simulador!F33 -> 0 | K5: =F5-H5+G5+I5 -> 16423.20331 | M5: =K5-L5 -> 16423.20331
A6: 1 | B6: =_xlfn.DAYS(E6,D6) -> 6 | C6: =B6 -> 6 | D6: =E5 -> 2025-12-31 | E6: =+Simulador!C22 -> 2026-01-06 | F6: =K5 -> 16423.20331 | G6: =F6*((1+Simulador!$C$10)^B6-1) -> 164.8253945 | H6: =IF((J6-I6-G6)<0,0,J6-I6-G6) -> 747.6949229 | I6: =F6*Simulador!$F$8 -> 49.26960992 | J6: =Simulador!F34 -> 961.7899273 | K6: =F6-H6 -> 15675.50839 | M6: =K6-L6 -> 15675.50839
A7: =IF(OR(A6>Simulador!$C$24,A6=0),0,A6+1) -> 2 | B7: =IFERROR(_xlfn.DAYS(E7,D7),"") -> 31 | C7: =IFERROR(C6+B7,"") -> 37 | D7: =E6 -> 2026-01-06 | E7: =IFERROR(EDATE(D7,1),"") -> 2026-02-06 | F7: =K6 -> 15675.50839 | G7: =F7*((1+Simulador!$C$10)^B7-1) -> 830.0035028 | H7: =J7-I7-G7 -> 84.75989934 | I7: =F7*Simulador!$F$8 -> 47.02652516 | J7: =$J$6 -> 961.7899273 | K7: =F7-H7 -> 15590.74849 | M7: =K7-L7 -> 15590.74849
A8: =IF(OR(A7>Simulador!$C$24,A7=0),0,A7+1) -> 3 | B8: =IFERROR(_xlfn.DAYS(E8,D8),"") -> 28 | C8: =IFERROR(C7+B8,"") -> 65 | D8: =IF(A8<>0,E7,"") -> 2026-02-06 | E8: =IFERROR(EDATE(D8,1),"") -> 2026-03-06 | F8: =K7 -> 15590.74849 | G8: =F8*((1+Simulador!$C$10)^B8-1) -> 743.7525955 | H8: 171.2650864 | I8: =F8*Simulador!$F$8 -> 46.77224546 | J8: =$J$6 -> 961.7899273 | K8: 15419.4834 | M8: =K8-L8 -> 15419.4834
A9: =IF(OR(A8>=Simulador!$C$24,A8=0),0,A8+1) -> 4 | B9: 31 | C9: 96 | D9: =IF(A9<>0,E8,"") -> 2026-03-06 | E9: 2026-04-06 | F9: 15419.4834 | G9: =F9*((1+Simulador!$C$10)^B9-1) -> 816.4472194 | H9: 99.08425775 | I9: =F9*Simulador!$F$8 -> 46.2584502 | J9: 961.7899273 | K9: 15320.39914 | M9: 15320.39914
A10: =IF(OR(A9>=Simulador!$C$24,A9=0),0,A9+1) -> 5 | B10: 30 | C10: 126 | D10: 2026-04-06 | E10: 2026-05-06 | F10: 15320.39914 | G10: =F10*((1+Simulador!$C$10)^B10-1) -> 784.3744974 | H10: 131.4542325 | I10: =F10*Simulador!$F$8 -> 45.96119743 | J10: 961.7899273 | K10: 15188.94491 | M10: 15188.94491
A11: =IF(OR(A10>=Simulador!$C$24,A10=0),0,A10+1) -> 6 | B11: 31 | C11: 157 | D11: 2026-05-06 | E11: 2026-06-06 | F11: 15188.94491 | G11: =F11*((1+Simulador!$C$10)^B11-1) -> 804.240422 | H11: 111.9826706 | I11: =F11*Simulador!$F$8 -> 45.56683473 | J11: 961.7899273 | K11: 15076.96224 | M11: 15076.96224
A12: =IF(OR(A11>=Simulador!$C$24,A11=0),0,A11+1) -> 7 | B12: 30 | C12: 187 | D12: 2026-06-06 | E12: 2026-07-06 | F12: 15076.96224 | G12: =F12*((1+Simulador!$C$10)^B12-1) -> 771.9110037 | H12: 144.6480369 | I12: =F12*Simulador!$F$8 -> 45.23088672 | J12: 961.7899273 | K12: 14932.3142 | M12: 14932.3142
A13: =IF(OR(A12>=Simulador!$C$24,A12=0),0,A12+1) -> 8 | B13: 31 | C13: 218 | D13: 2026-07-06 | E13: 2026-08-06 | F13: 14932.3142 | G13: =F13*((1+Simulador!$C$10)^B13-1) -> 790.6520662 | H13: 126.3409186 | I13: =F13*Simulador!$F$8 -> 44.7969426 | J13: 961.7899273 | K13: 14805.97328 | M13: 14805.97328
A14: =IF(OR(A13>=Simulador!$C$24,A13=0),0,A13+1) -> 9 | B14: 31 | C14: 249 | D14: 2026-08-06 | E14: 2026-09-06 | F14: 14805.97328 | G14: =F14*((1+Simulador!$C$10)^B14-1) -> 783.9624327 | H14: 133.4095748 | I14: =F14*Simulador!$F$8 -> 44.41791985 | J14: 961.7899273 | K14: 14672.56371 | M14: 14672.56371
A15: =IF(OR(A14>=Simulador!$C$24,A14=0),0,A14+1) -> 10 | B15: 30 | C15: 279 | D15: 2026-09-06 | E15: 2026-10-06 | F15: 14672.56371 | G15: =F15*((1+Simulador!$C$10)^B15-1) -> 751.2065892 | H15: 166.565647 | I15: =F15*Simulador!$F$8 -> 44.01769112 | J15: 961.7899273 | K15: 14505.99806 | M15: 14505.99806
A16: =IF(OR(A15>=Simulador!$C$24,A15=0),0,A15+1) -> 11 | B16: 31 | C16: 310 | D16: 2026-10-06 | E16: 2026-11-06 | F16: 14505.99806 | G16: =F16*((1+Simulador!$C$10)^B16-1) -> 768.0790254 | H16: 150.1929078 | I16: =F16*Simulador!$F$8 -> 43.51799418 | J16: 961.7899273 | K16: 14355.80515 | M16: 14355.80515
A17: =IF(OR(A16>=Simulador!$C$24,A16=0),0,A16+1) -> 12 | B17: 30 | C17: 340 | D17: 2026-11-06 | E17: 2026-12-06 | F17: 14355.80515 | G17: =F17*((1+Simulador!$C$10)^B17-1) -> 734.9891702 | H17: 183.7333417 | I17: =F17*Simulador!$F$8 -> 43.06741546 | J17: 961.7899273 | K17: 14172.07181 | M17: 14172.07181
A18: =IF(OR(A17>=Simulador!$C$24,A17=0),0,A17+1) -> 13 | B18: 31 | C18: 371 | D18: 2026-12-06 | E18: 2027-01-06 | F18: 14172.07181 | G18: =F18*((1+Simulador!$C$10)^B18-1) -> 750.3979429 | H18: 168.875769 | I18: =F18*Simulador!$F$8 -> 42.51621544 | J18: 961.7899273 | K18: 14003.19604 | M18: 14003.19604
A19: =IF(OR(A18>=Simulador!$C$24,A18=0),0,A18+1) -> 14 | B19: 31 | C19: 402 | D19: 2027-01-06 | E19: 2027-02-06 | F19: 14003.19604 | G19: =F19*((1+Simulador!$C$10)^B19-1) -> 741.4561289 | H19: 178.3242103 | I19: =F19*Simulador!$F$8 -> 42.00958813 | J19: 961.7899273 | K19: 13824.87183 | M19: 13824.87183
A20: =IF(OR(A19>=Simulador!$C$24,A19=0),0,A19+1) -> 15 | B20: 28 | C20: 430 | D20: 2027-02-06 | E20: 2027-03-06 | F20: 13824.87183 | G20: =F20*((1+Simulador!$C$10)^B20-1) -> 659.5119097 | H20: 260.8034021 | I20: =F20*Simulador!$F$8 -> 41.4746155 | J20: 961.7899273 | K20: 13564.06843 | M20: 13564.06843
A21: =IF(OR(A20>=Simulador!$C$24,A20=0),0,A20+1) -> 16 | B21: 31 | C21: 461 | D21: 2027-03-06 | E21: 2027-04-06 | F21: 13564.06843 | G21: =F21*((1+Simulador!$C$10)^B21-1) -> 718.2047327 | H21: 202.8929893 | I21: =F21*Simulador!$F$8 -> 40.69220529 | J21: 961.7899273 | K21: 13361.17544 | M21: 13361.17544
A22: =IF(OR(A21>=Simulador!$C$24,A21=0),0,A21+1) -> 17 | B22: 30 | C22: 491 | D22: 2027-04-06 | E22: 2027-05-06 | F22: 13361.17544 | G22: =F22*((1+Simulador!$C$10)^B22-1) -> 684.0660726 | H22: 237.6403284 | I22: =F22*Simulador!$F$8 -> 40.08352632 | J22: 961.7899273 | K22: 13123.53511 | M22: 13123.53511
A23: =IF(OR(A22>=Simulador!$C$24,A22=0),0,A22+1) -> 18 | B23: 31 | C23: 522 | D23: 2027-05-06 | E23: 2027-06-06 | F23: 13123.53511 | G23: =F23*((1+Simulador!$C$10)^B23-1) -> 694.8789057 | H23: 227.5404163 | I23: =F23*Simulador!$F$8 -> 39.37060534 | J23: 961.7899273 | K23: 12895.9947 | M23: 12895.9947
A24: =IF(OR(A23>=Simulador!$C$24,A23=0),0,A23+1) -> 19 | B24: 30 | C24: 552 | D24: 2027-06-06 | E24: 2027-07-06 | F24: 12895.9947 | G24: =F24*((1+Simulador!$C$10)^B24-1) -> 660.2497275 | H24: 262.8522157 | I24: =F24*Simulador!$F$8 -> 38.68798409 | J24: 961.7899273 | K24: 12633.14248 | M24: 12633.14248
A25: =IF(OR(A24>=Simulador!$C$24,A24=0),0,A24+1) -> 20 | B25: 31 | C25: 583 | D25: 2027-07-06 | E25: 2027-08-06 | F25: 12633.14248 | G25: =F25*((1+Simulador!$C$10)^B25-1) -> 668.9130747 | H25: 254.9774252 | I25: =F25*Simulador!$F$8 -> 37.89942744 | J25: 961.7899273 | K25: 12378.16506 | M25: 12378.16506
A26: =IF(OR(A25>=Simulador!$C$24,A25=0),0,A25+1) -> 21 | B26: 31 | C26: 614 | D26: 2027-08-06 | E26: 2027-09-06 | F26: 12378.16506 | G26: =F26*((1+Simulador!$C$10)^B26-1) -> 655.4122586 | H26: 269.2431736 | I26: =F26*Simulador!$F$8 -> 37.13449517 | J26: 961.7899273 | K26: 12108.92188 | M26: 12108.92188
A27: =IF(OR(A26>=Simulador!$C$24,A26=0),0,A26+1) -> 22 | B27: 30 | C27: 644 | D27: 2027-09-06 | E27: 2027-10-06 | F27: 12108.92188 | G27: =F27*((1+Simulador!$C$10)^B27-1) -> 619.9531375 | H27: 305.5100242 | I27: =F27*Simulador!$F$8 -> 36.32676565 | J27: 961.7899273 | K27: 11803.41186 | M27: 11803.41186
A28: =IF(OR(A27>=Simulador!$C$24,A27=0),0,A27+1) -> 23 | B28: 31 | C28: 675 | D28: 2027-10-06 | E28: 2027-11-06 | F28: 11803.41186 | G28: =F28*((1+Simulador!$C$10)^B28-1) -> 624.9796145 | H28: 301.4000773 | I28: =F28*Simulador!$F$8 -> 35.41023557 | J28: 961.7899273 | K28: 11502.01178 | M28: 11502.01178
A29: =IF(OR(A28>=Simulador!$C$24,A28=0),0,A28+1) -> 24 | B29: 30 | C29: 705 | D29: 2027-11-06 | E29: 2027-12-06 | F29: 11502.01178 | G29: =F29*((1+Simulador!$C$10)^B29-1) -> 588.8805263 | H29: 338.4033657 | I29: =F29*Simulador!$F$8 -> 34.50603534 | J29: 961.7899273 | K29: 11163.60841 | M29: 11163.60841
A30: =IF(OR(A29>=Simulador!$C$24,A29=0),0,A29+1) -> 25 | B30: 31 | C30: 736 | D30: 2027-12-06 | E30: 2028-01-06 | F30: 11163.60841 | G30: =F30*((1+Simulador!$C$10)^B30-1) -> 591.1026208 | H30: 337.1964813 | I30: =F30*Simulador!$F$8 -> 33.49082524 | J30: 961.7899273 | K30: 10826.41193 | M30: 10826.41193
A31: =IF(OR(A30>=Simulador!$C$24,A30=0),0,A30+1) -> 26 | B31: 31 | C31: 767 | D31: 2028-01-06 | E31: 2028-02-06 | F31: 10826.41193 | G31: =F31*((1+Simulador!$C$10)^B31-1) -> 573.2483826 | H31: 356.062309 | I31: =F31*Simulador!$F$8 -> 32.4792358 | J31: 961.7899273 | K31: 10470.34962 | M31: 10470.34962
A32: =IF(OR(A31>=Simulador!$C$24,A31=0),0,A31+1) -> 27 | B32: 29 | C32: 796 | D32: 2028-02-06 | E32: 2028-03-06 | F32: 10470.34962 | G32: =F32*((1+Simulador!$C$10)^B32-1) -> 517.7581519 | H32: 412.6207266 | I32: =F32*Simulador!$F$8 -> 31.41104887 | J32: 961.7899273 | K32: 10057.7289 | M32: 10057.7289
A33: =IF(OR(A32>=Simulador!$C$24,A32=0),0,A32+1) -> 28 | B33: 31 | C33: 827 | D33: 2028-03-06 | E33: 2028-04-06 | F33: 10057.7289 | G33: =F33*((1+Simulador!$C$10)^B33-1) -> 532.547335 | H33: 399.0694056 | I33: =F33*Simulador!$F$8 -> 30.17318669 | J33: 961.7899273 | K33: 9658.659492 | M33: 9658.659492
A34: =IF(OR(A33>=Simulador!$C$24,A33=0),0,A33+1) -> 29 | B34: 30 | C34: 857 | D34: 2028-04-06 | E34: 2028-05-06 | F34: 9658.659492 | G34: =F34*((1+Simulador!$C$10)^B34-1) -> 494.5044913 | H34: 438.3094575 | I34: =F34*Simulador!$F$8 -> 28.97597848 | J34: 961.7899273 | K34: 9220.350035 | M34: 9220.350035
A35: =IF(OR(A34>=Simulador!$C$24,A34=0),0,A34+1) -> 30 | B35: 31 | C35: 888 | D35: 2028-05-06 | E35: 2028-06-06 | F35: 9220.350035 | G35: =F35*((1+Simulador!$C$10)^B35-1) -> 488.2089077 | H35: 445.9199695 | I35: =F35*Simulador!$F$8 -> 27.6610501 | J35: 961.7899273 | K35: 8774.430065 | M35: 8774.430065
A36: =IF(OR(A35>=Simulador!$C$24,A35=0),0,A35+1) -> 31 | B36: 30 | C36: 918 | D36: 2028-06-06 | E36: 2028-07-06 | F36: 8774.430065 | G36: =F36*((1+Simulador!$C$10)^B36-1) -> 449.2336726 | H36: 486.2329645 | I36: =F36*Simulador!$F$8 -> 26.3232902 | J36: 961.7899273 | K36: 8288.197101 | M36: 8288.197101
A37: =IF(OR(A36>=Simulador!$C$24,A36=0),0,A36+1) -> 32 | B37: 31 | C37: 949 | D37: 2028-07-06 | E37: 2028-08-06 | F37: 8288.197101 | G37: =F37*((1+Simulador!$C$10)^B37-1) -> 438.852282 | H37: 498.0730541 | I37: =F37*Simulador!$F$8 -> 24.8645913 | J37: 961.7899273 | K37: 7790.124047 | M37: 7790.124047
A38: =IF(OR(A37>=Simulador!$C$24,A37=0),0,A37+1) -> 33 | B38: 31 | C38: 980 | D38: 2028-08-06 | E38: 2028-09-06 | F38: 7790.124047 | G38: =F38*((1+Simulador!$C$10)^B38-1) -> 412.4797797 | H38: 525.9397754 | I38: =F38*Simulador!$F$8 -> 23.37037214 | J38: 961.7899273 | K38: 7264.184271 | M38: 7264.184271
A39: =IF(OR(A38>=Simulador!$C$24,A38=0),0,A38+1) -> 34 | B39: 30 | C39: 1010 | D39: 2028-09-06 | E39: 2028-10-06 | F39: 7264.184271 | G39: =F39*((1+Simulador!$C$10)^B39-1) -> 371.9120392 | H39: 568.0853353 | I39: =F39*Simulador!$F$8 -> 21.79255281 | J39: 961.7899273 | K39: 6696.098936 | M39: 6696.098936
A40: =IF(OR(A39>=Simulador!$C$24,A39=0),0,A39+1) -> 35 | B40: 31 | C40: 1041 | D40: 2028-10-06 | E40: 2028-11-06 | F40: 6696.098936 | G40: =F40*((1+Simulador!$C$10)^B40-1) -> 354.5521737 | H40: 587.1494568 | I40: =F40*Simulador!$F$8 -> 20.08829681 | J40: 961.7899273 | K40: 6108.949479 | M40: 6108.949479
A41: =IF(OR(A40>=Simulador!$C$24,A40=0),0,A40+1) -> 36 | B41: 30 | C41: 1071 | D41: 2028-11-06 | E41: 2028-12-06 | F41: 6108.949479 | G41: =F41*((1+Simulador!$C$10)^B41-1) -> 312.7662754 | H41: 630.6968035 | I41: =F41*Simulador!$F$8 -> 18.32684844 | J41: 961.7899273 | K41: 5478.252676 | M41: 5478.252676
A42: =IF(OR(A41>=Simulador!$C$24,A41=0),0,A41+1) -> 0 | F42: 5478.252676 | G42: =F42*((1+Simulador!$C$10)^B42-1) ->  | I42: =F42*Simulador!$F$8 -> 16.43475803 | J42: 961.7899273
A43: =IF(OR(A42>=Simulador!$C$24,A42=0),0,A42+1) -> 0 | G43: =F43*((1+Simulador!$C$10)^B43-1) ->  | I43: =F43*Simulador!$F$8 ->  | J43: 961.7899273
A44: =IF(OR(A43>=Simulador!$C$24,A43=0),0,A43+1) -> 0 | G44: =F44*((1+Simulador!$C$10)^B44-1) ->  | I44: =F44*Simulador!$F$8 ->  | J44: 961.7899273
A45: =IF(OR(A44>=Simulador!$C$24,A44=0),0,A44+1) -> 0 | G45: =F45*((1+Simulador!$C$10)^B45-1) ->  | I45: =F45*Simulador!$F$8 ->  | J45: 961.7899273
A46: =IF(OR(A45>=Simulador!$C$24,A45=0),0,A45+1) -> 0 | G46: =F46*((1+Simulador!$C$10)^B46-1) ->  | I46: =F46*Simulador!$F$8 ->  | J46: 961.7899273
A47: =IF(OR(A46>=Simulador!$C$24,A46=0),0,A46+1) -> 0 | G47: =F47*((1+Simulador!$C$10)^B47-1) ->  | I47: =F47*Simulador!$F$8 ->  | J47: 961.7899273
A48: =IF(OR(A47>=Simulador!$C$24,A47=0),0,A47+1) -> 0 | G48: =F48*((1+Simulador!$C$10)^B48-1) ->  | I48: =F48*Simulador!$F$8 ->  | J48: 961.7899273
A49: =IF(OR(A48>=Simulador!$C$24,A48=0),0,A48+1) -> 0 | G49: =F49*((1+Simulador!$C$10)^B49-1) ->  | I49: =F49*Simulador!$F$8 ->  | J49: 961.7899273
A50: =IF(OR(A49>=Simulador!$C$24,A49=0),0,A49+1) -> 0 | G50: =F50*((1+Simulador!$C$10)^B50-1) ->  | I50: =F50*Simulador!$F$8 ->  | J50: 961.7899273
A51: =IF(OR(A50>=Simulador!$C$24,A50=0),0,A50+1) -> 0 | G51: =F51*((1+Simulador!$C$10)^B51-1) ->  | I51: =F51*Simulador!$F$8 ->  | J51: 961.7899273
A52: =IF(OR(A51>=Simulador!$C$24,A51=0),0,A51+1) -> 0 | G52: =F52*((1+Simulador!$C$10)^B52-1) ->  | I52: =F52*Simulador!$F$8 ->  | J52: 961.7899273
A53: =IF(OR(A52>=Simulador!$C$24,A52=0),0,A52+1) -> 0 | G53: =F53*((1+Simulador!$C$10)^B53-1) ->  | I53: =F53*Simulador!$F$8 ->  | J53: 961.7899273
A54: =IF(OR(A53>=Simulador!$C$24,A53=0),0,A53+1) -> 0 | G54: =F54*((1+Simulador!$C$10)^B54-1) ->  | I54: =F54*Simulador!$F$8 ->  | J54: 961.7899273
A55: =IF(OR(A54>=Simulador!$C$24,A54=0),0,A54+1) -> 0 | G55: =F55*((1+Simulador!$C$10)^B55-1) ->  | I55: =F55*Simulador!$F$8 ->  | J55: 961.7899273
A56: =IF(OR(A55>=Simulador!$C$24,A55=0),0,A55+1) -> 0 | G56: =F56*((1+Simulador!$C$10)^B56-1) ->  | I56: =F56*Simulador!$F$8 ->  | J56: 961.7899273
A57: =IF(OR(A56>=Simulador!$C$24,A56=0),0,A56+1) -> 0 | G57: =F57*((1+Simulador!$C$10)^B57-1) ->  | I57: =F57*Simulador!$F$8 ->  | J57: 961.7899273
A58: =IF(OR(A57>=Simulador!$C$24,A57=0),0,A57+1) -> 0 | G58: =F58*((1+Simulador!$C$10)^B58-1) ->  | I58: =F58*Simulador!$F$8 ->  | J58: 961.7899273
A59: =IF(OR(A58>=Simulador!$C$24,A58=0),0,A58+1) -> 0 | G59: =F59*((1+Simulador!$C$10)^B59-1) ->  | I59: =F59*Simulador!$F$8 ->  | J59: 961.7899273
A60: =IF(OR(A59>=Simulador!$C$24,A59=0),0,A59+1) -> 0 | G60: =F60*((1+Simulador!$C$10)^B60-1) ->  | I60: =F60*Simulador!$F$8 ->  | J60: 961.7899273
A61: =IF(OR(A60>=Simulador!$C$24,A60=0),0,A60+1) -> 0 | G61: =F61*((1+Simulador!$C$10)^B61-1) ->  | I61: =F61*Simulador!$F$8 ->  | J61: 961.7899273
A62: =IF(OR(A61>=Simulador!$C$24,A61=0),0,A61+1) -> 0 | G62: =F62*((1+Simulador!$C$10)^B62-1) ->  | I62: =F62*Simulador!$F$8 ->  | J62: 961.7899273
A63: =IF(OR(A62>=Simulador!$C$24,A62=0),0,A62+1) -> 0 | G63: =F63*((1+Simulador!$C$10)^B63-1) ->  | I63: =F63*Simulador!$F$8 ->  | J63: 961.7899273
A64: =IF(OR(A63>=Simulador!$C$24,A63=0),0,A63+1) -> 0 | G64: =F64*((1+Simulador!$C$10)^B64-1) ->  | I64: =F64*Simulador!$F$8 ->  | J64: 961.7899273
A65: =IF(OR(A64>=Simulador!$C$24,A64=0),0,A64+1) -> 0 | G65: =F65*((1+Simulador!$C$10)^B65-1) ->  | I65: =F65*Simulador!$F$8 ->  | J65: 961.7899273
A66: =IF(OR(A65>=Simulador!$C$24,A65=0),0,A65+1) -> 0 | G66: =F66*((1+Simulador!$C$10)^B66-1) ->  | I66: =F66*Simulador!$F$8 ->  | J66: 961.7899273
A67: =IF(OR(A66>=Simulador!$C$24,A66=0),0,A66+1) -> 0 | G67: =F67*((1+Simulador!$C$10)^B67-1) ->  | I67: =F67*Simulador!$F$8 ->  | J67: 961.7899273
A68: =IF(OR(A67>=Simulador!$C$24,A67=0),0,A67+1) -> 0 | G68: =F68*((1+Simulador!$C$10)^B68-1) ->  | I68: =F68*Simulador!$F$8 ->  | J68: 961.7899273
A69: =IF(OR(A68>=Simulador!$C$24,A68=0),0,A68+1) -> 0 | G69: =F69*((1+Simulador!$C$10)^B69-1) ->  | I69: =F69*Simulador!$F$8 ->  | J69: 961.7899273
A70: =IF(OR(A69>=Simulador!$C$24,A69=0),0,A69+1) -> 0 | G70: =F70*((1+Simulador!$C$10)^B70-1) ->  | I70: =F70*Simulador!$F$8 ->  | J70: 961.7899273
A71: =IF(OR(A70>=Simulador!$C$24,A70=0),0,A70+1) -> 0 | G71: =F71*((1+Simulador!$C$10)^B71-1) ->  | H71: =J71-I71-G71 ->  | I71: =F71*Simulador!$F$8 ->  | J71: 961.7899273 | K71: =F71-H71 -> 
A72: =IF(OR(A71>=Simulador!$C$24,A71=0),0,A71+1) -> 0 | B72: =IFERROR(_xlfn.DAYS(E72,D72),"") ->  | C72: =IFERROR(C71+B72,"") ->  | E72: =IFERROR(EDATE(D72,1),"") ->  | F72: =K71 ->  | G72: =F72*((1+Simulador!$C$10)^B72-1) ->  | I72: =F72*Simulador!$F$8 ->  | J72: =$J$6 -> 961.7899273 | M72: =K72-L72 -> 
A73: =IF(OR(A72>=Simulador!$C$24,A72=0),0,A72+1) -> 0 | D73: =IF(A73<>0,E72,"") ->  | G73: =F73*((1+Simulador!$C$10)^B73-1) ->  | I73: =F73*Simulador!$F$8 ->  | J73: 961.7899273
A74: =IF(OR(A73>=Simulador!$C$24,A73=0),0,A73+1) -> 0 | G74: =F74*((1+Simulador!$C$10)^B74-1) ->  | I74: =F74*Simulador!$F$8 ->  | J74: 961.7899273
A75: =IF(OR(A74>=Simulador!$C$24,A74=0),0,A74+1) -> 0 | G75: =F75*((1+Simulador!$C$10)^B75-1) ->  | I75: =F75*Simulador!$F$8 ->  | J75: 961.7899273
A76: =IF(OR(A75>=Simulador!$C$24,A75=0),0,A75+1) -> 0 | G76: =F76*((1+Simulador!$C$10)^B76-1) ->  | I76: =F76*Simulador!$F$8 ->  | J76: 961.7899273
A77: =IF(OR(A76>=Simulador!$C$24,A76=0),0,A76+1) -> 0 | G77: =F77*((1+Simulador!$C$10)^B77-1) ->  | I77: =F77*Simulador!$F$8 ->  | J77: 961.7899273
A78: =IF(OR(A77>=Simulador!$C$24,A77=0),0,A77+1) -> 0 | G78: =F78*((1+Simulador!$C$10)^B78-1) ->  | I78: =F78*Simulador!$F$8 ->  | J78: 961.7899273
A79: =IF(OR(A78>=Simulador!$C$24,A78=0),0,A78+1) -> 0 | G79: =F79*((1+Simulador!$C$10)^B79-1) ->  | I79: =F79*Simulador!$F$8 ->  | J79: 961.7899273
A80: =IF(OR(A79>=Simulador!$C$24,A79=0),0,A79+1) -> 0 | G80: =F80*((1+Simulador!$C$10)^B80-1) ->  | I80: =F80*Simulador!$F$8 ->  | J80: 961.7899273
A81: =IF(OR(A80>=Simulador!$C$24,A80=0),0,A80+1) -> 0 | G81: =F81*((1+Simulador!$C$10)^B81-1) ->  | I81: =F81*Simulador!$F$8 ->  | J81: 961.7899273
A82: =IF(OR(A81>=Simulador!$C$24,A81=0),0,A81+1) -> 0 | G82: =F82*((1+Simulador!$C$10)^B82-1) ->  | I82: =F82*Simulador!$F$8 ->  | J82: 961.7899273
A83: =IF(OR(A82>=Simulador!$C$24,A82=0),0,A82+1) -> 0 | G83: =F83*((1+Simulador!$C$10)^B83-1) ->  | I83: =F83*Simulador!$F$8 ->  | J83: 961.7899273
A84: =IF(OR(A83>=Simulador!$C$24,A83=0),0,A83+1) -> 0 | G84: =F84*((1+Simulador!$C$10)^B84-1) ->  | I84: =F84*Simulador!$F$8 ->  | J84: 961.7899273
A85: =IF(OR(A84>=Simulador!$C$24,A84=0),0,A84+1) -> 0 | G85: =F85*((1+Simulador!$C$10)^B85-1) ->  | I85: =F85*Simulador!$F$8 ->  | J85: 961.7899273
A86: =IF(OR(A85>=Simulador!$C$24,A85=0),0,A85+1) -> 0 | G86: =F86*((1+Simulador!$C$10)^B86-1) ->  | I86: =F86*Simulador!$F$8 ->  | J86: 961.7899273
A87: =IF(OR(A86>=Simulador!$C$24,A86=0),0,A86+1) -> 0 | G87: =F87*((1+Simulador!$C$10)^B87-1) ->  | I87: =F87*Simulador!$F$8 ->  | J87: 961.7899273
A88: =IF(OR(A87>=Simulador!$C$24,A87=0),0,A87+1) -> 0 | G88: =F88*((1+Simulador!$C$10)^B88-1) ->  | I88: =F88*Simulador!$F$8 ->  | J88: 961.7899273
A89: =IF(OR(A88>=Simulador!$C$24,A88=0),0,A88+1) -> 0 | G89: =F89*((1+Simulador!$C$10)^B89-1) ->  | I89: =F89*Simulador!$F$8 ->  | J89: 961.7899273
A90: =IF(OR(A89>=Simulador!$C$24,A89=0),0,A89+1) -> 0 | G90: =F90*((1+Simulador!$C$10)^B90-1) ->  | I90: =F90*Simulador!$F$8 ->  | J90: 961.7899273
A91: =IF(OR(A90>=Simulador!$C$24,A90=0),0,A90+1) -> 0 | G91: =F91*((1+Simulador!$C$10)^B91-1) ->  | I91: =F91*Simulador!$F$8 ->  | J91: 961.7899273
A92: =IF(OR(A91>=Simulador!$C$24,A91=0),0,A91+1) -> 0 | G92: =F92*((1+Simulador!$C$10)^B92-1) ->  | I92: =F92*Simulador!$F$8 ->  | J92: 961.7899273
A93: =IF(OR(A92>=Simulador!$C$24,A92=0),0,A92+1) -> 0 | G93: =F93*((1+Simulador!$C$10)^B93-1) ->  | I93: =F93*Simulador!$F$8 ->  | J93: 961.7899273
A94: =IF(OR(A93>=Simulador!$C$24,A93=0),0,A93+1) -> 0 | G94: =F94*((1+Simulador!$C$10)^B94-1) ->  | I94: =F94*Simulador!$F$8 ->  | J94: 961.7899273
A95: =IF(OR(A94>=Simulador!$C$24,A94=0),0,A94+1) -> 0 | G95: =F95*((1+Simulador!$C$10)^B95-1) ->  | I95: =F95*Simulador!$F$8 ->  | J95: 961.7899273
A96: =IF(OR(A95>=Simulador!$C$24,A95=0),0,A95+1) -> 0 | G96: =F96*((1+Simulador!$C$10)^B96-1) ->  | I96: =F96*Simulador!$F$8 ->  | J96: 961.7899273
A97: =IF(OR(A96>=Simulador!$C$24,A96=0),0,A96+1) -> 0 | G97: =F97*((1+Simulador!$C$10)^B97-1) ->  | I97: =F97*Simulador!$F$8 ->  | J97: 961.7899273
A98: =IF(OR(A97>=Simulador!$C$24,A97=0),0,A97+1) -> 0 | G98: =F98*((1+Simulador!$C$10)^B98-1) ->  | I98: =F98*Simulador!$F$8 ->  | J98: 961.7899273
A99: =IF(OR(A98>=Simulador!$C$24,A98=0),0,A98+1) -> 0 | G99: =F99*((1+Simulador!$C$10)^B99-1) ->  | I99: =F99*Simulador!$F$8 ->  | J99: 961.7899273
A100: =IF(OR(A99>=Simulador!$C$24,A99=0),0,A99+1) -> 0 | G100: =F100*((1+Simulador!$C$10)^B100-1) ->  | I100: =F100*Simulador!$F$8 ->  | J100: 961.7899273
A101: =IF(OR(A100>=Simulador!$C$24,A100=0),0,A100+1) -> 0 | G101: =F101*((1+Simulador!$C$10)^B101-1) ->  | I101: =F101*Simulador!$F$8 ->  | J101: 961.7899273
A102: =IF(OR(A101>=Simulador!$C$24,A101=0),0,A101+1) -> 0 | G102: =F102*((1+Simulador!$C$10)^B102-1) ->  | I102: =F102*Simulador!$F$8 ->  | J102: 961.7899273
A103: =IF(OR(A102>=Simulador!$C$24,A102=0),0,A102+1) -> 0 | G103: =F103*((1+Simulador!$C$10)^B103-1) ->  | I103: =F103*Simulador!$F$8 ->  | J103: 961.7899273
A104: =IF(OR(A103>=Simulador!$C$24,A103=0),0,A103+1) -> 0 | G104: =F104*((1+Simulador!$C$10)^B104-1) ->  | I104: =F104*Simulador!$F$8 ->  | J104: 961.7899273
A105: =IF(OR(A104>=Simulador!$C$24,A104=0),0,A104+1) -> 0 | G105: =F105*((1+Simulador!$C$10)^B105-1) ->  | I105: =F105*Simulador!$F$8 ->  | J105: 961.7899273
A106: =IF(OR(A105>=Simulador!$C$24,A105=0),0,A105+1) -> 0 | G106: =F106*((1+Simulador!$C$10)^B106-1) ->  | I106: =F106*Simulador!$F$8 ->  | J106: 961.7899273
A107: =IF(OR(A106>=Simulador!$C$24,A106=0),0,A106+1) -> 0 | G107: =F107*((1+Simulador!$C$10)^B107-1) ->  | I107: =F107*Simulador!$F$8 ->  | J107: 961.7899273
A108: =IF(OR(A107>=Simulador!$C$24,A107=0),0,A107+1) -> 0 | G108: =F108*((1+Simulador!$C$10)^B108-1) ->  | I108: =F108*Simulador!$F$8 ->  | J108: 961.7899273
A109: =IF(OR(A108>=Simulador!$C$24,A108=0),0,A108+1) -> 0 | G109: =F109*((1+Simulador!$C$10)^B109-1) ->  | I109: =F109*Simulador!$F$8 ->  | J109: 961.7899273
A110: =IF(OR(A109>=Simulador!$C$24,A109=0),0,A109+1) -> 0 | G110: =F110*((1+Simulador!$C$10)^B110-1) ->  | I110: =F110*Simulador!$F$8 ->  | J110: 961.7899273
A111: =IF(OR(A110>=Simulador!$C$24,A110=0),0,A110+1) -> 0 | G111: =F111*((1+Simulador!$C$10)^B111-1) ->  | I111: =F111*Simulador!$F$8 ->  | J111: 961.7899273
A112: =IF(OR(A111>=Simulador!$C$24,A111=0),0,A111+1) -> 0 | G112: =F112*((1+Simulador!$C$10)^B112-1) ->  | I112: =F112*Simulador!$F$8 ->  | J112: 961.7899273
A113: =IF(OR(A112>=Simulador!$C$24,A112=0),0,A112+1) -> 0 | G113: =F113*((1+Simulador!$C$10)^B113-1) ->  | I113: =F113*Simulador!$F$8 ->  | J113: 961.7899273
A114: =IF(OR(A113>=Simulador!$C$24,A113=0),0,A113+1) -> 0 | G114: =F114*((1+Simulador!$C$10)^B114-1) ->  | I114: =F114*Simulador!$F$8 ->  | J114: 961.7899273
A115: =IF(OR(A114>=Simulador!$C$24,A114=0),0,A114+1) -> 0 | G115: =F115*((1+Simulador!$C$10)^B115-1) ->  | I115: =F115*Simulador!$F$8 ->  | J115: 961.7899273
A116: =IF(OR(A115>=Simulador!$C$24,A115=0),0,A115+1) -> 0 | G116: =F116*((1+Simulador!$C$10)^B116-1) ->  | I116: =F116*Simulador!$F$8 ->  | J116: 961.7899273
A117: =IF(OR(A116>=Simulador!$C$24,A116=0),0,A116+1) -> 0 | G117: =F117*((1+Simulador!$C$10)^B117-1) ->  | I117: =F117*Simulador!$F$8 ->  | J117: 961.7899273
A118: =IF(OR(A117>=Simulador!$C$24,A117=0),0,A117+1) -> 0 | G118: =F118*((1+Simulador!$C$10)^B118-1) ->  | I118: =F118*Simulador!$F$8 ->  | J118: 961.7899273
A119: =IF(OR(A118>=Simulador!$C$24,A118=0),0,A118+1) -> 0 | G119: =F119*((1+Simulador!$C$10)^B119-1) ->  | I119: =F119*Simulador!$F$8 ->  | J119: 961.7899273
A120: =IF(OR(A119>=Simulador!$C$24,A119=0),0,A119+1) -> 0 | G120: =F120*((1+Simulador!$C$10)^B120-1) ->  | I120: =F120*Simulador!$F$8 ->  | J120: 961.7899273
A121: =IF(OR(A120>=Simulador!$C$24,A120=0),0,A120+1) -> 0 | G121: =F121*((1+Simulador!$C$10)^B121-1) ->  | I121: =F121*Simulador!$F$8 ->  | J121: 961.7899273
A122: =IF(OR(A121>=Simulador!$C$24,A121=0),0,A121+1) -> 0 | G122: =F122*((1+Simulador!$C$10)^B122-1) ->  | I122: =F122*Simulador!$F$8 ->  | J122: 961.7899273
A123: =IF(OR(A122>=Simulador!$C$24,A122=0),0,A122+1) -> 0 | G123: =F123*((1+Simulador!$C$10)^B123-1) ->  | I123: =F123*Simulador!$F$8 ->  | J123: 961.7899273
A124: =IF(OR(A123>=Simulador!$C$24,A123=0),0,A123+1) -> 0 | G124: =F124*((1+Simulador!$C$10)^B124-1) ->  | I124: =F124*Simulador!$F$8 ->  | J124: 961.7899273
A125: =IF(OR(A124>=Simulador!$C$24,A124=0),0,A124+1) -> 0 | G125: =F125*((1+Simulador!$C$10)^B125-1) ->  | I125: =F125*Simulador!$F$8 ->  | J125: 961.7899273
A126: =IF(OR(A125>=Simulador!$C$24,A125=0),0,A125+1) -> 0 | G126: =F126*((1+Simulador!$C$10)^B126-1) ->  | I126: =F126*Simulador!$F$8 ->  | J126: 961.7899273
A127: =IF(OR(A126>=Simulador!$C$24,A126=0),0,A126+1) -> 0 | G127: =F127*((1+Simulador!$C$10)^B127-1) ->  | I127: =F127*Simulador!$F$8 ->  | J127: 961.7899273
A128: =IF(OR(A127>=Simulador!$C$24,A127=0),0,A127+1) -> 0 | G128: =F128*((1+Simulador!$C$10)^B128-1) ->  | I128: =F128*Simulador!$F$8 ->  | J128: 961.7899273
A129: =IF(OR(A128>=Simulador!$C$24,A128=0),0,A128+1) -> 0 | G129: =F129*((1+Simulador!$C$10)^B129-1) ->  | I129: =F129*Simulador!$F$8 ->  | J129: 961.7899273
A130: =IF(OR(A129>=Simulador!$C$24,A129=0),0,A129+1) -> 0 | G130: =F130*((1+Simulador!$C$10)^B130-1) ->  | I130: =F130*Simulador!$F$8 ->  | J130: 961.7899273
A131: =IF(OR(A130>=Simulador!$C$24,A130=0),0,A130+1) -> 0 | G131: =F131*((1+Simulador!$C$10)^B131-1) ->  | I131: =F131*Simulador!$F$8 ->  | J131: 961.7899273
A132: =IF(OR(A131>=Simulador!$C$24,A131=0),0,A131+1) -> 0 | G132: =F132*((1+Simulador!$C$10)^B132-1) ->  | I132: =F132*Simulador!$F$8 ->  | J132: 961.7899273
A133: =IF(OR(A132>=Simulador!$C$24,A132=0),0,A132+1) -> 0 | G133: =F133*((1+Simulador!$C$10)^B133-1) ->  | I133: =F133*Simulador!$F$8 ->  | J133: 961.7899273
A134: =IF(OR(A133>=Simulador!$C$24,A133=0),0,A133+1) -> 0 | G134: =F134*((1+Simulador!$C$10)^B134-1) ->  | I134: =F134*Simulador!$F$8 ->  | J134: 961.7899273
A135: =IF(OR(A134>=Simulador!$C$24,A134=0),0,A134+1) -> 0 | G135: =F135*((1+Simulador!$C$10)^B135-1) ->  | H135: =J135-I135-G135 ->  | I135: =F135*Simulador!$F$8 ->  | J135: 961.7899273 | K135: =F135-H135 -> 
A136: =IF(OR(A135>=Simulador!$C$24,A135=0),0,A135+1) -> 0 | B136: =IFERROR(_xlfn.DAYS(E136,D136),"") ->  | C136: =IFERROR(C135+B136,"") ->  | E136: =IFERROR(EDATE(D136,1),"") ->  | F136: =K135 ->  | G136: =F136*((1+Simulador!$C$10)^B136-1) ->  | I136: =F136*Simulador!$F$8 ->  | J136: =$J$6 -> 961.7899273 | M136: =K136-L136 -> 
A137: =IF(OR(A136>=Simulador!$C$24,A136=0),0,A136+1) -> 0 | D137: =IF(A137<>0,E136,"") ->  | G137: =F137*((1+Simulador!$C$10)^B137-1) ->  | I137: =F137*Simulador!$F$8 ->  | J137: 961.7899273
A138: =IF(OR(A137>=Simulador!$C$24,A137=0),0,A137+1) -> 0 | G138: =F138*((1+Simulador!$C$10)^B138-1) ->  | I138: =F138*Simulador!$F$8 ->  | J138: 961.7899273
A139: =IF(OR(A138>=Simulador!$C$24,A138=0),0,A138+1) -> 0 | G139: =F139*((1+Simulador!$C$10)^B139-1) ->  | I139: =F139*Simulador!$F$8 ->  | J139: 961.7899273
A140: =IF(OR(A139>=Simulador!$C$24,A139=0),0,A139+1) -> 0 | G140: =F140*((1+Simulador!$C$10)^B140-1) ->  | I140: =F140*Simulador!$F$8 ->  | J140: 961.7899273
A141: =IF(OR(A140>=Simulador!$C$24,A140=0),0,A140+1) -> 0 | G141: =F141*((1+Simulador!$C$10)^B141-1) ->  | I141: =F141*Simulador!$F$8 ->  | J141: 961.7899273
A142: =IF(OR(A141>=Simulador!$C$24,A141=0),0,A141+1) -> 0 | G142: =F142*((1+Simulador!$C$10)^B142-1) ->  | I142: =F142*Simulador!$F$8 ->  | J142: 961.7899273
A143: =IF(OR(A142>=Simulador!$C$24,A142=0),0,A142+1) -> 0 | G143: =F143*((1+Simulador!$C$10)^B143-1) ->  | I143: =F143*Simulador!$F$8 ->  | J143: 961.7899273
A144: =IF(OR(A143>=Simulador!$C$24,A143=0),0,A143+1) -> 0 | G144: =F144*((1+Simulador!$C$10)^B144-1) ->  | I144: =F144*Simulador!$F$8 ->  | J144: 961.7899273
A145: =IF(OR(A144>=Simulador!$C$24,A144=0),0,A144+1) -> 0 | G145: =F145*((1+Simulador!$C$10)^B145-1) ->  | I145: =F145*Simulador!$F$8 ->  | J145: 961.7899273
A146: =IF(OR(A145>=Simulador!$C$24,A145=0),0,A145+1) -> 0 | G146: =F146*((1+Simulador!$C$10)^B146-1) ->  | I146: =F146*Simulador!$F$8 ->  | J146: 961.7899273
A147: =IF(OR(A146>=Simulador!$C$24,A146=0),0,A146+1) -> 0 | G147: =F147*((1+Simulador!$C$10)^B147-1) ->  | I147: =F147*Simulador!$F$8 ->  | J147: 961.7899273
A148: =IF(OR(A147>=Simulador!$C$24,A147=0),0,A147+1) -> 0 | G148: =F148*((1+Simulador!$C$10)^B148-1) ->  | I148: =F148*Simulador!$F$8 ->  | J148: 961.7899273
A149: =IF(OR(A148>=Simulador!$C$24,A148=0),0,A148+1) -> 0 | G149: =F149*((1+Simulador!$C$10)^B149-1) ->  | I149: =F149*Simulador!$F$8 ->  | J149: 961.7899273
A150: =IF(OR(A149>=Simulador!$C$24,A149=0),0,A149+1) -> 0 | G150: =F150*((1+Simulador!$C$10)^B150-1) ->  | I150: =F150*Simulador!$F$8 ->  | J150: 961.7899273
A151: =IF(OR(A150>=Simulador!$C$24,A150=0),0,A150+1) -> 0 | G151: =F151*((1+Simulador!$C$10)^B151-1) ->  | I151: =F151*Simulador!$F$8 ->  | J151: 961.7899273
A152: =IF(OR(A151>=Simulador!$C$24,A151=0),0,A151+1) -> 0 | G152: =F152*((1+Simulador!$C$10)^B152-1) ->  | I152: =F152*Simulador!$F$8 ->  | J152: 961.7899273
A153: =IF(OR(A152>=Simulador!$C$24,A152=0),0,A152+1) -> 0 | G153: =F153*((1+Simulador!$C$10)^B153-1) ->  | I153: =F153*Simulador!$F$8 ->  | J153: 961.7899273
A154: =IF(OR(A153>=Simulador!$C$24,A153=0),0,A153+1) -> 0 | G154: =F154*((1+Simulador!$C$10)^B154-1) ->  | I154: =F154*Simulador!$F$8 ->  | J154: 961.7899273
A155: =IF(OR(A154>=Simulador!$C$24,A154=0),0,A154+1) -> 0 | G155: =F155*((1+Simulador!$C$10)^B155-1) ->  | I155: =F155*Simulador!$F$8 ->  | J155: 961.7899273
A156: =IF(OR(A155>=Simulador!$C$24,A155=0),0,A155+1) -> 0 | G156: =F156*((1+Simulador!$C$10)^B156-1) ->  | I156: =F156*Simulador!$F$8 ->  | J156: 961.7899273
A157: =IF(OR(A156>=Simulador!$C$24,A156=0),0,A156+1) -> 0 | G157: =F157*((1+Simulador!$C$10)^B157-1) ->  | I157: =F157*Simulador!$F$8 ->  | J157: 961.7899273
A158: =IF(OR(A157>=Simulador!$C$24,A157=0),0,A157+1) -> 0 | G158: =F158*((1+Simulador!$C$10)^B158-1) ->  | I158: =F158*Simulador!$F$8 ->  | J158: 961.7899273
A159: =IF(OR(A158>=Simulador!$C$24,A158=0),0,A158+1) -> 0 | G159: =F159*((1+Simulador!$C$10)^B159-1) ->  | I159: =F159*Simulador!$F$8 ->  | J159: 961.7899273
A160: =IF(OR(A159>=Simulador!$C$24,A159=0),0,A159+1) -> 0 | G160: =F160*((1+Simulador!$C$10)^B160-1) ->  | I160: =F160*Simulador!$F$8 ->  | J160: 961.7899273
A161: =IF(OR(A160>=Simulador!$C$24,A160=0),0,A160+1) -> 0 | G161: =F161*((1+Simulador!$C$10)^B161-1) ->  | I161: =F161*Simulador!$F$8 ->  | J161: 961.7899273
A162: =IF(OR(A161>=Simulador!$C$24,A161=0),0,A161+1) -> 0 | G162: =F162*((1+Simulador!$C$10)^B162-1) ->  | I162: =F162*Simulador!$F$8 ->  | J162: 961.7899273
A163: =IF(OR(A162>=Simulador!$C$24,A162=0),0,A162+1) -> 0 | G163: =F163*((1+Simulador!$C$10)^B163-1) ->  | I163: =F163*Simulador!$F$8 ->  | J163: 961.7899273
A164: =IF(OR(A163>=Simulador!$C$24,A163=0),0,A163+1) -> 0 | G164: =F164*((1+Simulador!$C$10)^B164-1) ->  | I164: =F164*Simulador!$F$8 ->  | J164: 961.7899273
A165: =IF(OR(A164>=Simulador!$C$24,A164=0),0,A164+1) -> 0 | G165: =F165*((1+Simulador!$C$10)^B165-1) ->  | I165: =F165*Simulador!$F$8 ->  | J165: 961.7899273
A166: =IF(OR(A165>=Simulador!$C$24,A165=0),0,A165+1) -> 0 | G166: =F166*((1+Simulador!$C$10)^B166-1) ->  | I166: =F166*Simulador!$F$8 ->  | J166: 961.7899273
G167: =F167*((1+Simulador!$C$10)^B167-1) ->  | I167: =F167*Simulador!$F$8 ->  | J167: 961.7899273
G168: =F168*((1+Simulador!$C$10)^B168-1) ->  | I168: =F168*Simulador!$F$8 ->  | J168: 961.7899273
G169: =F169*((1+Simulador!$C$10)^B169-1) ->  | I169: =F169*Simulador!$F$8 ->  | J169: 961.7899273
G170: =F170*((1+Simulador!$C$10)^B170-1) ->  | I170: =F170*Simulador!$F$8 ->  | J170: 961.7899273
G171: =F171*((1+Simulador!$C$10)^B171-1) ->  | I171: =F171*Simulador!$F$8 ->  | J171: 961.7899273
G172: =F172*((1+Simulador!$C$10)^B172-1) ->  | I172: =F172*Simulador!$F$8 ->  | J172: 961.7899273
G173: =F173*((1+Simulador!$C$10)^B173-1) ->  | I173: =F173*Simulador!$F$8 ->  | J173: 961.7899273
G174: =F174*((1+Simulador!$C$10)^B174-1) ->  | I174: =F174*Simulador!$F$8 ->  | J174: 961.7899273
G175: =F175*((1+Simulador!$C$10)^B175-1) ->  | I175: =F175*Simulador!$F$8 ->  | J175: 961.7899273
G176: =F176*((1+Simulador!$C$10)^B176-1) ->  | I176: =F176*Simulador!$F$8 ->  | J176: 961.7899273
G177: =F177*((1+Simulador!$C$10)^B177-1) ->  | I177: =F177*Simulador!$F$8 ->  | J177: 961.7899273
G178: =F178*((1+Simulador!$C$10)^B178-1) ->  | I178: =F178*Simulador!$F$8 ->  | J178: 961.7899273
G179: =F179*((1+Simulador!$C$10)^B179-1) ->  | I179: =F179*Simulador!$F$8 ->  | J179: 961.7899273
G180: =F180*((1+Simulador!$C$10)^B180-1) ->  | I180: =F180*Simulador!$F$8 ->  | J180: 961.7899273
G181: =F181*((1+Simulador!$C$10)^B181-1) ->  | I181: =F181*Simulador!$F$8 ->  | J181: 961.7899273
G182: =F182*((1+Simulador!$C$10)^B182-1) ->  | I182: =F182*Simulador!$F$8 ->  | J182: 961.7899273
G183: =F183*((1+Simulador!$C$10)^B183-1) ->  | I183: =F183*Simulador!$F$8 ->  | J183: 961.7899273
G184: =F184*((1+Simulador!$C$10)^B184-1) ->  | I184: =F184*Simulador!$F$8 ->  | J184: 961.7899273
G185: =F185*((1+Simulador!$C$10)^B185-1) ->  | I185: =F185*Simulador!$F$8 ->  | J185: 961.7899273
G186: =F186*((1+Simulador!$C$10)^B186-1) ->  | I186: =F186*Simulador!$F$8 ->  | J186: 961.7899273
G187: =F187*((1+Simulador!$C$10)^B187-1) ->  | I187: =F187*Simulador!$F$8 ->  | J187: 961.7899273

Sheet Fechas (hidden)
A3: Fecha de desembolso: | B3: =Simulador!C12 -> 2025-11-07
A5: Día de pago: | B5: =Simulador!C14 -> 6
A7: Meses gracia | B7: =Simulador!C16 -> 0
G9: 10.5 mm se va activar
A10: Ajuste a fecha de pago | B10: =DATE(YEAR($B$3),MONTH(B3),B5) -> 2025-11-06 | G10: 4 adicionales
A11: Ajuste 1 fecha de pago | B11: =EDATE(B10,1) -> 2025-12-06 | C11: =B11-B3 -> 29 | G11: activar 35,7
A12: Fecha de pago sin gracia | B12: =IF(C11<29,EDATE(B11,1),B11) -> 2025-12-06 | G12: 2.3 por activo fijo
L13: Terminar activando 19 mm
A14: Fecha de pago inicial con gracia | B14: =EDATE(B12,B7) -> 2025-12-06
A15: Fecha de primer pago: | B15: =B14 -> 2025-12-06
H16: 35
H17: vs
A18: Primer periodo de gracia | B18: =EDATE(B12,C18) -> 2025-12-06 | C18: =IF(B7<>0,1,0) -> 0 | H18: 19
A19: Segundo periodo de gracia | B19: =EDATE(B18,C19) -> 2025-12-06 | C19: =IF(B7=2,1,0) -> 0
I20: aprobado del 2022
I21: cuánto falta
I22: de los proyectos que están aquí cuánto es el ppto
I23: ppto ti que se activa
I25: Está dentro del presupuesto el gasto de personal que se le pasa
I26: Tiene todo tiene lo del personal de ti
I28: de todo lo que se aprobó hasta el 2025 cuánto se ha ejecutado y cuánto queda pendiente de ejecutar
A31: Monto máximo del seguro
A34: procesamiento! | B34: procesamiento!
A35: D4 | B35: E4
A36: =(4+Simulador!C24-1) -> 39 | B36: =(4+Simulador!C24-1) -> 39
A37: =_xlfn.CONCAT("D",A36) -> D39 | B37: =_xlfn.CONCAT("E",B36) -> E39

Sheet FechasT24 (hidden)
A3: Fecha de desembolso: | B3: =Simulador!C12 -> 2025-11-07
A5: Día de pago: | B5: =Simulador!C14 -> 6
A7: Meses gracia | B7: =Simulador!C18 -> 0
G9: 10.5 mm se va activar
A10: Ajuste a fecha de pago | B10: =DATE(YEAR($B$3),MONTH(B3),B5) -> 2025-11-06 | G10: 4 adicionales
A11: Ajuste 1 fecha de pago | B11: =EDATE(B10,1) -> 2025-12-06 | C11: =B11-B3 -> 29 | G11: activar 35,7
A12: Fecha de pago sin gracia | B12: =IF(C11<30,EDATE(B11,1),B11) -> 2026-01-06 | G12: 2.3 por activo fijo
L13: Terminar activando 19 mm
A14: Fecha de pago inicial con gracia | B14: =EDATE(B12,B7) -> 2026-01-06
A15: Fecha de primer pago: | B15: =B14 -> 2026-01-06
H16: 35
H17: vs
A18: Primer periodo de gracia | B18: =EDATE(B12,C18) -> 2026-01-06 | C18: =IF(B7<>0,1,0) -> 0 | H18: 19
A19: Segundo periodo de gracia | B19: =EDATE(B18,C19) -> 2026-01-06 | C19: =IF(B7=2,1,0) -> 0
I20: aprobado del 2022
I21: cuánto falta
I22: de los proyectos que están aquí cuánto es el ppto
I23: ppto ti que se activa
I25: Está dentro del presupuesto el gasto de personal que se le pasa
I26: Tiene todo tiene lo del personal de ti
I28: de todo lo que se aprobó hasta el 2025 cuánto se ha ejecutado y cuánto queda pendiente de ejecutar
A31: Monto máximo del seguro
A34: procesamiento! | B34: procesamiento!
A35: D4 | B35: E4
A36: =(4+Simulador!C24-1) -> 39 | B36: =(4+Simulador!C24-1) -> 39
A37: =_xlfn.CONCAT("D",A36) -> D39 | B37: =_xlfn.CONCAT("E",B36) -> E39

Sheet Listas (hidden)
A1: Si | C1: Con Rescate | E1: 0
A2: No | C2: Sin Rescate | E2: 1
E3: 2
